Body Name,Service Area Categorisation,Service Division Categorisation,Expenses Type,Date,Transaction Number,Amount,Capital or Revenue,Supplier Name
Peterborough City Council,"Cultural, Environmental and Planning Services",Library Services,More than one Expenses Type,01-Apr-11,305577,907.17,REVENUE,Cresset Leisure Services Ltd
Peterborough City Council,More than one Service Area Category,More than one Service Division,More than one Expenses Type,01-Apr-11,317908,3017.41,"Mixture of Capital, Revenue and/or Balance Sheet",Atkins Limited
Peterborough City Council,"Highways, Roads & Transport Services","Transport planning, policy and strategy",Transport,01-Apr-11,323441,1083.1,REVENUE,Atkins Limited
Peterborough City Council,More than one Service Area Category,More than one Service Division,More than one Expenses Type,01-Apr-11,332420,547.04,"Mixture of Capital, Revenue and/or Balance Sheet",Atkins Limited
Peterborough City Council,Children's & Education Services - Children's Social Care,Family Support Services,Employees,01-Apr-11,369056,2838,REVENUE,R82 UK Ltd
Peterborough City Council,Capital,Capital,Capital Pending Update to BS,01-Apr-11,370104,10200.49,CAPITAL,Atkins Limited
Peterborough City Council,Capital,Capital,Capital Pending Update to BS,01-Apr-11,370687,-9674.57,CAPITAL,Atkins Limited
Peterborough City Council,Housing Services,Homelessness,Supplies and Services,01-Apr-11,371776,672.44,REVENUE,Parker Goodale Ltd t/a Mammoth Workwear
Peterborough City Council,"Highways, Roads & Transport Services",Public Transport,Supplies and Services,01-Apr-11,372848,1242,REVENUE,Queensbury Shelters Ltd
Peterborough City Council,"Highways, Roads & Transport Services",Public Transport,Supplies and Services,01-Apr-11,372849,1131.6,REVENUE,Queensbury Shelters Ltd
Peterborough City Council,Children's & Education Services - Children's Social Care,Other Children's & Families Services,Third Party Payments,01-Apr-11,373368,10500,REVENUE,Bridgegate Drug Services
Peterborough City Council,Children's & Education Services - Children's Social Care,Other Children's & Families Services,Third Party Payments,01-Apr-11,373546,10500,REVENUE,Bridgegate Drug Services
Peterborough City Council,Deficit/(Surplus) on Trading Undertakings,Trading Account Surpluses & Deficits,Premises,01-Apr-11,373882,2011.2,REVENUE,B Safe Electrical Services
Peterborough City Council,"Highways, Roads & Transport Services","Transport planning, policy and strategy",Employees,01-Apr-11,374598,1284,REVENUE,Hays Specialist Recruitment Ltd
Peterborough City Council,Housing Services,Private Sector Housing Renewal,Supplies and Services,01-Apr-11,375173,2504.1,REVENUE,Deprez Developments
Peterborough City Council,Children's & Education Services - Children's Social Care,Children Looked After,Supplies and Services,01-Apr-11,375179,4325.31,REVENUE,Faith in Families
Peterborough City Council,Children's & Education Services - Children's Social Care,Children Looked After,Supplies and Services,01-Apr-11,375181,1997.04,REVENUE,Faith in Families
Peterborough City Council,Housing Services,Homelessness,Supplies and Services,01-Apr-11,375527,595.01,REVENUE,Record Property Solutions
Peterborough City Council,Housing Services,Housing Benefits,Employees,01-Apr-11,376343,704.63,REVENUE,Reed Personnel Services Plc
Peterborough City Council,Housing Services,Housing Benefits,Employees,01-Apr-11,376345,704.63,REVENUE,Reed Personnel Services Plc
Peterborough City Council,Children's & Education Services - Children's Social Care,More than one Service Division,Supplies and Services,01-Apr-11,376429,1414.55,REVENUE,R S P LTD
Peterborough City Council,Children's & Education Services - Children's Social Care,Support Services & Management Costs,Supplies and Services,01-Apr-11,376632,600,REVENUE,Redacted Personal Data
Peterborough City Council,Deficit/(Surplus) on Trading Undertakings,Trading Account Surpluses & Deficits,Transport,01-Apr-11,376981,2580,REVENUE,SG Equipment Finance Ltd
Peterborough City Council,Deficit/(Surplus) on Trading Undertakings,Trading Account Surpluses & Deficits,Transport,01-Apr-11,376983,1626,REVENUE,SG Equipment Finance Ltd
Peterborough City Council,Deficit/(Surplus) on Trading Undertakings,Trading Account Surpluses & Deficits,Transport,01-Apr-11,376991,2598,REVENUE,SG Equipment Finance Ltd
Peterborough City Council,Deficit/(Surplus) on Trading Undertakings,Trading Account Surpluses & Deficits,Transport,01-Apr-11,376997,1386,REVENUE,SG Equipment Finance Ltd
Peterborough City Council,Capital,Capital,Capital Pending Update to BS,01-Apr-11,377086,8907.46,CAPITAL,Atkins Limited
Peterborough City Council,Capital,Capital,Capital Pending Update to BS,01-Apr-11,377092,4719.55,CAPITAL,Dambach UK Ltd
Peterborough City Council,Children's & Education Services - Children's Social Care,Support Services & Management Costs,Employees,01-Apr-11,377700,1776,REVENUE,Blue Group International Ltd
Peterborough City Council,Central Services to the Public,Emergency Planning,Supplies and Services,01-Apr-11,378095,947.4,REVENUE,Ultra Electronics Limited
Peterborough City Council,Support Services,Support Services,Premises,01-Apr-11,378483,684.94,REVENUE,Southern Electric
Peterborough City Council,Support Services,Support Services,Premises,01-Apr-11,378511,795.38,REVENUE,NB Real Estate
Peterborough City Council,Support Services,Support Services,Premises,01-Apr-11,378512,507.74,REVENUE,NB Real Estate
Peterborough City Council,"Cultural, Environmental and Planning Services","Cemetery, Crematorium & Mortuary Services",Supplies and Services,01-Apr-11,378515,780,REVENUE,Royal Mail
Peterborough City Council,Central Services to the Public,Local Tax,Supplies and Services,01-Apr-11,378544,14381.73,REVENUE,Royal Mail
Peterborough City Council,Capital,Capital,Capital Pending Update to BS,01-Apr-11,378690,500,CAPITAL,Discovery Pre School
Peterborough City Council,"Cultural, Environmental and Planning Services",More than one Service Division,Supplies and Services,01-Apr-11,378703,911.59,REVENUE,Serco Ltd
Peterborough City Council,Deficit/(Surplus) on Trading Undertakings,Trading Account Surpluses & Deficits,Supplies and Services,01-Apr-11,378720,3456.78,REVENUE,Barron Clark Castings Ltd
Peterborough City Council,More than one Service Area Category,More than one Service Division,Balance Sheet,01-Apr-11,378722,1130.25,Balance Sheet,Castor C E Primary School
Peterborough City Council,Capital,Capital,Capital Pending Update to BS,01-Apr-11,379581,500,CAPITAL,Busy Bees Pre-School
Peterborough City Council,Support Services,Support Services,Premises,01-Apr-11,379883,3005.5,REVENUE,British Gas Business
Peterborough City Council,Support Services,Support Services,Premises,01-Apr-11,379884,3313.48,REVENUE,Eastern Shires Purchasing Organisation
Peterborough City Council,Children's & Education Services - Education,Non-School Funding,Supplies and Services,01-Apr-11,379886,500,REVENUE,Home from Home
Peterborough City Council,Children's & Education Services - Education,Non-School Funding,Supplies and Services,01-Apr-11,379887,630,REVENUE,Home from Home
Peterborough City Council,Capital,Capital,Capital Pending Update to BS,01-Apr-11,379903,1033.8,CAPITAL,Casbon Building Services
Peterborough City Council,More than one Service Area Category,More than one Service Division,More than one Expenses Type,01-Apr-11,379906,986.16,"Mixture of Capital, Revenue and/or Balance Sheet",Burmor Construction
Peterborough City Council,More than one Service Area Category,More than one Service Division,More than one Expenses Type,01-Apr-11,379912,4541.22,"Mixture of Capital, Revenue and/or Balance Sheet",Rawheat Heating & Plumbing Eng.
Peterborough City Council,"Cultural, Environmental and Planning Services",Community Safety,Employees,01-Apr-11,379913,572.81,REVENUE,Red Snapper Recruitment Ltd
Peterborough City Council,More than one Service Area Category,More than one Service Division,More than one Expenses Type,01-Apr-11,379916,1310,"Mixture of Capital, Revenue and/or Balance Sheet",Obam Domestic Lift Services Ltd
Peterborough City Council,More than one Service Area Category,More than one Service Division,More than one Expenses Type,01-Apr-11,379922,3983,"Mixture of Capital, Revenue and/or Balance Sheet",Morley Building Services
Peterborough City Council,More than one Service Area Category,More than one Service Division,More than one Expenses Type,01-Apr-11,379925,3682.35,"Mixture of Capital, Revenue and/or Balance Sheet",Optimum Plumbing & Heating Ltd
Peterborough City Council,More than one Service Area Category,More than one Service Division,More than one Expenses Type,01-Apr-11,379926,1560,"Mixture of Capital, Revenue and/or Balance Sheet",Allworks Home Improvements Ltd
Peterborough City Council,More than one Service Area Category,More than one Service Division,More than one Expenses Type,01-Apr-11,379927,4630.5,"Mixture of Capital, Revenue and/or Balance Sheet",Rawheat Heating & Plumbing Eng.
Peterborough City Council,More than one Service Area Category,More than one Service Division,More than one Expenses Type,01-Apr-11,379928,3728.4,"Mixture of Capital, Revenue and/or Balance Sheet",Rawheat Heating & Plumbing Eng.
Peterborough City Council,Children's & Education Services - Education,Non-School Funding,Supplies and Services,01-Apr-11,379940,720,REVENUE,Orton Longueville Playgroup
Peterborough City Council,Children's & Education Services - Education,Non-School Funding,Supplies and Services,01-Apr-11,379948,720,REVENUE,West Town Playgroup
Peterborough City Council,Children's & Education Services - Education,Non-School Funding,Supplies and Services,01-Apr-11,379950,684,REVENUE,West Town Playgroup
Peterborough City Council,More than one Service Area Category,More than one Service Division,More than one Expenses Type,01-Apr-11,379955,5592,"Mixture of Capital, Revenue and/or Balance Sheet",FAM Building Contractors LLP
Peterborough City Council,More than one Service Area Category,More than one Service Division,More than one Expenses Type,01-Apr-11,379956,3492,"Mixture of Capital, Revenue and/or Balance Sheet",Richard Masham Building Services
Peterborough City Council,More than one Service Area Category,More than one Service Division,More than one Expenses Type,01-Apr-11,379962,4580,"Mixture of Capital, Revenue and/or Balance Sheet",Morley Building Services
Peterborough City Council,More than one Service Area Category,More than one Service Division,More than one Expenses Type,01-Apr-11,379963,5173.8,"Mixture of Capital, Revenue and/or Balance Sheet",Priestgate Properties Ltd
Peterborough City Council,Capital,Capital,Capital Pending Update to BS,01-Apr-11,380020,73572.47,CAPITAL,Acrabuild (Anglia) Ltd
Peterborough City Council,Deficit/(Surplus) on Trading Undertakings,Trading Account Surpluses & Deficits,Premises,01-Apr-11,380024,864.18,REVENUE,Bull & Co Ltd
Peterborough City Council,Capital,Capital,Capital Pending Update to BS,01-Apr-11,380025,2968.8,CAPITAL,Bull & Co Ltd
Peterborough City Council,Capital,Capital,Capital Pending Update to BS,01-Apr-11,380043,1020,CAPITAL,Smooth Operators (Peterborough) Ltd
Peterborough City Council,Deficit/(Surplus) on Trading Undertakings,Trading Account Surpluses & Deficits,Supplies and Services,01-Apr-11,380048,1381.88,REVENUE,L Garfield (Builders) Ltd
Peterborough City Council,Deficit/(Surplus) on Trading Undertakings,Trading Account Surpluses & Deficits,Supplies and Services,01-Apr-11,380052,1515.32,REVENUE,L Garfield (Builders) Ltd
Peterborough City Council,Deficit/(Surplus) on Trading Undertakings,Trading Account Surpluses & Deficits,Premises,01-Apr-11,380079,619.2,REVENUE,Britannia Fire & Security Ltd
Peterborough City Council,Deficit/(Surplus) on Trading Undertakings,Trading Account Surpluses & Deficits,Supplies and Services,01-Apr-11,380090,4346.14,REVENUE,T Clarke East Limited
Peterborough City Council,"Cultural, Environmental and Planning Services",Recreation & Sport,Premises,01-Apr-11,380091,890.12,REVENUE,T Clarke East Limited
Peterborough City Council,Children's & Education Services - Children's Social Care,More than one Service Division,More than one Expenses Type,01-Apr-11,380096,1440,REVENUE,Redacted Personal Data
Peterborough City Council,Deficit/(Surplus) on Trading Undertakings,Trading Account Surpluses & Deficits,Premises,01-Apr-11,380099,762.96,REVENUE,T Clarke East Limited
Peterborough City Council,Deficit/(Surplus) on Trading Undertakings,Trading Account Surpluses & Deficits,Premises,01-Apr-11,380100,2820.26,REVENUE,T Clarke East Limited
Peterborough City Council,Deficit/(Surplus) on Trading Undertakings,Trading Account Surpluses & Deficits,Premises,01-Apr-11,380101,3594.13,REVENUE,T Clarke East Limited
Peterborough City Council,"Cultural, Environmental and Planning Services",Recreation & Sport,Premises,01-Apr-11,380104,1631.99,REVENUE,T Clarke East Limited
Peterborough City Council,"Cultural, Environmental and Planning Services",Recreation & Sport,Premises,01-Apr-11,380105,1508.69,REVENUE,T Clarke East Limited
Peterborough City Council,Children's & Education Services - Children's Social Care,Other Children's & Families Services,Supplies and Services,01-Apr-11,380108,5040,REVENUE,Fulbridge Associates
Peterborough City Council,Children's & Education Services - Children's Social Care,Other Children's & Families Services,Supplies and Services,01-Apr-11,380109,2520,REVENUE,Fulbridge Associates
Peterborough City Council,Capital,Capital,Capital Pending Update to BS,01-Apr-11,380113,2091.5,CAPITAL,ATG Access Ltd
Peterborough City Council,Children's & Education Services - Children's Social Care,Other Children's & Families Services,Supplies and Services,01-Apr-11,380114,1400,REVENUE,Fulbridge Associates
Peterborough City Council,Children's & Education Services - Children's Social Care,Other Children's & Families Services,Supplies and Services,01-Apr-11,380115,3360,REVENUE,Fulbridge Associates
Peterborough City Council,Support Services,Support Services,Supplies and Services,01-Apr-11,380116,1107.75,REVENUE,Signs Express
Peterborough City Council,Children's & Education Services - Children's Social Care,Other Children's & Families Services,Third Party Payments,01-Apr-11,380157,1410,REVENUE,Parent Focus
Peterborough City Council,"Cultural, Environmental and Planning Services",Development Control,Supplies and Services,01-Apr-11,380215,9000,REVENUE,Drivers Jonas Deloitte
Peterborough City Council,"Cultural, Environmental and Planning Services",Development Control,Supplies and Services,01-Apr-11,380222,7791.68,REVENUE,Drivers Jonas Deloitte
Peterborough City Council,Children's & Education Services - Children's Social Care,More than one Service Division,More than one Expenses Type,01-Apr-11,380224,1357.72,REVENUE,Children & Families Looked After Children
Peterborough City Council,Children's & Education Services - Children's Social Care,Youth Justice,Employees,01-Apr-11,380230,954.6,REVENUE,TXM Recruit Ltd
Peterborough City Council,Children's & Education Services - Children's Social Care,Youth Justice,Employees,01-Apr-11,380231,954.6,REVENUE,TXM Recruit Ltd
Peterborough City Council,Children's & Education Services - Children's Social Care,Youth Justice,Employees,01-Apr-11,380233,851.4,REVENUE,TXM Recruit Ltd
Peterborough City Council,Deficit/(Surplus) on Trading Undertakings,Trading Account Surpluses & Deficits,Premises,01-Apr-11,380241,3381.86,REVENUE,Cable Test
Peterborough City Council,Deficit/(Surplus) on Trading Undertakings,Trading Account Surpluses & Deficits,Premises,01-Apr-11,380243,3703.68,REVENUE,Stanground Carpets and Flooring
Peterborough City Council,Deficit/(Surplus) on Trading Undertakings,Trading Account Surpluses & Deficits,Premises,01-Apr-11,380259,3464.4,REVENUE,B Safe Electrical Services
Peterborough City Council,Housing Services,Homelessness,Supplies and Services,01-Apr-11,380308,550,REVENUE,Oak County Property Management
Peterborough City Council,Housing Services,Homelessness,Supplies and Services,01-Apr-11,380314,920,REVENUE,Letsrush
Peterborough City Council,Housing Services,Homelessness,Supplies and Services,01-Apr-11,380328,575,REVENUE,Property Line
Peterborough City Council,Children's & Education Services - Children's Social Care,Family Support Services,Supplies and Services,01-Apr-11,380356,32605.41,REVENUE,Gladstone Connect Ltd
Peterborough City Council,"Cultural, Environmental and Planning Services",Economic Development,Third Party Payments,01-Apr-11,380358,4500,REVENUE,Peterborough Womens Centre
Peterborough City Council,Children's & Education Services - Education,All Schools - apportion across sectors,Employees,04-Apr-11,367876,641.2,REVENUE,Advisory Centre For Education Ltd
Peterborough City Council,Capital,Capital,Capital Pending Update to BS,04-Apr-11,370485,15961.31,CAPITAL,Alban Shipping Ltd
Peterborough City Council,Capital,Capital,Capital Pending Update to BS,04-Apr-11,370767,7167.08,CAPITAL,Atkins Limited
Peterborough City Council,Children's & Education Services - Children's Social Care,Other Children's & Families Services,Supplies and Services,04-Apr-11,372245,4500,REVENUE,Peterborough Diocesan Family Care
Peterborough City Council,Children's & Education Services - Education,Support Services & Management Costs,Supplies and Services,04-Apr-11,372269,1163.25,REVENUE,Peterborough PCT
Peterborough City Council,Children's & Education Services - Children's Social Care,Children Looked After,Supplies and Services - Transfer Payments,04-Apr-11,373356,1282.08,REVENUE,Nene Valley Fostering Agency
Peterborough City Council,Children's & Education Services - Children's Social Care,Family Support Services,Premises,04-Apr-11,373360,1163.43,REVENUE,Cambridgeshire County Council
Peterborough City Council,Children's & Education Services - Children's Social Care,Children Looked After,Employees,04-Apr-11,373906,4000,REVENUE,Turnthecurve Ltd
Peterborough City Council,Children's & Education Services - Children's Social Care,Children Looked After,Supplies and Services - Transfer Payments,04-Apr-11,374007,17199.84,REVENUE,Positive Steps (Care Services) Ltd
Peterborough City Council,"Highways, Roads & Transport Services",Traffic management & Road Safety,Supplies and Services,04-Apr-11,374053,500.54,REVENUE,Johnston Press Midlands Division
Peterborough City Council,"Cultural, Environmental and Planning Services",Open Spaces,Supplies and Services,04-Apr-11,374220,2244,REVENUE,Andrew Belson Arboricultural Con.
Peterborough City Council,Children's & Education Services - Children's Social Care,Support Services & Management Costs,Supplies and Services,04-Apr-11,374343,3150,REVENUE,Redacted Personal Data
Peterborough City Council,Children's & Education Services - Children's Social Care,Children Looked After,Supplies and Services - Transfer Payments,04-Apr-11,374375,2626.12,REVENUE,Foster Care Associates Ltd FCA
Peterborough City Council,Deficit/(Surplus) on Trading Undertakings,Trading Account Surpluses & Deficits,Transport,04-Apr-11,374381,985,REVENUE,Apex Training Services
Peterborough City Council,Deficit/(Surplus) on Trading Undertakings,Trading Account Surpluses & Deficits,Premises,04-Apr-11,374647,560,REVENUE,Edwards Roofing Specialist
Peterborough City Council,"Highways, Roads & Transport Services",Street Lighting,Supplies and Services,04-Apr-11,374802,6252,REVENUE,HiLight Services Ltd
Peterborough City Council,Capital,Capital,Capital Pending Update to BS,04-Apr-11,374939,38307.17,CAPITAL,Alban Shipping Ltd
Peterborough City Council,"Highways, Roads & Transport Services",Public Transport,Supplies and Services,04-Apr-11,375013,2491,REVENUE,Stagecoach in Peterborough
Peterborough City Council,Deficit/(Surplus) on Trading Undertakings,Trading Account Surpluses & Deficits,Transport,04-Apr-11,375354,723.36,REVENUE,S M Engineering Ltd
Peterborough City Council,Deficit/(Surplus) on Trading Undertakings,Trading Account Surpluses & Deficits,Transport,04-Apr-11,375355,575.76,REVENUE,S M Engineering Ltd
Peterborough City Council,Support Services,Support Services,Supplies and Services,04-Apr-11,375444,900,REVENUE,Redacted Personal Data
Peterborough City Council,"Highways, Roads & Transport Services",Traffic management & Road Safety,Supplies and Services,04-Apr-11,376057,729,REVENUE,Colan Ltd
Peterborough City Council,Children's & Education Services - Education,Non-School Funding,Third Party Payments,04-Apr-11,376059,17988,REVENUE,Cambridgeshire County Council
Peterborough City Council,Housing Services,Homelessness,Employees,04-Apr-11,376168,603.39,REVENUE,Anne Corder Recruitment
Peterborough City Council,Housing Services,Homelessness,Employees,04-Apr-11,376172,595.54,REVENUE,Anne Corder Recruitment
Peterborough City Council,Housing Services,Homelessness,Employees,04-Apr-11,376173,575.94,REVENUE,Anne Corder Recruitment
Peterborough City Council,Housing Services,Homelessness,Employees,04-Apr-11,376176,603.39,REVENUE,Anne Corder Recruitment
Peterborough City Council,Housing Services,Homelessness,Employees,04-Apr-11,376178,513.25,REVENUE,Anne Corder Recruitment
Peterborough City Council,Children's & Education Services - Children's Social Care,Children Looked After,Supplies and Services - Transfer Payments,04-Apr-11,376284,2435.71,REVENUE,MJ Childrens Services
Peterborough City Council,Children's & Education Services - Children's Social Care,Children Looked After,Supplies and Services - Transfer Payments,04-Apr-11,376295,13330,REVENUE,MJ Childrens Services
Peterborough City Council,Children's & Education Services - Children's Social Care,Children Looked After,Supplies and Services - Transfer Payments,04-Apr-11,376298,2435.71,REVENUE,MJ Childrens Services
Peterborough City Council,Children's & Education Services - Children's Social Care,Children Looked After,Supplies and Services - Transfer Payments,04-Apr-11,376301,12090,REVENUE,MJ Childrens Services
Peterborough City Council,Children's & Education Services - Children's Social Care,Children Looked After,Supplies and Services - Transfer Payments,04-Apr-11,376307,13330,REVENUE,MJ Childrens Services
Peterborough City Council,Children's & Education Services - Children's Social Care,Children Looked After,Supplies and Services - Transfer Payments,04-Apr-11,376324,1951.6,REVENUE,Axiom Housing Association
Peterborough City Council,"Cultural, Environmental and Planning Services",Open Spaces,Premises,04-Apr-11,376387,1260,REVENUE,G M Carnell
Peterborough City Council,"Cultural, Environmental and Planning Services",Community Development,Supplies and Services,04-Apr-11,376611,666.04,REVENUE,Triple SSS Limited
Peterborough City Council,Children's & Education Services - Children's Social Care,Children Looked After,Employees,04-Apr-11,376663,1296,REVENUE,Care Recruitment UK Ltd
Peterborough City Council,Children's & Education Services - Children's Social Care,Support Services & Management Costs,Supplies and Services,04-Apr-11,376665,3555,REVENUE,Redacted Personal Data
Peterborough City Council,Children's & Education Services - Children's Social Care,Family Support Services,Third Party Payments,04-Apr-11,376818,15353,REVENUE,Peterborough Provider Services
Peterborough City Council,Children's & Education Services - Children's Social Care,Family Support Services,Employees,04-Apr-11,376820,17047.41,REVENUE,Peterborough Provider Services
Peterborough City Council,Children's & Education Services - Children's Social Care,Other Children's & Families Services,Supplies and Services,04-Apr-11,376857,12750,REVENUE,Peterborough Provider Services
Peterborough City Council,Support Services,Support Services,Employees,04-Apr-11,376954,960,REVENUE,CIPFA Business Ltd
Peterborough City Council,More than one Service Area Category,More than one Service Division,Balance Sheet,04-Apr-11,377020,23699.3,Balance Sheet,Peterborough Provider Services
Peterborough City Council,Children's & Education Services - Children's Social Care,Children Looked After,Supplies and Services - Transfer Payments,04-Apr-11,377065,22609.57,REVENUE,Lovell's Hall
Peterborough City Council,Children's & Education Services - Children's Social Care,Family Support Services,Third Party Payments,04-Apr-11,377194,43656,REVENUE,Welbourne Primary School
Peterborough City Council,"Cultural, Environmental and Planning Services",Economic Development,Employees,04-Apr-11,377216,1782,REVENUE,Hays Specialist Recruitment Ltd
Peterborough City Council,Children's & Education Services - Children's Social Care,Other Children's & Families Services,Employees,04-Apr-11,377219,1915.2,REVENUE,Medicare First
Peterborough City Council,Children's & Education Services - Education,Non-School Funding,Supplies and Services,04-Apr-11,377226,19503,REVENUE,Lovell's Hall
Peterborough City Council,Support Services,Support Services,Supplies and Services,04-Apr-11,377253,1650.26,REVENUE,Capita Business Services Ltd
Peterborough City Council,Children's & Education Services - Children's Social Care,Children Looked After,Supplies and Services - Transfer Payments,04-Apr-11,377257,1020,REVENUE,One Step Accomodation Ltd
Peterborough City Council,"Cultural, Environmental and Planning Services",Economic Development,More than one Expenses Type,04-Apr-11,377266,1386.01,REVENUE,Hays Specialist Recruitment Ltd
Peterborough City Council,"Cultural, Environmental and Planning Services","Cemetery, Crematorium & Mortuary Services",Supplies and Services,04-Apr-11,377277,704.24,REVENUE,Scribes Ltd
Peterborough City Council,"Cultural, Environmental and Planning Services",Culture & Heritage,Supplies and Services,04-Apr-11,377290,1187.5,REVENUE,The Morton Patnership
Peterborough City Council,Children's & Education Services - Education,Non-School Funding,Supplies and Services,04-Apr-11,377292,13000,REVENUE,Peterborough Diocesan Family Care
Peterborough City Council,Children's & Education Services - Children's Social Care,Other Children's & Families Services,Supplies and Services,04-Apr-11,377293,2250,REVENUE,Peterborough Diocesan Family Care
Peterborough City Council,"Cultural, Environmental and Planning Services","Cemetery, Crematorium & Mortuary Services",Premises,04-Apr-11,377313,2048.11,REVENUE,Facultatieve Technologies Ltd
Peterborough City Council,"Highways, Roads & Transport Services",Street Lighting,Premises,04-Apr-11,377317,684.86,REVENUE,E.ON Energy
Peterborough City Council,More than one Service Area Category,More than one Service Division,More than one Expenses Type,04-Apr-11,377328,1346.4,REVENUE,Hays Specialist Recruitment Ltd
Peterborough City Council,Children's & Education Services - Children's Social Care,Support Services & Management Costs,Employees,04-Apr-11,377702,1776,REVENUE,Blue Group International Ltd
Peterborough City Council,More than one Service Area Category,More than one Service Division,More than one Expenses Type,04-Apr-11,377709,4463,"Mixture of Capital, Revenue and/or Balance Sheet",Casbon Building Services
Peterborough City Council,More than one Service Area Category,More than one Service Division,Balance Sheet,04-Apr-11,378044,39308.4,Balance Sheet,SSI Schaefer Ltd
Peterborough City Council,"Highways, Roads & Transport Services",Street Lighting,Supplies and Services,04-Apr-11,378136,528,REVENUE,UK Power Networks (operations) Ltd
Peterborough City Council,Support Services,Support Services,Supplies and Services,04-Apr-11,378166,568.02,REVENUE,O2 (UK) Ltd
Peterborough City Council,Children's & Education Services - Children's Social Care,Other Children's & Families Services,Supplies and Services,04-Apr-11,378207,1100,REVENUE,Peterborough Diocesan Family Care
Peterborough City Council,Support Services,Support Services,Supplies and Services,04-Apr-11,378224,4620,REVENUE,Ntrinsic Consulting Europe Ltd
Peterborough City Council,Children's & Education Services - Children's Social Care,Support Services & Management Costs,Supplies and Services,04-Apr-11,378547,1200,REVENUE,Redacted Personal Data
Peterborough City Council,Housing Services,Private Sector Housing Renewal,Supplies and Services,04-Apr-11,378877,5841.6,REVENUE,Burmor Construction
Peterborough City Council,Housing Services,Private Sector Housing Renewal,Supplies and Services,04-Apr-11,378880,1030.8,REVENUE,Burmor Construction
Peterborough City Council,Children's & Education Services - Education,Secondary,Supplies and Services,04-Apr-11,379007,4000,REVENUE,Peterborough Regional College
Peterborough City Council,Children's & Education Services - Children's Social Care,Children Looked After,Supplies and Services,04-Apr-11,379024,22564,REVENUE,Knossington Grange School Ltd
Peterborough City Council,Capital,Capital,Capital Pending Update to BS,04-Apr-11,379424,10565.64,CAPITAL,Bull & Co Ltd
Peterborough City Council,Deficit/(Surplus) on Trading Undertakings,Trading Account Surpluses & Deficits,Employees,04-Apr-11,379437,700.35,REVENUE,Taskforce Recruitment (Peterborough)
Peterborough City Council,Deficit/(Surplus) on Trading Undertakings,Trading Account Surpluses & Deficits,Employees,04-Apr-11,379439,1335.35,REVENUE,Taskforce Recruitment (Peterborough)
Peterborough City Council,"Cultural, Environmental and Planning Services",Waste Collection,Employees,04-Apr-11,379443,647.59,REVENUE,Taskforce Recruitment (Peterborough)
Peterborough City Council,Deficit/(Surplus) on Trading Undertakings,Trading Account Surpluses & Deficits,Supplies and Services,04-Apr-11,379544,1992,REVENUE,Chris Groome Decorating
Peterborough City Council,Deficit/(Surplus) on Trading Undertakings,Trading Account Surpluses & Deficits,Transport,04-Apr-11,379569,530.71,REVENUE,Hollis & Brown Autotech
Peterborough City Council,"Cultural, Environmental and Planning Services",Community Development,Third Party Payments,04-Apr-11,379971,5000,REVENUE,Peterborough Mediation
Peterborough City Council,Capital,Capital,Capital Pending Update to BS,04-Apr-11,379972,500,CAPITAL,Honeyhill Drama Group
Peterborough City Council,Capital,Capital,Capital Pending Update to BS,04-Apr-11,379973,500,CAPITAL,Noah's Ark Pre-School
Peterborough City Council,Children's & Education Services - Children's Social Care,Children Looked After,Supplies and Services - Transfer Payments,04-Apr-11,380155,1964.28,REVENUE,MJ Childrens Services
Peterborough City Council,Children's & Education Services - Children's Social Care,Children Looked After,Supplies and Services - Transfer Payments,04-Apr-11,380156,885.71,REVENUE,MJ Childrens Services
Peterborough City Council,Children's & Education Services - Children's Social Care,Management and support services,Premises,04-Apr-11,380165,1108.8,REVENUE,Bull & Co Ltd
Peterborough City Council,Children's & Education Services - Education,Non-School Funding,Premises,04-Apr-11,380298,553.8,REVENUE,Heritage Park Primary School
Peterborough City Council,"Cultural, Environmental and Planning Services",Development Control,Supplies and Services,04-Apr-11,380320,1560,REVENUE,Landmark Chambers
Peterborough City Council,"Cultural, Environmental and Planning Services",Community Development,Third Party Payments,04-Apr-11,380424,1200,REVENUE,Peterborough Racial Equality Council
Peterborough City Council,Children's & Education Services - Education,Non-School Funding,Transport,04-Apr-11,380454,1372.8,REVENUE,Redacted Personal Data
Peterborough City Council,Support Services,Support Services,Supplies and Services,04-Apr-11,380457,7566.9,REVENUE,Civica UK Limited
Peterborough City Council,"Highways, Roads & Transport Services",Parking Services,Supplies and Services,04-Apr-11,380460,17844.84,REVENUE,Imperial Civil Enforcement Solutions
Peterborough City Council,More than one Service Area Category,More than one Service Division,More than one Expenses Type,04-Apr-11,380484,1560.8,REVENUE,Redacted Personal Data
Peterborough City Council,More than one Service Area Category,More than one Service Division,Transport,04-Apr-11,380487,949.2,REVENUE,Redacted Personal Data
Peterborough City Council,More than one Service Area Category,More than one Service Division,More than one Expenses Type,04-Apr-11,380488,1211,REVENUE,Redacted Personal Data
Peterborough City Council,Children's & Education Services - Education,Secondary,Supplies and Services,04-Apr-11,380551,4976.4,REVENUE,Rider Levett Bucknall UK Ltd
Peterborough City Council,"Highways, Roads & Transport Services",Traffic management & Road Safety,Supplies and Services,04-Apr-11,380556,705.6,REVENUE,Johnston Press Midlands Division
Peterborough City Council,Children's & Education Services - Education,Non-School Funding,Employees,04-Apr-11,380602,23555.11,REVENUE,Teachers Pensions
Peterborough City Council,More than one Service Area Category,More than one Service Division,Balance Sheet,04-Apr-11,380603,6301.26,Balance Sheet,The Prudential Assurance Company Ltd
Peterborough City Council,More than one Service Area Category,More than one Service Division,Balance Sheet,04-Apr-11,380605,8612.34,Balance Sheet,The Prudential Assurance Company Ltd
Peterborough City Council,More than one Service Area Category,More than one Service Division,Balance Sheet,04-Apr-11,380610,854472.73,Balance Sheet,Teachers Pensions
Peterborough City Council,Support Services,Support Services,Supplies and Services,05-Apr-11,380680,-11436.28,REVENUE,Audit Commission
Peterborough City Council,Support Services,Support Services,Supplies and Services,06-Apr-11,277414,562.35,REVENUE,Dell Computer Corporation Ltd
Peterborough City Council,Children's & Education Services - Children's Social Care,Family Support Services,Supplies and Services,06-Apr-11,363198,652,REVENUE,Goldsborough Homecare
Peterborough City Council,Children's & Education Services - Children's Social Care,Children Looked After,Supplies and Services,06-Apr-11,364119,3150,REVENUE,Redacted Personal Data
Peterborough City Council,Deficit/(Surplus) on Trading Undertakings,Trading Account Surpluses & Deficits,Premises,06-Apr-11,365259,2280,REVENUE,Cattrell Associates Ltd
Peterborough City Council,Children's & Education Services - Children's Social Care,Family Support Services,Supplies and Services,06-Apr-11,367265,696,REVENUE,Goldsborough Homecare
Peterborough City Council,Children's & Education Services - Children's Social Care,Family Support Services,Supplies and Services,06-Apr-11,367667,696,REVENUE,Goldsborough Homecare
Peterborough City Council,Children's & Education Services - Children's Social Care,Family Support Services,Supplies and Services,06-Apr-11,368549,696,REVENUE,Goldsborough Homecare
Peterborough City Council,Adult Social Care,Other Adult Services,Supplies and Services,06-Apr-11,368572,4026.6,REVENUE,Frontier Medical
Peterborough City Council,Adult Social Care,Other Adult Services,Supplies and Services,06-Apr-11,368573,1307.4,REVENUE,Frontier Medical
Peterborough City Council,Children's & Education Services - Children's Social Care,Family Support Services,Supplies and Services,06-Apr-11,371064,684,REVENUE,Goldsborough Homecare
Peterborough City Council,Children's & Education Services - Children's Social Care,Family Support Services,Supplies and Services,06-Apr-11,371656,696,REVENUE,Goldsborough Homecare
Peterborough City Council,"Cultural, Environmental and Planning Services",Waste Collection,Supplies and Services,06-Apr-11,374222,6000,REVENUE,Springboard Design
Peterborough City Council,Deficit/(Surplus) on Trading Undertakings,Trading Account Surpluses & Deficits,Supplies and Services,06-Apr-11,374538,7056,REVENUE,Aqua Environmental Services
Peterborough City Council,Capital,Capital,Capital Pending Update to BS,06-Apr-11,374859,2476.8,CAPITAL,M Bissell Display Ltd
Peterborough City Council,Support Services,Support Services,Employees,06-Apr-11,374882,3022,REVENUE,De Montfort University
Peterborough City Council,Support Services,Support Services,Supplies and Services,06-Apr-11,374976,999,REVENUE,Key People Ltd
Peterborough City Council,Deficit/(Surplus) on Trading Undertakings,Trading Account Surpluses & Deficits,Transport,06-Apr-11,375299,546,REVENUE,Apex Training Services
Peterborough City Council,Deficit/(Surplus) on Trading Undertakings,Trading Account Surpluses & Deficits,Transport,06-Apr-11,375303,985,REVENUE,Apex Training Services
Peterborough City Council,Deficit/(Surplus) on Trading Undertakings,Trading Account Surpluses & Deficits,Transport,06-Apr-11,375356,643.5,REVENUE,Dennis Eagle
Peterborough City Council,Children's & Education Services - Children's Social Care,Family Support Services,Supplies and Services,06-Apr-11,375373,744,REVENUE,Goldsborough Homecare
Peterborough City Council,Capital,Capital,Capital Pending Update to BS,06-Apr-11,375415,8505,CAPITAL,Vysionics ITS Limited
Peterborough City Council,Capital,Capital,Capital Pending Update to BS,06-Apr-11,375425,15140.52,CAPITAL,Vysionics ITS Limited
Peterborough City Council,Capital,Capital,Capital Pending Update to BS,06-Apr-11,375426,22514.76,CAPITAL,Vysionics ITS Limited
Peterborough City Council,"Cultural, Environmental and Planning Services",Community Development,Supplies and Services,06-Apr-11,375432,2743.44,REVENUE,MCE Corporate Gifts
Peterborough City Council,Children's & Education Services - Education,Secondary,Supplies and Services,06-Apr-11,375456,1254,REVENUE,NACRO
Peterborough City Council,Children's & Education Services - Education,Non-School Funding,Employees,06-Apr-11,376082,4890.6,REVENUE,Top Class Tutors
Peterborough City Council,Children's & Education Services - Children's Social Care,Children Looked After,Supplies and Services,06-Apr-11,376127,2580,REVENUE,PACT
Peterborough City Council,Capital,Capital,Capital Pending Update to BS,06-Apr-11,376131,1206.5,CAPITAL,Wilson & Scott (Highways) Ltd
Peterborough City Council,"Cultural, Environmental and Planning Services",Environmental Initiatives,Supplies and Services,06-Apr-11,376260,500,REVENUE,Redacted Personal Data
Peterborough City Council,Children's & Education Services - Children's Social Care,Family Support Services,Premises,06-Apr-11,376317,1675.2,REVENUE,Phoenix School
Peterborough City Council,Capital,Capital,Capital Pending Update to BS,06-Apr-11,376329,959.9,CAPITAL,ACIS
Peterborough City Council,"Cultural, Environmental and Planning Services",Economic Development,Employees,06-Apr-11,376337,1165.03,REVENUE,Randstad CPE
Peterborough City Council,Children's & Education Services - Children's Social Care,Family Support Services,Employees,06-Apr-11,376339,974.4,REVENUE,J C M Seating Solutions
Peterborough City Council,Children's & Education Services - Children's Social Care,Family Support Services,Supplies and Services,06-Apr-11,376340,3229.25,REVENUE,Anglia Support Partnership
Peterborough City Council,Adult Social Care,Other Adult Services,Supplies and Services,06-Apr-11,376367,780,REVENUE,Frontier Medical
Peterborough City Council,Adult Social Care,Other Adult Services,Supplies and Services,06-Apr-11,376368,1404.6,REVENUE,Frontier Medical
Peterborough City Council,"Highways, Roads & Transport Services","Environmental, Safety & Routine Maintenance",Supplies and Services,06-Apr-11,376612,2801.18,REVENUE,Telent Technology Services Ltd
Peterborough City Council,"Highways, Roads & Transport Services","Environmental, Safety & Routine Maintenance",Supplies and Services,06-Apr-11,376614,4559.04,REVENUE,Telent Technology Services Ltd
Peterborough City Council,"Highways, Roads & Transport Services","Environmental, Safety & Routine Maintenance",Supplies and Services,06-Apr-11,376616,4559.04,REVENUE,Telent Technology Services Ltd
Peterborough City Council,"Highways, Roads & Transport Services","Environmental, Safety & Routine Maintenance",Supplies and Services,06-Apr-11,376618,4559.04,REVENUE,Telent Technology Services Ltd
Peterborough City Council,Children's & Education Services - Children's Social Care,Other Children's & Families Services,Supplies and Services,06-Apr-11,376628,967.2,REVENUE,"Metcalfe, Copeman and Pettefar Solicitors"
Peterborough City Council,Children's & Education Services - Education,Non-School Funding,Supplies and Services,06-Apr-11,376833,1600,REVENUE,Redacted Personal Data
Peterborough City Council,"Cultural, Environmental and Planning Services",Building Control,Employees,06-Apr-11,376848,2591.92,REVENUE,District Surveyors Ltd t/a LABC
Peterborough City Council,"Highways, Roads & Transport Services",Street Lighting,Supplies and Services,06-Apr-11,376849,783.91,REVENUE,E.ON Energy
Peterborough City Council,Central Services to the Public,Local Tax,Supplies and Services,06-Apr-11,376859,1323,REVENUE,Johnston Press Midlands Division
Peterborough City Council,"Cultural, Environmental and Planning Services",Development Control,Supplies and Services,06-Apr-11,376860,529.19,REVENUE,Johnston Press Midlands Division
Peterborough City Council,Children's & Education Services - Children's Social Care,Other Children's & Families Services,Employees,06-Apr-11,376864,1464,REVENUE,Frontline Staffing Ltd
Peterborough City Council,Children's & Education Services - Children's Social Care,Other Children's & Families Services,Employees,06-Apr-11,376866,1776,REVENUE,Frontline Staffing Ltd
Peterborough City Council,Children's & Education Services - Children's Social Care,Other Children's & Families Services,Employees,06-Apr-11,376867,984,REVENUE,Frontline Staffing Ltd
Peterborough City Council,Children's & Education Services - Children's Social Care,Children Looked After,Supplies and Services,06-Apr-11,376917,10840.2,REVENUE,St Andrew's Healthcare
Peterborough City Council,Children's & Education Services - Education,Secondary,Supplies and Services,06-Apr-11,376951,66627.27,REVENUE,IIC by Education (P'boro) Ltd
Peterborough City Council,Children's & Education Services - Children's Social Care,Children Looked After,Supplies and Services,06-Apr-11,376963,3694.8,REVENUE,Link Design
Peterborough City Council,Children's & Education Services - Children's Social Care,Children Looked After,Supplies and Services,06-Apr-11,376966,2863.2,REVENUE,Link Design
Peterborough City Council,"Cultural, Environmental and Planning Services",Economic Development,Employees,06-Apr-11,376987,1362.91,REVENUE,Hays Specialist Recruitment Ltd
Peterborough City Council,"Cultural, Environmental and Planning Services",Economic Development,Employees,06-Apr-11,376989,2014.99,REVENUE,Hays Specialist Recruitment Ltd
Peterborough City Council,"Cultural, Environmental and Planning Services",Economic Development,Employees,06-Apr-11,376999,1533.6,REVENUE,Hays Specialist Recruitment Ltd
Peterborough City Council,More than one Service Area Category,More than one Service Division,More than one Expenses Type,06-Apr-11,377002,274722.36,"Mixture of Capital, Revenue and/or Balance Sheet",Ringway Infrastructure Services
Peterborough City Council,Children's & Education Services - Children's Social Care,Youth Justice,Employees,06-Apr-11,377003,672,REVENUE,The British Psychological Society (CORE)
Peterborough City Council,"Cultural, Environmental and Planning Services","Cemetery, Crematorium & Mortuary Services",Supplies and Services,06-Apr-11,377005,589.64,REVENUE,Konica Minolta Bus.Sol. East Ltd
Peterborough City Council,Children's & Education Services - Education,Non-School Funding,Supplies and Services,06-Apr-11,377021,1440,REVENUE,Top Class Tutors
Peterborough City Council,Children's & Education Services - Education,Non-School Funding,Supplies and Services,06-Apr-11,377023,1440,REVENUE,Top Class Tutors
Peterborough City Council,Children's & Education Services - Education,Secondary,Employees,06-Apr-11,377068,4118.4,REVENUE,Top Class Tutors
Peterborough City Council,Children's & Education Services - Education,Secondary,Supplies and Services,06-Apr-11,377070,1296,REVENUE,Top Class Tutors
Peterborough City Council,Housing Services,Housing Benefits,Employees,06-Apr-11,377114,1240.2,REVENUE,The Synergy Group
Peterborough City Council,Housing Services,Housing Benefits,Employees,06-Apr-11,377115,1490.4,REVENUE,The Synergy Group
Peterborough City Council,Housing Services,Housing Benefits,Employees,06-Apr-11,377117,1267.2,REVENUE,The Synergy Group
Peterborough City Council,Housing Services,Housing Benefits,Employees,06-Apr-11,377118,1200,REVENUE,The Synergy Group
Peterborough City Council,Central Services to the Public,Local Tax,Employees,06-Apr-11,377119,1267.2,REVENUE,The Synergy Group
Peterborough City Council,Central Services to the Public,Local Tax,Employees,06-Apr-11,377120,1593.6,REVENUE,The Synergy Group
Peterborough City Council,Children's & Education Services - Children's Social Care,Children Looked After,Supplies and Services - Transfer Payments,06-Apr-11,377126,2907.49,REVENUE,Foster Care Associates Ltd FCA
Peterborough City Council,Children's & Education Services - Children's Social Care,Children Looked After,Supplies and Services - Transfer Payments,06-Apr-11,377128,2907.49,REVENUE,Foster Care Associates Ltd FCA
Peterborough City Council,Children's & Education Services - Children's Social Care,Children Looked After,Supplies and Services - Transfer Payments,06-Apr-11,377134,3556.01,REVENUE,Foster Care Associates Ltd FCA
Peterborough City Council,Children's & Education Services - Children's Social Care,Children Looked After,Supplies and Services - Transfer Payments,06-Apr-11,377137,3556.01,REVENUE,Foster Care Associates Ltd FCA
Peterborough City Council,Children's & Education Services - Children's Social Care,Children Looked After,Supplies and Services - Transfer Payments,06-Apr-11,377140,3556.01,REVENUE,Foster Care Associates Ltd FCA
Peterborough City Council,Children's & Education Services - Children's Social Care,Children Looked After,Supplies and Services - Transfer Payments,06-Apr-11,377143,3556.01,REVENUE,Foster Care Associates Ltd FCA
Peterborough City Council,Children's & Education Services - Children's Social Care,Children Looked After,Supplies and Services - Transfer Payments,06-Apr-11,377145,3556.01,REVENUE,Foster Care Associates Ltd FCA
Peterborough City Council,Children's & Education Services - Children's Social Care,Children Looked After,Supplies and Services - Transfer Payments,06-Apr-11,377146,3556.01,REVENUE,Foster Care Associates Ltd FCA
Peterborough City Council,Children's & Education Services - Children's Social Care,Children Looked After,Supplies and Services - Transfer Payments,06-Apr-11,377147,2907.49,REVENUE,Foster Care Associates Ltd FCA
Peterborough City Council,Children's & Education Services - Children's Social Care,Children Looked After,Supplies and Services - Transfer Payments,06-Apr-11,377148,4380.3,REVENUE,Foster Care Associates Ltd FCA
Peterborough City Council,Children's & Education Services - Children's Social Care,Children Looked After,Supplies and Services - Transfer Payments,06-Apr-11,377149,3556.01,REVENUE,Foster Care Associates Ltd FCA
Peterborough City Council,Children's & Education Services - Education,Non-School Funding,Supplies and Services,06-Apr-11,377154,1040,REVENUE,Wordswell Ltd
Peterborough City Council,Children's & Education Services - Children's Social Care,Children Looked After,Supplies and Services - Transfer Payments,06-Apr-11,377159,3556.01,REVENUE,Foster Care Associates Ltd FCA
Peterborough City Council,Children's & Education Services - Children's Social Care,Children Looked After,Supplies and Services - Transfer Payments,06-Apr-11,377162,3556.01,REVENUE,Foster Care Associates Ltd FCA
Peterborough City Council,Children's & Education Services - Children's Social Care,Children Looked After,Supplies and Services - Transfer Payments,06-Apr-11,377167,3556.01,REVENUE,Foster Care Associates Ltd FCA
Peterborough City Council,Children's & Education Services - Children's Social Care,Other Children's & Families Services,Third Party Payments,06-Apr-11,377229,10000,REVENUE,Ormiston Children & Families Trust
Peterborough City Council,"Highways, Roads & Transport Services",Highways/road (structural),Transport,06-Apr-11,377236,935.36,REVENUE,Atkins Limited
Peterborough City Council,Capital,Capital,Capital Pending Update to BS,06-Apr-11,377237,2613.37,CAPITAL,Atkins Limited
Peterborough City Council,"Highways, Roads & Transport Services","Transport planning, policy and strategy",Transport,06-Apr-11,377238,4655.76,REVENUE,Atkins Limited
Peterborough City Council,Children's & Education Services - Education,Non-School Funding,Employees,06-Apr-11,377244,1680,REVENUE,Cambridgeshire County Council
Peterborough City Council,"Highways, Roads & Transport Services","Environmental, Safety & Routine Maintenance",Supplies and Services,06-Apr-11,377256,4791.17,REVENUE,ACIS
Peterborough City Council,Children's & Education Services - Education,Non-School Funding,Supplies and Services,06-Apr-11,377260,720,REVENUE,Top Class Tutors
Peterborough City Council,Children's & Education Services - Education,Non-School Funding,Supplies and Services,06-Apr-11,377261,1440,REVENUE,Top Class Tutors
Peterborough City Council,Children's & Education Services - Education,Non-School Funding,Supplies and Services,06-Apr-11,377262,1344,REVENUE,Top Class Tutors
Peterborough City Council,Children's & Education Services - Education,Non-School Funding,Supplies and Services,06-Apr-11,377263,1344,REVENUE,Top Class Tutors
Peterborough City Council,Children's & Education Services - Education,Non-School Funding,Supplies and Services,06-Apr-11,377264,1440,REVENUE,Top Class Tutors
Peterborough City Council,Adult Social Care,Support Services & Management Costs,Third Party Payments,06-Apr-11,377269,32940,REVENUE,Shaw Trust
Peterborough City Council,Children's & Education Services - Children's Social Care,Children Looked After,Employees,06-Apr-11,377270,1512,REVENUE,Capita Resourcing Ltd
Peterborough City Council,Children's & Education Services - Education,Non-School Funding,Supplies and Services,06-Apr-11,377273,4500,REVENUE,Peterborough Provider Services
Peterborough City Council,Capital,Capital,Capital Pending Update to BS,06-Apr-11,377275,2430,CAPITAL,Vysionics ITS Limited
Peterborough City Council,Children's & Education Services - Education,Non-School Funding,Supplies and Services,06-Apr-11,377281,137692.22,REVENUE,Cambridgeshire County Council
Peterborough City Council,Children's & Education Services - Education,Non-School Funding,Employees,06-Apr-11,377287,1197.34,REVENUE,I CAN Charity
Peterborough City Council,"Cultural, Environmental and Planning Services",Environmental Initiatives,Supplies and Services,06-Apr-11,377291,719.28,REVENUE,Ecofreak
Peterborough City Council,Children's & Education Services - Children's Social Care,Children Looked After,Supplies and Services - Transfer Payments,06-Apr-11,377297,8520.96,REVENUE,Portsmouth City Council
Peterborough City Council,Children's & Education Services - Children's Social Care,Family Support Services,Supplies and Services,06-Apr-11,377301,4187.5,REVENUE,Peterborough Provider Services
Peterborough City Council,Children's & Education Services - Children's Social Care,Children Looked After,Employees,06-Apr-11,377305,597.55,REVENUE,Randstad Care
Peterborough City Council,Children's & Education Services - Education,Non-School Funding,Supplies and Services,06-Apr-11,377308,54118,REVENUE,Seashell Trust Royal School Mcr
Peterborough City Council,"Highways, Roads & Transport Services",Traffic management & Road Safety,Supplies and Services,06-Apr-11,377320,4200,REVENUE,Tiny Giants Productions Ltd
Peterborough City Council,Children's & Education Services - Children's Social Care,Children Looked After,Supplies and Services - Transfer Payments,06-Apr-11,377379,2907.49,REVENUE,Foster Care Associates Ltd FCA
Peterborough City Council,Children's & Education Services - Children's Social Care,Children Looked After,Supplies and Services - Transfer Payments,06-Apr-11,377380,2907.49,REVENUE,Foster Care Associates Ltd FCA
Peterborough City Council,Children's & Education Services - Children's Social Care,Children Looked After,Supplies and Services - Transfer Payments,06-Apr-11,377381,2907.49,REVENUE,Foster Care Associates Ltd FCA
Peterborough City Council,Children's & Education Services - Children's Social Care,Children Looked After,Supplies and Services - Transfer Payments,06-Apr-11,377383,3556.01,REVENUE,Foster Care Associates Ltd FCA
Peterborough City Council,"Cultural, Environmental and Planning Services",Economic Development,Employees,06-Apr-11,377660,13490.4,REVENUE,Macdonald & Company
Peterborough City Council,Capital,Capital,Capital Pending Update to BS,06-Apr-11,377662,3654.28,CAPITAL,Atkins Limited
Peterborough City Council,Capital,Capital,Capital Pending Update to BS,06-Apr-11,377665,13711.37,CAPITAL,Atkins Limited
Peterborough City Council,Capital,Capital,Capital Pending Update to BS,06-Apr-11,377666,776.28,CAPITAL,Atkins Limited
Peterborough City Council,"Highways, Roads & Transport Services","Transport planning, policy and strategy",Transport,06-Apr-11,377668,4361.02,REVENUE,Atkins Limited
Peterborough City Council,"Highways, Roads & Transport Services","Transport planning, policy and strategy",Transport,06-Apr-11,377673,1258.26,REVENUE,Atkins Limited
Peterborough City Council,"Highways, Roads & Transport Services","Transport planning, policy and strategy",Transport,06-Apr-11,377678,3908.42,REVENUE,Atkins Limited
Peterborough City Council,"Highways, Roads & Transport Services","Transport planning, policy and strategy",Supplies and Services,06-Apr-11,377685,2962.82,REVENUE,Atkins Limited
Peterborough City Council,"Highways, Roads & Transport Services","Transport planning, policy and strategy",Transport,06-Apr-11,377689,1395.67,REVENUE,Atkins Limited
Peterborough City Council,Capital,Capital,Capital Pending Update to BS,06-Apr-11,377693,9513.3,CAPITAL,Atkins Limited
Peterborough City Council,Children's & Education Services - Education,Non-School Funding,Employees,06-Apr-11,377776,985.2,REVENUE,Mana Resourcing Ltd
Peterborough City Council,"Cultural, Environmental and Planning Services",Environmental Initiatives,Supplies and Services,06-Apr-11,377810,585.5,REVENUE,Bull Hotel
Peterborough City Council,Support Services,Support Services & Management Costs,Supplies and Services,06-Apr-11,378098,1855.63,REVENUE,Everything Everywhere Ltd
Peterborough City Council,Deficit/(Surplus) on Trading Undertakings,Trading Account Surpluses & Deficits,Supplies and Services,06-Apr-11,378100,806.25,REVENUE,Everything Everywhere Ltd
Peterborough City Council,Children's & Education Services - Children's Social Care,Support Services & Management Costs,Supplies and Services,06-Apr-11,378101,3678.08,REVENUE,Everything Everywhere Ltd
Peterborough City Council,Corporate & Democratic Core,Corporate Management,Supplies and Services,06-Apr-11,378103,1139.26,REVENUE,Everything Everywhere Ltd
Peterborough City Council,Deficit/(Surplus) on Trading Undertakings,Trading Account Surpluses & Deficits,Supplies and Services,06-Apr-11,378117,776.88,REVENUE,Taskmaster Resources Ltd
Peterborough City Council,Deficit/(Surplus) on Trading Undertakings,Trading Account Surpluses & Deficits,Employees,06-Apr-11,378123,1078.58,REVENUE,Driver Hire Cambridge
Peterborough City Council,Children's & Education Services - Children's Social Care,Other Children's & Families Services,Supplies and Services,06-Apr-11,378124,2050.32,REVENUE,CINTRA Ltd
Peterborough City Council,Children's & Education Services - Children's Social Care,Other Children's & Families Services,Supplies and Services,06-Apr-11,378125,815.04,REVENUE,CINTRA Ltd
Peterborough City Council,Children's & Education Services - Children's Social Care,Other Children's & Families Services,Supplies and Services,06-Apr-11,378133,1618.49,REVENUE,CINTRA Ltd
Peterborough City Council,Children's & Education Services - Children's Social Care,Other Children's & Families Services,Supplies and Services,06-Apr-11,378137,1067.47,REVENUE,CINTRA Ltd
Peterborough City Council,"Highways, Roads & Transport Services",Public Transport,Supplies and Services,06-Apr-11,378164,1237.34,REVENUE,Veolia Transport UK Ltd
Peterborough City Council,Children's & Education Services - Children's Social Care,Support Services & Management Costs,Supplies and Services,06-Apr-11,378176,900,REVENUE,Redacted Personal Data
Peterborough City Council,Children's & Education Services - Education,Non-School Funding,Premises,06-Apr-11,378185,720,REVENUE,1st Medehamstede Scout Group
Peterborough City Council,Children's & Education Services - Children's Social Care,Family Support Services,Supplies and Services,06-Apr-11,378197,696,REVENUE,Goldsborough Homecare
Peterborough City Council,Deficit/(Surplus) on Trading Undertakings,Trading Account Surpluses & Deficits,Supplies and Services,06-Apr-11,378203,1687.56,REVENUE,Niagara LaSalle (UK) Ltd
Peterborough City Council,Children's & Education Services - Children's Social Care,Family Support Services,Premises,06-Apr-11,378213,1342.04,REVENUE,PAM Recruitment Ltd
Peterborough City Council,Children's & Education Services - Children's Social Care,Family Support Services,Supplies and Services,06-Apr-11,378226,543.96,REVENUE,TTS Group Ltd
Peterborough City Council,"Cultural, Environmental and Planning Services",Regulatory services,Supplies and Services,06-Apr-11,378378,4500,REVENUE,Doyl'y Arts
Peterborough City Council,Children's & Education Services - Children's Social Care,Other Children's & Families Services,Supplies and Services,06-Apr-11,378442,1620.25,REVENUE,Social Support Limited
Peterborough City Council,Children's & Education Services - Education,Non-School Funding,Supplies and Services,06-Apr-11,378507,625.57,REVENUE,CINTRA Ltd
Peterborough City Council,Court Services,Coroner's Court Service,Supplies and Services,06-Apr-11,378519,1029.6,REVENUE,Anglia Co-operative Funerals
Peterborough City Council,Court Services,Coroner's Court Service,Supplies and Services,06-Apr-11,378520,650,REVENUE,Redacted Personal Data
Peterborough City Council,Children's & Education Services - Children's Social Care,Support Services & Management Costs,Supplies and Services,06-Apr-11,378546,1500,REVENUE,Redacted Personal Data
Peterborough City Council,Support Services,Support Services,Supplies and Services,06-Apr-11,378562,1632.06,REVENUE,Royal Mail
Peterborough City Council,More than one Service Area Category,More than one Service Division,Balance Sheet,06-Apr-11,378613,3600,Balance Sheet,Rubicon Law
Peterborough City Council,More than one Service Area Category,More than one Service Division,Balance Sheet,06-Apr-11,378616,566,Balance Sheet,Dept for Work & Pensions
Peterborough City Council,Children's & Education Services - Children's Social Care,Children Looked After,Supplies and Services,06-Apr-11,378731,2411.1,REVENUE,J Newcombe & Co
Peterborough City Council,Deficit/(Surplus) on Trading Undertakings,Trading Account Surpluses & Deficits,Supplies and Services,06-Apr-11,379423,2640,REVENUE,P E Coles Ltd
Peterborough City Council,Deficit/(Surplus) on Trading Undertakings,Trading Account Surpluses & Deficits,Employees,06-Apr-11,379434,2002.81,REVENUE,City Resource Ltd
Peterborough City Council,Capital,Capital,Capital Pending Update to BS,06-Apr-11,379507,115898.03,CAPITAL,E N Suiter & Sons Ltd
Peterborough City Council,Support Services,Support Services,Supplies and Services,06-Apr-11,379562,1140,REVENUE,Crystal Clear Trading Ltd
Peterborough City Council,Support Services,Support Services,Employees,06-Apr-11,379659,1135.37,REVENUE,Sacco Mann Ltd
Peterborough City Council,More than one Service Area Category,More than one Service Division,More than one Expenses Type,06-Apr-11,379929,2587,"Mixture of Capital, Revenue and/or Balance Sheet",Premier Mobility
Peterborough City Council,More than one Service Area Category,More than one Service Division,More than one Expenses Type,06-Apr-11,379960,5388,"Mixture of Capital, Revenue and/or Balance Sheet",Redacted Personal Data
Peterborough City Council,Capital,Capital,Capital Pending Update to BS,06-Apr-11,379961,4751.25,CAPITAL,Blueflag
Peterborough City Council,Deficit/(Surplus) on Trading Undertakings,Trading Account Surpluses & Deficits,Premises,06-Apr-11,380210,1219.2,REVENUE,L Garfield (Builders) Ltd
Peterborough City Council,Corporate & Democratic Core,Democratic Representation & Managemetn,Supplies and Services,06-Apr-11,380218,1200,REVENUE,Smooth Operators (Peterborough) Ltd
Peterborough City Council,Capital,Capital,Capital Pending Update to BS,06-Apr-11,380242,2417.86,CAPITAL,Frederick F Smith (Builders) Ltd
Peterborough City Council,"Cultural, Environmental and Planning Services",Community Development,Third Party Payments,06-Apr-11,380354,4700,REVENUE,Husaini Islamic Centre
Peterborough City Council,Deficit/(Surplus) on Trading Undertakings,Trading Account Surpluses & Deficits,Supplies and Services,06-Apr-11,380355,4906.72,REVENUE,Barron Clark Castings Ltd
Peterborough City Council,"Cultural, Environmental and Planning Services",Community Development,Third Party Payments,06-Apr-11,380370,4700,REVENUE,Faizan e Madina Mosque
Peterborough City Council,"Cultural, Environmental and Planning Services",Community Development,Third Party Payments,06-Apr-11,380420,4700,REVENUE,Jamia Ghousia Mosque
Peterborough City Council,Children's & Education Services - Children's Social Care,Other Children's & Families Services,Employees,06-Apr-11,380475,1221.67,REVENUE,Blue Group International Ltd
Peterborough City Council,Support Services,Support Services,Supplies and Services,06-Apr-11,380523,13770,REVENUE,AMTEC Consulting Plc
Peterborough City Council,Capital,Capital,Capital Pending Update to BS,06-Apr-11,380524,35147.4,CAPITAL,AMTEC Consulting Plc
Peterborough City Council,Capital,Capital,Capital Pending Update to BS,06-Apr-11,380525,33211.2,CAPITAL,AMTEC Consulting Plc
Peterborough City Council,Support Services,Support Services,Supplies and Services,06-Apr-11,380526,58368,REVENUE,AMTEC Consulting Plc
Peterborough City Council,Support Services,Support Services,Supplies and Services,06-Apr-11,380527,4050,REVENUE,AMTEC Consulting Plc
Peterborough City Council,Support Services,Support Services,Supplies and Services,06-Apr-11,380528,11400,REVENUE,AMTEC Consulting Plc
Peterborough City Council,Support Services,Support Services,Supplies and Services,06-Apr-11,380529,9072,REVENUE,AMTEC Consulting Plc
Peterborough City Council,Support Services,Support Services,Supplies and Services,06-Apr-11,380530,11258.7,REVENUE,AMTEC Consulting Plc
Peterborough City Council,Capital,Capital,Capital Pending Update to BS,06-Apr-11,380531,11178,CAPITAL,AMTEC Consulting Plc
Peterborough City Council,Capital,Capital,Capital Pending Update to BS,06-Apr-11,380532,9660,CAPITAL,AMTEC Consulting Plc
Peterborough City Council,Children's & Education Services - Education,Non-School Funding,Supplies and Services,06-Apr-11,380533,9528,REVENUE,AMTEC Consulting Plc
Peterborough City Council,"Cultural, Environmental and Planning Services",Economic Development,Supplies and Services,06-Apr-11,380534,12919.39,REVENUE,AMTEC Consulting Plc
Peterborough City Council,"Cultural, Environmental and Planning Services",Economic Development,Supplies and Services,06-Apr-11,380535,10048.42,REVENUE,AMTEC Consulting Plc
Peterborough City Council,Support Services,Support Services,Supplies and Services,06-Apr-11,380536,11067,REVENUE,AMTEC Consulting Plc
Peterborough City Council,Support Services,Support Services,Supplies and Services,06-Apr-11,380537,9336,REVENUE,AMTEC Consulting Plc
Peterborough City Council,Support Services,Support Services,Supplies and Services,06-Apr-11,380538,14742,REVENUE,AMTEC Consulting Plc
Peterborough City Council,"Cultural, Environmental and Planning Services",Economic Development,Supplies and Services,06-Apr-11,380539,20172.96,REVENUE,AMTEC Consulting Plc
Peterborough City Council,Capital,Capital,Capital Pending Update to BS,06-Apr-11,380540,25771.2,CAPITAL,AMTEC Consulting Plc
Peterborough City Council,"Highways, Roads & Transport Services",Street Lighting,Supplies and Services,06-Apr-11,380542,5040,REVENUE,AMTEC Consulting Plc
Peterborough City Council,Support Services,Support Services,Supplies and Services,06-Apr-11,380543,9720,REVENUE,AMTEC Consulting Plc
Peterborough City Council,Support Services,Support Services,Supplies and Services,06-Apr-11,380544,8910,REVENUE,AMTEC Consulting Plc
Peterborough City Council,Deficit/(Surplus) on Trading Undertakings,Trading Account Surpluses & Deficits,Supplies and Services,06-Apr-11,380545,19892.4,REVENUE,AMTEC Consulting Plc
Peterborough City Council,Deficit/(Surplus) on Trading Undertakings,Trading Account Surpluses & Deficits,Supplies and Services,06-Apr-11,380546,5655,REVENUE,AMTEC Consulting Plc
Peterborough City Council,"Cultural, Environmental and Planning Services",Economic Development,Supplies and Services,06-Apr-11,380547,6873.6,REVENUE,AMTEC Consulting Plc
Peterborough City Council,"Cultural, Environmental and Planning Services",Environmental Initiatives,Supplies and Services,06-Apr-11,380548,1718.4,REVENUE,AMTEC Consulting Plc
Peterborough City Council,Central Services to the Public,Local Tax,Employees,06-Apr-11,380549,27075.6,REVENUE,AMTEC Consulting Plc
Peterborough City Council,Deficit/(Surplus) on Trading Undertakings,Trading Account Surpluses & Deficits,Supplies and Services,06-Apr-11,380550,2328,REVENUE,AMTEC Consulting Plc
Peterborough City Council,Support Services,Support Services & Management Costs,Supplies and Services,06-Apr-11,380568,10080,REVENUE,AMTEC Consulting Plc
Peterborough City Council,Support Services,Support Services,Premises,06-Apr-11,380654,1954.18,REVENUE,Anglian Water
Peterborough City Council,Deficit/(Surplus) on Trading Undertakings,Trading Account Surpluses & Deficits,Supplies and Services,06-Apr-11,380664,5741.64,REVENUE,Barron Clark Castings Ltd
Peterborough City Council,Deficit/(Surplus) on Trading Undertakings,Trading Account Surpluses & Deficits,Supplies and Services,06-Apr-11,380665,597.6,REVENUE,Barron Clark Castings Ltd
Peterborough City Council,"Highways, Roads & Transport Services",Public Transport,Supplies and Services,06-Apr-11,380666,5513.53,REVENUE,Liftshare.com ltd
Peterborough City Council,Deficit/(Surplus) on Trading Undertakings,Trading Account Surpluses & Deficits,Transport,06-Apr-11,380683,2685.89,REVENUE,Ernest Doe & Sons Ltd
Peterborough City Council,Deficit/(Surplus) on Trading Undertakings,Trading Account Surpluses & Deficits,Transport,06-Apr-11,380685,2952.09,REVENUE,Ernest Doe & Sons Ltd
Peterborough City Council,Deficit/(Surplus) on Trading Undertakings,Trading Account Surpluses & Deficits,Transport,06-Apr-11,380686,4432.4,REVENUE,Ernest Doe & Sons Ltd
Peterborough City Council,Children's & Education Services - Children's Social Care,Support Services & Management Costs,Supplies and Services,06-Apr-11,380695,3363.9,REVENUE,Westwood & Ravensthorpe Children's Centre
Peterborough City Council,Children's & Education Services - Children's Social Care,Support Services & Management Costs,Supplies and Services,06-Apr-11,380696,17591.36,REVENUE,Alpha Big Sky Ltd
Peterborough City Council,Children's & Education Services - Children's Social Care,Support Services & Management Costs,Supplies and Services,06-Apr-11,380697,8031.78,REVENUE,Alpha Big Sky Ltd
Peterborough City Council,Children's & Education Services - Children's Social Care,Support Services & Management Costs,Supplies and Services,06-Apr-11,380698,12513.66,REVENUE,Anna-Ca-Soo Day Nursery
Peterborough City Council,Children's & Education Services - Children's Social Care,Support Services & Management Costs,Supplies and Services,06-Apr-11,380700,1676.95,REVENUE,Barnack Pre-School
Peterborough City Council,Children's & Education Services - Children's Social Care,Support Services & Management Costs,Supplies and Services,06-Apr-11,380701,8733,REVENUE,Beeches Pre-School
Peterborough City Council,Children's & Education Services - Children's Social Care,Support Services & Management Costs,Supplies and Services,06-Apr-11,380702,9663.45,REVENUE,PSLA
Peterborough City Council,Children's & Education Services - Children's Social Care,Support Services & Management Costs,Supplies and Services,06-Apr-11,380703,4727.25,REVENUE,Birchtree Pre-School
Peterborough City Council,Children's & Education Services - Children's Social Care,Support Services & Management Costs,Supplies and Services,06-Apr-11,380704,8454.5,REVENUE,Braybrook Nursery
Peterborough City Council,Children's & Education Services - Children's Social Care,Support Services & Management Costs,Supplies and Services,06-Apr-11,380705,13465.25,REVENUE,Bretton Community Pre-School
Peterborough City Council,Children's & Education Services - Children's Social Care,Support Services & Management Costs,Supplies and Services,06-Apr-11,380706,8437.61,REVENUE,Bright Kids Nursery Ltd (Lynchwood)
Peterborough City Council,Children's & Education Services - Children's Social Care,Support Services & Management Costs,Supplies and Services,06-Apr-11,380707,2706.94,REVENUE,Bright Kids Nursery Ltd (Broadway)
Peterborough City Council,Children's & Education Services - Children's Social Care,Support Services & Management Costs,Supplies and Services,06-Apr-11,380708,12259.03,REVENUE,Bright Star's day Nursery
Peterborough City Council,Children's & Education Services - Children's Social Care,Support Services & Management Costs,Supplies and Services,06-Apr-11,380709,9086.25,REVENUE,Brookside Playgroup
Peterborough City Council,Children's & Education Services - Children's Social Care,Support Services & Management Costs,Supplies and Services,06-Apr-11,380710,8877.23,REVENUE,Bundles of Fun Day Nursery
Peterborough City Council,Children's & Education Services - Children's Social Care,Support Services & Management Costs,Supplies and Services,06-Apr-11,380711,6322.05,REVENUE,Bunny Tots Pre-School
Peterborough City Council,Children's & Education Services - Children's Social Care,Support Services & Management Costs,Supplies and Services,06-Apr-11,380712,6396.7,REVENUE,Busy Bees Pre-School
Peterborough City Council,Children's & Education Services - Children's Social Care,Support Services & Management Costs,Supplies and Services,06-Apr-11,380714,10657.17,REVENUE,Carousel Day Nursery
Peterborough City Council,Children's & Education Services - Children's Social Care,Support Services & Management Costs,Supplies and Services,06-Apr-11,380715,4291.85,REVENUE,Castor & Ailsworth Playgroup
Peterborough City Council,Children's & Education Services - Children's Social Care,Support Services & Management Costs,Supplies and Services,06-Apr-11,380717,1975.55,REVENUE,Cygnets Pre-School
Peterborough City Council,Children's & Education Services - Children's Social Care,Support Services & Management Costs,Supplies and Services,06-Apr-11,380718,5072.7,REVENUE,Best Start Childrens Nursery
Peterborough City Council,Children's & Education Services - Children's Social Care,Support Services & Management Costs,Supplies and Services,06-Apr-11,380719,9230.55,REVENUE,Discovery Pre School
Peterborough City Council,Children's & Education Services - Children's Social Care,Support Services & Management Costs,Supplies and Services,06-Apr-11,380720,8362.25,REVENUE,Dogsthorpe Community Pre-School
Peterborough City Council,Children's & Education Services - Children's Social Care,Support Services & Management Costs,Supplies and Services,06-Apr-11,380721,4142.55,REVENUE,East Community Playgroup
Peterborough City Council,Children's & Education Services - Children's Social Care,Support Services & Management Costs,Supplies and Services,06-Apr-11,380723,9817.75,REVENUE,PSLA
Peterborough City Council,Children's & Education Services - Children's Social Care,Support Services & Management Costs,Supplies and Services,06-Apr-11,380724,7107.28,REVENUE,First Steps Nursery (Maxey) Ltd
Peterborough City Council,Children's & Education Services - Children's Social Care,Support Services & Management Costs,Supplies and Services,06-Apr-11,380725,15729.87,REVENUE,Flying Start Pre-School & Day Care Centre
Peterborough City Council,Children's & Education Services - Children's Social Care,Support Services & Management Costs,Supplies and Services,06-Apr-11,380726,10897.5,REVENUE,Pakistan Comm Ass of PBoro Pre- School
Peterborough City Council,Children's & Education Services - Children's Social Care,Support Services & Management Costs,Supplies and Services,06-Apr-11,380727,1679.45,REVENUE,Glinton Pre-School Playgroup
Peterborough City Council,Children's & Education Services - Children's Social Care,Support Services & Management Costs,Supplies and Services,06-Apr-11,380728,1140.65,REVENUE,Redacted Personal Data
Peterborough City Council,Children's & Education Services - Children's Social Care,Support Services & Management Costs,Supplies and Services,06-Apr-11,380730,5448.75,REVENUE,Happy Days Playgroup
Peterborough City Council,Children's & Education Services - Children's Social Care,Support Services & Management Costs,Supplies and Services,06-Apr-11,380731,530.49,REVENUE,Rachaels Childminding
Peterborough City Council,Children's & Education Services - Children's Social Care,Support Services & Management Costs,Supplies and Services,06-Apr-11,380732,1055.98,REVENUE,Redacted Personal Data
Peterborough City Council,Children's & Education Services - Children's Social Care,Support Services & Management Costs,Supplies and Services,06-Apr-11,380733,4145.05,REVENUE,Helpston Playhouse & Under Fives
Peterborough City Council,Children's & Education Services - Children's Social Care,Support Services & Management Costs,Supplies and Services,06-Apr-11,380734,29659.7,REVENUE,Herlington Pre-School
Peterborough City Council,Children's & Education Services - Children's Social Care,Support Services & Management Costs,Supplies and Services,06-Apr-11,380735,4722.25,REVENUE,Husaini Pre-School
Peterborough City Council,Children's & Education Services - Children's Social Care,Support Services & Management Costs,Supplies and Services,06-Apr-11,380736,702.32,REVENUE,Redacted Personal Data
Peterborough City Council,Children's & Education Services - Children's Social Care,Support Services & Management Costs,Supplies and Services,06-Apr-11,380737,1404.64,REVENUE,Redacted Personal Data
Peterborough City Council,Children's & Education Services - Children's Social Care,Support Services & Management Costs,Supplies and Services,06-Apr-11,380738,1674.45,REVENUE,Jenny's Pre School Playgroup
Peterborough City Council,Children's & Education Services - Children's Social Care,Support Services & Management Costs,Supplies and Services,06-Apr-11,380739,1314.98,REVENUE,Redacted Personal Data
Peterborough City Council,Children's & Education Services - Children's Social Care,Support Services & Management Costs,Supplies and Services,06-Apr-11,380740,18528.36,REVENUE,Kiddi Caru Day Nursery
Peterborough City Council,Children's & Education Services - Children's Social Care,Support Services & Management Costs,Supplies and Services,06-Apr-11,380741,8884.73,REVENUE,Kidsunlimited Group Ltd
Peterborough City Council,Children's & Education Services - Children's Social Care,Support Services & Management Costs,Supplies and Services,06-Apr-11,380743,17761.95,REVENUE,Leapfrog Day Nurseries
Peterborough City Council,Children's & Education Services - Children's Social Care,Support Services & Management Costs,Supplies and Services,06-Apr-11,380744,8718,REVENUE,Leighton Primary Pre-School
Peterborough City Council,Children's & Education Services - Children's Social Care,Support Services & Management Costs,Supplies and Services,06-Apr-11,380745,3995.75,REVENUE,Little Angels
Peterborough City Council,Children's & Education Services - Children's Social Care,Support Services & Management Costs,Supplies and Services,06-Apr-11,380747,5812,REVENUE,Little Pals Playgroup
Peterborough City Council,Children's & Education Services - Children's Social Care,Support Services & Management Costs,Supplies and Services,06-Apr-11,380749,38045.25,REVENUE,Little Stars Day Nursery
Peterborough City Council,Children's & Education Services - Children's Social Care,Support Services & Management Costs,Supplies and Services,06-Apr-11,380750,5495.43,REVENUE,Little Steps Day Nursery
Peterborough City Council,Children's & Education Services - Children's Social Care,Support Services & Management Costs,Supplies and Services,06-Apr-11,380751,9299.95,REVENUE,Little Tigers Day Nursery
Peterborough City Council,Children's & Education Services - Children's Social Care,Support Services & Management Costs,Supplies and Services,06-Apr-11,380752,7931.85,REVENUE,Longthorpe Playgroup
Peterborough City Council,Children's & Education Services - Children's Social Care,Support Services & Management Costs,Supplies and Services,06-Apr-11,380753,5379.1,REVENUE,PSLA
Peterborough City Council,Children's & Education Services - Children's Social Care,Support Services & Management Costs,Supplies and Services,06-Apr-11,380755,1314.98,REVENUE,Redacted Personal Data
Peterborough City Council,Children's & Education Services - Children's Social Care,Support Services & Management Costs,Supplies and Services,06-Apr-11,380757,7640.75,REVENUE,Millfield Pre-School
Peterborough City Council,Children's & Education Services - Children's Social Care,Support Services & Management Costs,Supplies and Services,06-Apr-11,380758,8768,REVENUE,New Ark Playgroup
Peterborough City Council,Children's & Education Services - Children's Social Care,Support Services & Management Costs,Supplies and Services,06-Apr-11,380759,5237.3,REVENUE,Newborough Pre-School Playgroup
Peterborough City Council,Children's & Education Services - Children's Social Care,Support Services & Management Costs,Supplies and Services,06-Apr-11,380760,3856.45,REVENUE,Noah's Ark Pre-School
Peterborough City Council,Children's & Education Services - Children's Social Care,Support Services & Management Costs,Supplies and Services,06-Apr-11,380761,9875.25,REVENUE,Orton Longueville Playgroup
Peterborough City Council,Children's & Education Services - Children's Social Care,Support Services & Management Costs,Supplies and Services,06-Apr-11,380762,3958.6,REVENUE,Orton Wistow Under Fives
Peterborough City Council,Children's & Education Services - Children's Social Care,Support Services & Management Costs,Supplies and Services,06-Apr-11,380763,6048.45,REVENUE,Parnwell Family Project Playgroup
Peterborough City Council,Children's & Education Services - Children's Social Care,Support Services & Management Costs,Supplies and Services,06-Apr-11,380765,6324.55,REVENUE,Paston & Gunthorpe Pre-School
Peterborough City Council,Children's & Education Services - Children's Social Care,Support Services & Management Costs,Supplies and Services,06-Apr-11,380766,8210.45,REVENUE,Family Action
Peterborough City Council,Children's & Education Services - Children's Social Care,Support Services & Management Costs,Supplies and Services,06-Apr-11,380767,2906,REVENUE,Family Action
Peterborough City Council,Children's & Education Services - Children's Social Care,Support Services & Management Costs,Supplies and Services,06-Apr-11,380768,5670.2,REVENUE,Rainbow Pre-School
Peterborough City Council,Children's & Education Services - Children's Social Care,Support Services & Management Costs,Supplies and Services,06-Apr-11,380769,1945.54,REVENUE,Rise & Shine Day Nursery
Peterborough City Council,Children's & Education Services - Children's Social Care,Support Services & Management Costs,Supplies and Services,06-Apr-11,380770,6324.55,REVENUE,Salvation Army Playgroup
Peterborough City Council,Children's & Education Services - Children's Social Care,Support Services & Management Costs,Supplies and Services,06-Apr-11,380772,8709.14,REVENUE,Shining Stars Pre-School Nursery
Peterborough City Council,Children's & Education Services - Children's Social Care,Support Services & Management Costs,Supplies and Services,06-Apr-11,380774,4064.16,REVENUE,Smiley Faces Day Nursery
Peterborough City Council,Children's & Education Services - Children's Social Care,Support Services & Management Costs,Supplies and Services,06-Apr-11,380776,7265,REVENUE,South Bretton PS Middleton
Peterborough City Council,Children's & Education Services - Children's Social Care,Support Services & Management Costs,Supplies and Services,06-Apr-11,380777,1816.25,REVENUE,Southfields Pre-School Playgroup
Peterborough City Council,Children's & Education Services - Children's Social Care,Support Services & Management Costs,Supplies and Services,06-Apr-11,380778,8145.8,REVENUE,Southfields Nursery
Peterborough City Council,Children's & Education Services - Children's Social Care,Support Services & Management Costs,Supplies and Services,06-Apr-11,380779,7628.25,REVENUE,Family Action
Peterborough City Council,Children's & Education Services - Children's Social Care,Support Services & Management Costs,Supplies and Services,06-Apr-11,380780,6757.45,REVENUE,St Johns C of E Pre-School
Peterborough City Council,Children's & Education Services - Children's Social Care,Support Services & Management Costs,Supplies and Services,06-Apr-11,380781,19022.63,REVENUE,St Josephs Day Nursery
Peterborough City Council,Children's & Education Services - Children's Social Care,Support Services & Management Costs,Supplies and Services,06-Apr-11,380782,9397.35,REVENUE,St Michaels Playgroup
Peterborough City Council,Children's & Education Services - Children's Social Care,Support Services & Management Costs,Supplies and Services,06-Apr-11,380783,12713.75,REVENUE,St Thomas More Catholic Nursery
Peterborough City Council,Children's & Education Services - Children's Social Care,Support Services & Management Costs,Supplies and Services,06-Apr-11,380785,4227.25,REVENUE,Step One Day Care
Peterborough City Council,Children's & Education Services - Children's Social Care,Support Services & Management Costs,Supplies and Services,06-Apr-11,380786,7018.24,REVENUE,Stepping Stones Day Nursery
Peterborough City Council,Children's & Education Services - Children's Social Care,Support Services & Management Costs,Supplies and Services,06-Apr-11,380787,3552.39,REVENUE,Stepping Stones Day Nursery
Peterborough City Council,Children's & Education Services - Children's Social Care,Support Services & Management Costs,Supplies and Services,06-Apr-11,380789,4227.25,REVENUE,The Cedars Independent School & Day Nursery
Peterborough City Council,Children's & Education Services - Children's Social Care,Support Services & Management Costs,Supplies and Services,06-Apr-11,380790,6850.15,REVENUE,Peterborough Regional College
Peterborough City Council,Children's & Education Services - Children's Social Care,Support Services & Management Costs,Supplies and Services,06-Apr-11,380791,11502.62,REVENUE,The Day Nursery Peterborough Ltd
Peterborough City Council,Children's & Education Services - Children's Social Care,Support Services & Management Costs,Supplies and Services,06-Apr-11,380792,7784.64,REVENUE,The Learning Tree Kindergarten
Peterborough City Council,Children's & Education Services - Children's Social Care,Support Services & Management Costs,Supplies and Services,06-Apr-11,380793,4739.02,REVENUE,Manor House Nursery School
Peterborough City Council,Children's & Education Services - Children's Social Care,Support Services & Management Costs,Supplies and Services,06-Apr-11,380794,14543.24,REVENUE,Peterborough High School Nursery
Peterborough City Council,Children's & Education Services - Children's Social Care,Support Services & Management Costs,Supplies and Services,06-Apr-11,380795,6340.88,REVENUE,The Teddy Bears inn Day Nursery
Peterborough City Council,Children's & Education Services - Children's Social Care,Support Services & Management Costs,Supplies and Services,06-Apr-11,380796,4958.7,REVENUE,The Village Playgroup
Peterborough City Council,Children's & Education Services - Children's Social Care,Support Services & Management Costs,Supplies and Services,06-Apr-11,380797,3269.25,REVENUE,The Voyager Nursery
Peterborough City Council,Children's & Education Services - Children's Social Care,Support Services & Management Costs,Supplies and Services,06-Apr-11,380798,7715.4,REVENUE,Young Generation Playgroup
Peterborough City Council,Children's & Education Services - Children's Social Care,Support Services & Management Costs,Supplies and Services,06-Apr-11,380799,1895.9,REVENUE,Thorney Pre-School Playgroup
Peterborough City Council,Children's & Education Services - Children's Social Care,Support Services & Management Costs,Supplies and Services,06-Apr-11,380800,8627.59,REVENUE,Miss J W Boon T/A Toddlers Inn Day Nursery
Peterborough City Council,Children's & Education Services - Children's Social Care,Support Services & Management Costs,Supplies and Services,06-Apr-11,380801,527.99,REVENUE,Redacted Personal Data
Peterborough City Council,Children's & Education Services - Children's Social Care,Support Services & Management Costs,Supplies and Services,06-Apr-11,380803,11128.95,REVENUE,West Town Playgroup
Peterborough City Council,Children's & Education Services - Children's Social Care,Support Services & Management Costs,Supplies and Services,06-Apr-11,380804,7416.8,REVENUE,Woodston Playgroup
Peterborough City Council,Children's & Education Services - Children's Social Care,Support Services & Management Costs,Supplies and Services,06-Apr-11,380805,7265,REVENUE,Westwood & Ravensthorpe Children's Centre
Peterborough City Council,Children's & Education Services - Children's Social Care,Support Services & Management Costs,Supplies and Services,06-Apr-11,380806,10145.4,REVENUE,Alpha Big Sky Ltd
Peterborough City Council,Children's & Education Services - Children's Social Care,Support Services & Management Costs,Supplies and Services,06-Apr-11,380807,5327.34,REVENUE,Alpha Big Sky Ltd
Peterborough City Council,Children's & Education Services - Children's Social Care,Support Services & Management Costs,Supplies and Services,06-Apr-11,380808,6343.38,REVENUE,Anna-Ca-Soo Day Nursery
Peterborough City Council,Children's & Education Services - Children's Social Care,Support Services & Management Costs,Supplies and Services,06-Apr-11,380809,1308.7,REVENUE,Barnack Pre-School
Peterborough City Council,Children's & Education Services - Children's Social Care,Support Services & Management Costs,Supplies and Services,06-Apr-11,380810,1164.4,REVENUE,Beeches Pre-School
Peterborough City Council,Children's & Education Services - Children's Social Care,Support Services & Management Costs,Supplies and Services,06-Apr-11,380811,2906,REVENUE,PSLA
Peterborough City Council,Children's & Education Services - Children's Social Care,Support Services & Management Costs,Supplies and Services,06-Apr-11,380812,4000.75,REVENUE,Birchtree Pre-School
Peterborough City Council,Children's & Education Services - Children's Social Care,Support Services & Management Costs,Supplies and Services,06-Apr-11,380813,3381.8,REVENUE,Braybrook Nursery
Peterborough City Council,Children's & Education Services - Children's Social Care,Support Services & Management Costs,Supplies and Services,06-Apr-11,380814,6113.1,REVENUE,Bretton Community Pre-School
Peterborough City Council,Children's & Education Services - Children's Social Care,Support Services & Management Costs,Supplies and Services,06-Apr-11,380815,7020.74,REVENUE,Bright Kids Nursery Ltd (Lynchwood)
Peterborough City Council,Children's & Education Services - Children's Social Care,Support Services & Management Costs,Supplies and Services,06-Apr-11,380816,845.45,REVENUE,Bright Kids Nursery Ltd (Broadway)
Peterborough City Council,Children's & Education Services - Children's Social Care,Support Services & Management Costs,Supplies and Services,06-Apr-11,380817,8877.23,REVENUE,Bright Star's day Nursery
Peterborough City Council,Children's & Education Services - Children's Social Care,Support Services & Management Costs,Supplies and Services,06-Apr-11,380818,3637.5,REVENUE,Brookside Playgroup
Peterborough City Council,Children's & Education Services - Children's Social Care,Support Services & Management Costs,Supplies and Services,06-Apr-11,380819,2284.22,REVENUE,Bundles of Fun Day Nursery
Peterborough City Council,Children's & Education Services - Children's Social Care,Support Services & Management Costs,Supplies and Services,06-Apr-11,380820,5085.5,REVENUE,Bunny Tots Pre-School
Peterborough City Council,Children's & Education Services - Children's Social Care,Support Services & Management Costs,Supplies and Services,06-Apr-11,380821,3343.9,REVENUE,Busy Bees Pre-School
Peterborough City Council,Children's & Education Services - Children's Social Care,Support Services & Management Costs,Supplies and Services,06-Apr-11,380822,4991.16,REVENUE,Carousel Day Nursery
Peterborough City Council,Children's & Education Services - Children's Social Care,Support Services & Management Costs,Supplies and Services,06-Apr-11,380823,2470.6,REVENUE,Castor & Ailsworth Playgroup
Peterborough City Council,Children's & Education Services - Children's Social Care,Support Services & Management Costs,Supplies and Services,06-Apr-11,380825,7436.8,REVENUE,Cygnets Pre-School
Peterborough City Council,Children's & Education Services - Children's Social Care,Support Services & Management Costs,Supplies and Services,06-Apr-11,380826,4649.98,REVENUE,Best Start Childrens Nursery
Peterborough City Council,Children's & Education Services - Children's Social Care,Support Services & Management Costs,Supplies and Services,06-Apr-11,380827,3632.5,REVENUE,Discovery Pre School
Peterborough City Council,Children's & Education Services - Children's Social Care,Support Services & Management Costs,Supplies and Services,06-Apr-11,380828,3632.5,REVENUE,Dogsthorpe Community Pre-School
Peterborough City Council,Children's & Education Services - Children's Social Care,Support Services & Management Costs,Supplies and Services,06-Apr-11,380829,2906,REVENUE,East Community Playgroup
Peterborough City Council,Children's & Education Services - Children's Social Care,Support Services & Management Costs,Supplies and Services,06-Apr-11,380831,9081.25,REVENUE,PSLA
Peterborough City Council,Children's & Education Services - Children's Social Care,Support Services & Management Costs,Supplies and Services,06-Apr-11,380832,1945.54,REVENUE,First Steps Nursery (Maxey) Ltd
Peterborough City Council,Children's & Education Services - Children's Social Care,Support Services & Management Costs,Supplies and Services,06-Apr-11,380833,10822.76,REVENUE,Flying Start Pre-School & Day Care Centre
Peterborough City Council,Children's & Education Services - Children's Social Care,Support Services & Management Costs,Supplies and Services,06-Apr-11,380834,5448.75,REVENUE,Pakistan Comm Ass of PBoro Pre- School
Peterborough City Council,Children's & Education Services - Children's Social Care,Support Services & Management Costs,Supplies and Services,06-Apr-11,380835,1164.4,REVENUE,Glinton Pre-School Playgroup
Peterborough City Council,Children's & Education Services - Children's Social Care,Support Services & Management Costs,Supplies and Services,06-Apr-11,380836,527.99,REVENUE,Redacted Personal Data
Peterborough City Council,Children's & Education Services - Children's Social Care,Support Services & Management Costs,Supplies and Services,06-Apr-11,380837,1816.25,REVENUE,Happy Days Playgroup
Peterborough City Council,Children's & Education Services - Children's Social Care,Support Services & Management Costs,Supplies and Services,06-Apr-11,380840,1017.6,REVENUE,Helpston Playhouse & Under Fives
Peterborough City Council,Children's & Education Services - Children's Social Care,Support Services & Management Costs,Supplies and Services,06-Apr-11,380841,21869.65,REVENUE,Herlington Pre-School
Peterborough City Council,Children's & Education Services - Children's Social Care,Support Services & Management Costs,Supplies and Services,06-Apr-11,380842,1453,REVENUE,Husaini Pre-School
Peterborough City Council,Children's & Education Services - Children's Social Care,Support Services & Management Costs,Supplies and Services,06-Apr-11,380843,1455.5,REVENUE,Jenny's Pre School Playgroup
Peterborough City Council,Children's & Education Services - Children's Social Care,Support Services & Management Costs,Supplies and Services,06-Apr-11,380844,9557.09,REVENUE,Kiddi Caru Day Nursery
Peterborough City Council,Children's & Education Services - Children's Social Care,Support Services & Management Costs,Supplies and Services,06-Apr-11,380845,2790.99,REVENUE,Kidsunlimited Group Ltd
Peterborough City Council,Children's & Education Services - Children's Social Care,Support Services & Management Costs,Supplies and Services,06-Apr-11,380847,8879.73,REVENUE,Leapfrog Day Nurseries
Peterborough City Council,Children's & Education Services - Children's Social Care,Support Services & Management Costs,Supplies and Services,06-Apr-11,380848,3269.25,REVENUE,Leighton Primary Pre-School
Peterborough City Council,Children's & Education Services - Children's Social Care,Support Services & Management Costs,Supplies and Services,06-Apr-11,380849,726.5,REVENUE,Little Angels
Peterborough City Council,Children's & Education Services - Children's Social Care,Support Services & Management Costs,Supplies and Services,06-Apr-11,380851,3632.5,REVENUE,Little Pals Playgroup
Peterborough City Council,Children's & Education Services - Children's Social Care,Support Services & Management Costs,Supplies and Services,06-Apr-11,380853,16909,REVENUE,Little Stars Day Nursery
Peterborough City Council,Children's & Education Services - Children's Social Care,Support Services & Management Costs,Supplies and Services,06-Apr-11,380854,8709.14,REVENUE,Little Steps Day Nursery
Peterborough City Council,Children's & Education Services - Children's Social Care,Support Services & Management Costs,Supplies and Services,06-Apr-11,380855,5918.15,REVENUE,Little Tigers Day Nursery
Peterborough City Council,Children's & Education Services - Children's Social Care,Support Services & Management Costs,Supplies and Services,06-Apr-11,380856,3423.55,REVENUE,Longthorpe Playgroup
Peterborough City Council,Children's & Education Services - Children's Social Care,Support Services & Management Costs,Supplies and Services,06-Apr-11,380857,2035.2,REVENUE,PSLA
Peterborough City Council,Children's & Education Services - Children's Social Care,Support Services & Management Costs,Supplies and Services,06-Apr-11,380858,4433.65,REVENUE,Millfield Pre-School
Peterborough City Council,Children's & Education Services - Children's Social Care,Support Services & Management Costs,Supplies and Services,06-Apr-11,380859,8444.4,REVENUE,New Ark Playgroup
Peterborough City Council,Children's & Education Services - Children's Social Care,Support Services & Management Costs,Supplies and Services,06-Apr-11,380860,2473.1,REVENUE,Newborough Pre-School Playgroup
Peterborough City Council,Children's & Education Services - Children's Social Care,Support Services & Management Costs,Supplies and Services,06-Apr-11,380861,4650.1,REVENUE,Noah's Ark Pre-School
Peterborough City Council,Children's & Education Services - Children's Social Care,Support Services & Management Costs,Supplies and Services,06-Apr-11,380862,5610.55,REVENUE,Orton Longueville Playgroup
Peterborough City Council,Children's & Education Services - Children's Social Care,Support Services & Management Costs,Supplies and Services,06-Apr-11,380863,6030.95,REVENUE,Orton Wistow Under Fives
Peterborough City Council,Children's & Education Services - Children's Social Care,Support Services & Management Costs,Supplies and Services,06-Apr-11,380864,5242.3,REVENUE,Parnwell Family Project Playgroup
Peterborough City Council,Children's & Education Services - Children's Social Care,Support Services & Management Costs,Supplies and Services,06-Apr-11,380865,6543.5,REVENUE,Paston & Gunthorpe Pre-School
Peterborough City Council,Children's & Education Services - Children's Social Care,Support Services & Management Costs,Supplies and Services,06-Apr-11,380866,4359,REVENUE,Family Action
Peterborough City Council,Children's & Education Services - Children's Social Care,Support Services & Management Costs,Supplies and Services,06-Apr-11,380867,3269.25,REVENUE,Family Action
Peterborough City Council,Children's & Education Services - Children's Social Care,Support Services & Management Costs,Supplies and Services,06-Apr-11,380868,5448.75,REVENUE,Rainbow Pre-School
Peterborough City Council,Children's & Education Services - Children's Social Care,Support Services & Management Costs,Supplies and Services,06-Apr-11,380869,7186.33,REVENUE,Rise & Shine Day Nursery
Peterborough City Council,Children's & Education Services - Children's Social Care,Support Services & Management Costs,Supplies and Services,06-Apr-11,380870,4072.9,REVENUE,Salvation Army Playgroup
Peterborough City Council,Children's & Education Services - Children's Social Care,Support Services & Management Costs,Supplies and Services,06-Apr-11,380871,4652.48,REVENUE,Shining Stars Pre-School Nursery
Peterborough City Council,Children's & Education Services - Children's Social Care,Support Services & Management Costs,Supplies and Services,06-Apr-11,380873,4313.8,REVENUE,Smiley Faces Day Nursery
Peterborough City Council,Children's & Education Services - Children's Social Care,Support Services & Management Costs,Supplies and Services,06-Apr-11,380874,6901.75,REVENUE,South Bretton PS Middleton
Peterborough City Council,Children's & Education Services - Children's Social Care,Support Services & Management Costs,Supplies and Services,06-Apr-11,380875,2179.5,REVENUE,Southfields Pre-School Playgroup
Peterborough City Council,Children's & Education Services - Children's Social Care,Support Services & Management Costs,Supplies and Services,06-Apr-11,380876,4142.55,REVENUE,Southfields Nursery
Peterborough City Council,Children's & Education Services - Children's Social Care,Support Services & Management Costs,Supplies and Services,06-Apr-11,380877,6538.5,REVENUE,Family Action
Peterborough City Council,Children's & Education Services - Children's Social Care,Support Services & Management Costs,Supplies and Services,06-Apr-11,380878,7628.25,REVENUE,St Johns C of E Pre-School
Peterborough City Council,Children's & Education Services - Children's Social Care,Support Services & Management Costs,Supplies and Services,06-Apr-11,380879,12259.03,REVENUE,St Josephs Day Nursery
Peterborough City Council,Children's & Education Services - Children's Social Care,Support Services & Management Costs,Supplies and Services,06-Apr-11,380880,2547.75,REVENUE,St Michaels Playgroup
Peterborough City Council,Children's & Education Services - Children's Social Care,Support Services & Management Costs,Supplies and Services,06-Apr-11,380881,9081.25,REVENUE,St Thomas More Catholic Nursery
Peterborough City Council,Children's & Education Services - Children's Social Care,Support Services & Management Costs,Supplies and Services,06-Apr-11,380883,2452.31,REVENUE,Step One Day Care
Peterborough City Council,Children's & Education Services - Children's Social Care,Support Services & Management Costs,Supplies and Services,06-Apr-11,380884,6256.83,REVENUE,Stepping Stones Day Nursery
Peterborough City Council,Children's & Education Services - Children's Social Care,Support Services & Management Costs,Supplies and Services,06-Apr-11,380885,1609.36,REVENUE,Stepping Stones Day Nursery
Peterborough City Council,Children's & Education Services - Children's Social Care,Support Services & Management Costs,Supplies and Services,06-Apr-11,380887,1690.9,REVENUE,The Cedars Independent School & Day Nursery
Peterborough City Council,Children's & Education Services - Children's Social Care,Support Services & Management Costs,Supplies and Services,06-Apr-11,380888,2536.35,REVENUE,Peterborough Regional College
Peterborough City Council,Children's & Education Services - Children's Social Care,Support Services & Management Costs,Supplies and Services,06-Apr-11,380889,8286.41,REVENUE,The Day Nursery Peterborough Ltd
Peterborough City Council,Children's & Education Services - Children's Social Care,Support Services & Management Costs,Supplies and Services,06-Apr-11,380890,7695.6,REVENUE,The Learning Tree Kindergarten
Peterborough City Council,Children's & Education Services - Children's Social Care,Support Services & Management Costs,Supplies and Services,06-Apr-11,380891,12006.89,REVENUE,Manor House Nursery School
Peterborough City Council,Children's & Education Services - Children's Social Care,Support Services & Management Costs,Supplies and Services,06-Apr-11,380892,3409.65,REVENUE,The Peterborough School Ltd
Peterborough City Council,Children's & Education Services - Children's Social Care,Support Services & Management Costs,Supplies and Services,06-Apr-11,380893,8457,REVENUE,Peterborough High School Nursery
Peterborough City Council,Children's & Education Services - Children's Social Care,Support Services & Management Costs,Supplies and Services,06-Apr-11,380894,1606.86,REVENUE,The Teddy Bears inn Day Nursery
Peterborough City Council,Children's & Education Services - Children's Social Care,Support Services & Management Costs,Supplies and Services,06-Apr-11,380895,3707.15,REVENUE,The Village Playgroup
Peterborough City Council,Children's & Education Services - Children's Social Care,Support Services & Management Costs,Supplies and Services,06-Apr-11,380896,2906,REVENUE,The Voyager Nursery
Peterborough City Council,Children's & Education Services - Children's Social Care,Support Services & Management Costs,Supplies and Services,06-Apr-11,380897,4433.65,REVENUE,Young Generation Playgroup
Peterborough City Council,Children's & Education Services - Children's Social Care,Support Services & Management Costs,Supplies and Services,06-Apr-11,380898,4441.15,REVENUE,Thorney Pre-School Playgroup
Peterborough City Council,Children's & Education Services - Children's Social Care,Support Services & Management Costs,Supplies and Services,06-Apr-11,380899,7356.92,REVENUE,Miss J W Boon T/A Toddlers Inn Day Nursery
Peterborough City Council,Children's & Education Services - Children's Social Care,Support Services & Management Costs,Supplies and Services,06-Apr-11,380900,6033.45,REVENUE,West Town Playgroup
Peterborough City Council,Children's & Education Services - Children's Social Care,Support Services & Management Costs,Supplies and Services,06-Apr-11,380901,6175.25,REVENUE,Woodston Playgroup
Peterborough City Council,Children's & Education Services - Children's Social Care,Children Looked After,Supplies and Services,06-Apr-11,380912,3543.03,REVENUE,Anglia Support Partnership
Peterborough City Council,Support Services,Support Services,Premises,06-Apr-11,380919,1007.3,REVENUE,Eastern Shires Purchasing Organisation
Peterborough City Council,Support Services,Support Services,Premises,06-Apr-11,380920,4747.91,REVENUE,Southern Electric
Peterborough City Council,Support Services,Support Services,Premises,06-Apr-11,380922,2093.33,REVENUE,Southern Electric
Peterborough City Council,Deficit/(Surplus) on Trading Undertakings,Trading Account Surpluses & Deficits,Premises,06-Apr-11,380923,828,REVENUE,Karheald LTD T/A Tom Russo
Peterborough City Council,Children's & Education Services - Children's Social Care,Children Looked After,Transport,06-Apr-11,380940,2520,REVENUE,Peterborough Cars
Peterborough City Council,Children's & Education Services - Education,Non-School Funding,Transport,06-Apr-11,380941,1185.6,REVENUE,Peterborough Cars
Peterborough City Council,Children's & Education Services - Education,Non-School Funding,Transport,06-Apr-11,380942,899.1,REVENUE,Peterborough Cars
Peterborough City Council,Children's & Education Services - Children's Social Care,Family Support Services,Third Party Payments,06-Apr-11,380943,1820,REVENUE,Redacted Personal Data
Peterborough City Council,Children's & Education Services - Children's Social Care,Family Support Services,Supplies and Services,06-Apr-11,380952,2370,REVENUE,Smooth Operators (Peterborough) Ltd
Peterborough City Council,Children's & Education Services - Children's Social Care,Management and support services,Supplies and Services,06-Apr-11,380953,540,REVENUE,Smooth Operators (Peterborough) Ltd
Peterborough City Council,Adult Social Care,Adult Social Care,Third Party Payments,06-Apr-11,380956,3305909.1,REVENUE,Peterborough PCT
Peterborough City Council,Deficit/(Surplus) on Trading Undertakings,Trading Account Surpluses & Deficits,Transport,06-Apr-11,380963,1339.25,REVENUE,Peterborough Grass Machinery Ltd
Peterborough City Council,Deficit/(Surplus) on Trading Undertakings,Trading Account Surpluses & Deficits,Supplies and Services,06-Apr-11,380976,10200,REVENUE,Stanza Consulting
Peterborough City Council,Deficit/(Surplus) on Trading Undertakings,Trading Account Surpluses & Deficits,Transport,06-Apr-11,380979,1444.26,REVENUE,Peterborough Grass Machinery Ltd
Peterborough City Council,Deficit/(Surplus) on Trading Undertakings,Trading Account Surpluses & Deficits,Transport,06-Apr-11,380980,1635.78,REVENUE,Peterborough Grass Machinery Ltd
Peterborough City Council,Deficit/(Surplus) on Trading Undertakings,Trading Account Surpluses & Deficits,Transport,06-Apr-11,380981,2214.08,REVENUE,Peterborough Grass Machinery Ltd
Peterborough City Council,Deficit/(Surplus) on Trading Undertakings,Trading Account Surpluses & Deficits,Transport,06-Apr-11,380983,1578.29,REVENUE,Peterborough Grass Machinery Ltd
Peterborough City Council,Corporate & Democratic Core,Corporate Management,Supplies and Services,06-Apr-11,380994,-777.37,REVENUE,Everything Everywhere Ltd
Peterborough City Council,Deficit/(Surplus) on Trading Undertakings,Trading Account Surpluses & Deficits,Transport,06-Apr-11,380996,856.8,REVENUE,Zoeller Waste Systems Ltd
Peterborough City Council,More than one Service Area Category,More than one Service Division,More than one Expenses Type,06-Apr-11,380997,1988.34,REVENUE,Peterborough City Council
Peterborough City Council,Capital,Capital,Capital Pending Update to BS,06-Apr-11,380998,10089,CAPITAL,Serco Ltd
Peterborough City Council,More than one Service Area Category,More than one Service Division,More than one Expenses Type,06-Apr-11,381008,767.05,REVENUE,Peterborough City Council
Peterborough City Council,Deficit/(Surplus) on Trading Undertakings,Trading Account Surpluses & Deficits,Supplies and Services,06-Apr-11,381012,1116.61,REVENUE,Danwood Contract Rentals
Peterborough City Council,"Cultural, Environmental and Planning Services",Community Development,Supplies and Services,08-Apr-11,371518,750,REVENUE,Sparx Youth Project
Peterborough City Council,Support Services,Support Services,Supplies and Services,08-Apr-11,375488,27859.32,REVENUE,Pinsent Masons
Peterborough City Council,More than one Service Area Category,More than one Service Division,Premises,08-Apr-11,376430,1455.01,REVENUE,Elecheck (EST) Limited
Peterborough City Council,"Cultural, Environmental and Planning Services",Regulatory services,Supplies and Services,08-Apr-11,376447,2041.68,REVENUE,Tejaycey Boarding Kennels and Cattery
Peterborough City Council,More than one Service Area Category,More than one Service Division,Balance Sheet,08-Apr-11,378594,569.66,Balance Sheet,Instant Cash Loans Ltd
Peterborough City Council,Capital,Capital,Capital Pending Update to BS,08-Apr-11,378868,1573.33,CAPITAL,UK Power Networks (operations) Ltd
Peterborough City Council,Children's & Education Services - Education,Non-School Funding,Transport,08-Apr-11,380098,728.64,REVENUE,Redacted Personal Data
Peterborough City Council,Children's & Education Services - Children's Social Care,Children Looked After,Supplies and Services,08-Apr-11,380253,1238.3,REVENUE,Redacted Personal Data
Peterborough City Council,Children's & Education Services - Education,Non-School Funding,Supplies and Services,08-Apr-11,380421,1234.53,REVENUE,Kickstart Norfolk
Peterborough City Council,Children's & Education Services - Children's Social Care,Children Looked After,Employees,08-Apr-11,380669,1545.12,REVENUE,SWP Consulting
Peterborough City Council,Children's & Education Services - Children's Social Care,Children Looked After,Employees,08-Apr-11,380670,1305,REVENUE,SWP Consulting
Peterborough City Council,Children's & Education Services - Children's Social Care,Support Services & Management Costs,Supplies and Services,08-Apr-11,380722,11723.65,REVENUE,Eye Pre-School
Peterborough City Council,Children's & Education Services - Children's Social Care,Support Services & Management Costs,Supplies and Services,08-Apr-11,380729,876.65,REVENUE,Redacted Personal Data
Peterborough City Council,Children's & Education Services - Children's Social Care,Support Services & Management Costs,Supplies and Services,08-Apr-11,380742,18062.88,REVENUE,Kindercare Pre-School Ltd
Peterborough City Council,Children's & Education Services - Children's Social Care,Support Services & Management Costs,Supplies and Services,08-Apr-11,380746,2542.75,REVENUE,Fulbridge Nursery LIttle Gems
Peterborough City Council,Children's & Education Services - Children's Social Care,Support Services & Management Costs,Supplies and Services,08-Apr-11,380748,3384.3,REVENUE,Little Poppets Day Nursery
Peterborough City Council,Children's & Education Services - Children's Social Care,Support Services & Management Costs,Supplies and Services,08-Apr-11,380773,3124.95,REVENUE,Shiny Stars Pre-School
Peterborough City Council,Children's & Education Services - Children's Social Care,Support Services & Management Costs,Supplies and Services,08-Apr-11,380784,7205.35,REVENUE,Stanground St Johns Pre-School
Peterborough City Council,Children's & Education Services - Children's Social Care,Support Services & Management Costs,Supplies and Services,08-Apr-11,380802,527.99,REVENUE,Redacted Personal Data
Peterborough City Council,Children's & Education Services - Children's Social Care,Support Services & Management Costs,Supplies and Services,08-Apr-11,380830,4361.5,REVENUE,Eye Pre-School
Peterborough City Council,Children's & Education Services - Children's Social Care,Support Services & Management Costs,Supplies and Services,08-Apr-11,380846,16909,REVENUE,Kindercare Pre-School Ltd
Peterborough City Council,Children's & Education Services - Children's Social Care,Support Services & Management Costs,Supplies and Services,08-Apr-11,380850,1380.85,REVENUE,Fulbridge Nursery LIttle Gems
Peterborough City Council,Children's & Education Services - Children's Social Care,Support Services & Management Costs,Supplies and Services,08-Apr-11,380852,3891.07,REVENUE,Little Poppets Day Nursery
Peterborough City Council,Children's & Education Services - Children's Social Care,Support Services & Management Costs,Supplies and Services,08-Apr-11,380872,2906,REVENUE,Shiny Stars Pre-School
Peterborough City Council,Children's & Education Services - Children's Social Care,Support Services & Management Costs,Supplies and Services,08-Apr-11,380882,4505.8,REVENUE,Stanground St Johns Pre-School
Peterborough City Council,Capital,Capital,Capital Pending Update to BS,08-Apr-11,380946,120880.8,CAPITAL,E N Suiter & Sons Ltd
Peterborough City Council,Deficit/(Surplus) on Trading Undertakings,Trading Account Surpluses & Deficits,Premises,08-Apr-11,380947,659.82,REVENUE,L Garfield (Builders) Ltd
Peterborough City Council,"Cultural, Environmental and Planning Services",Open Spaces,Premises,08-Apr-11,380949,972.89,REVENUE,Princebuild Limited
Peterborough City Council,"Cultural, Environmental and Planning Services",Open Spaces,Premises,08-Apr-11,380951,590.93,REVENUE,T Clarke East Limited
Peterborough City Council,Capital,Capital,Capital Pending Update to BS,08-Apr-11,381013,29320.07,CAPITAL,Langwith Builders Ltd
Peterborough City Council,Capital,Capital,Capital Pending Update to BS,08-Apr-11,381014,2154,CAPITAL,Bull & Co Ltd
Peterborough City Council,Capital,Capital,Capital Pending Update to BS,08-Apr-11,381015,3276,CAPITAL,P J Services Ltd
Peterborough City Council,Capital,Capital,Capital Pending Update to BS,08-Apr-11,381028,5142.3,CAPITAL,Frederick F Smith (Builders) Ltd
Peterborough City Council,"Cultural, Environmental and Planning Services",Community Development,Third Party Payments,08-Apr-11,381088,500,REVENUE,Peterborough Racial Equality Council
Peterborough City Council,"Cultural, Environmental and Planning Services",Community Development,Third Party Payments,08-Apr-11,381089,5000,REVENUE,Peterborough Racial Equality Council
Peterborough City Council,"Cultural, Environmental and Planning Services",Community Development,Third Party Payments,08-Apr-11,381092,2000,REVENUE,Peterborough Racial Equality Council
Peterborough City Council,"Cultural, Environmental and Planning Services",Economic Development,Supplies and Services,08-Apr-11,381094,1200.34,REVENUE,Randstad CPE
Peterborough City Council,"Highways, Roads & Transport Services",Traffic management & Road Safety,Supplies and Services,08-Apr-11,381104,500,REVENUE,Vivacity Culture and Leisure
Peterborough City Council,Deficit/(Surplus) on Trading Undertakings,Trading Account Surpluses & Deficits,Transport,08-Apr-11,381129,904.08,REVENUE,Mr Tyre Ltd T/a Fossitt&Thorne
Peterborough City Council,Deficit/(Surplus) on Trading Undertakings,Trading Account Surpluses & Deficits,Transport,08-Apr-11,381152,531.31,REVENUE,Mr Tyre Ltd T/a Fossitt&Thorne
Peterborough City Council,More than one Service Area Category,More than one Service Division,Balance Sheet,08-Apr-11,381156,2296.58,Balance Sheet,Redacted Personal Data
Peterborough City Council,Deficit/(Surplus) on Trading Undertakings,Trading Account Surpluses & Deficits,Transport,08-Apr-11,381161,550,REVENUE,Statutory Payment of Consessionary Fares to Bus Provider
Peterborough City Council,Capital,Capital,Capital Pending Update to BS,08-Apr-11,381185,652.05,CAPITAL,Casbon Building Services
Peterborough City Council,Capital,Capital,Capital Pending Update to BS,08-Apr-11,381187,736.75,CAPITAL,Casbon Building Services
Peterborough City Council,Capital,Capital,Capital Pending Update to BS,08-Apr-11,381190,6084.75,CAPITAL,Thermowall Ltd
Peterborough City Council,Capital,Capital,Capital Pending Update to BS,08-Apr-11,381191,8516.55,CAPITAL,Thermowall Ltd
Peterborough City Council,Capital,Capital,Capital Pending Update to BS,08-Apr-11,381192,3360,CAPITAL,Mears Ltd
Peterborough City Council,Capital,Capital,Capital Pending Update to BS,08-Apr-11,381193,2298.3,CAPITAL,Mears Ltd
Peterborough City Council,Capital,Capital,Capital Pending Update to BS,08-Apr-11,381194,3760,CAPITAL,Mears Ltd
Peterborough City Council,"Cultural, Environmental and Planning Services",Open Spaces,Premises,08-Apr-11,381196,1656,REVENUE,Giffords Recycling Ltd
Peterborough City Council,Capital,Capital,Capital Pending Update to BS,08-Apr-11,381197,7040.25,CAPITAL,Thermowall Ltd
Peterborough City Council,More than one Service Area Category,More than one Service Division,More than one Expenses Type,08-Apr-11,381198,4440,"Mixture of Capital, Revenue and/or Balance Sheet",Nadeem Construction
Peterborough City Council,Capital,Capital,Capital Pending Update to BS,08-Apr-11,381199,4264.22,CAPITAL,Thermowall Ltd
Peterborough City Council,More than one Service Area Category,More than one Service Division,More than one Expenses Type,08-Apr-11,381200,5300,"Mixture of Capital, Revenue and/or Balance Sheet",Ransome Engineering Services Ltd
Peterborough City Council,More than one Service Area Category,More than one Service Division,More than one Expenses Type,08-Apr-11,381202,5121,"Mixture of Capital, Revenue and/or Balance Sheet",Burmor Construction
Peterborough City Council,More than one Service Area Category,More than one Service Division,More than one Expenses Type,08-Apr-11,381203,3600,"Mixture of Capital, Revenue and/or Balance Sheet",Ransome Engineering Services Ltd
Peterborough City Council,More than one Service Area Category,More than one Service Division,More than one Expenses Type,08-Apr-11,381204,2443,"Mixture of Capital, Revenue and/or Balance Sheet",S R K Engineering
Peterborough City Council,More than one Service Area Category,More than one Service Division,More than one Expenses Type,08-Apr-11,381205,6124,"Mixture of Capital, Revenue and/or Balance Sheet",Allworks Home Improvements Ltd
Peterborough City Council,More than one Service Area Category,More than one Service Division,Transport,08-Apr-11,381208,2167.2,REVENUE,Redacted Personal Data
Peterborough City Council,More than one Service Area Category,More than one Service Division,Transport,08-Apr-11,381209,2058,REVENUE,Redacted Personal Data
Peterborough City Council,Children's & Education Services - Children's Social Care,Children Looked After,Transport,08-Apr-11,381210,1951.9,REVENUE,Redacted Personal Data
Peterborough City Council,Children's & Education Services - Children's Social Care,Children Looked After,Transport,08-Apr-11,381211,2344.8,REVENUE,Redacted Personal Data
Peterborough City Council,Capital,Capital,Capital Pending Update to BS,08-Apr-11,381218,25117.09,CAPITAL,LDA Design Consulting LLP
Peterborough City Council,"Cultural, Environmental and Planning Services",Recreation & Sport,Premises,08-Apr-11,381234,620.57,REVENUE,Savills L&P Ltd
Peterborough City Council,Children's & Education Services - Education,Secondary,Premises,08-Apr-11,381249,7285.25,REVENUE,Eastern Shires Purchasing Organisation
Peterborough City Council,"Highways, Roads & Transport Services",Parking Services,Supplies and Services,08-Apr-11,381266,1065.95,REVENUE,Loomis UK Ltd
Peterborough City Council,Deficit/(Surplus) on Trading Undertakings,Trading Account Surpluses & Deficits,Premises,08-Apr-11,381273,638.4,REVENUE,T Clarke East Limited
Peterborough City Council,More than one Service Area Category,More than one Service Division,Premises,08-Apr-11,381277,2698.37,REVENUE,Elecheck (EST) Limited
Peterborough City Council,More than one Service Area Category,More than one Service Division,Premises,08-Apr-11,381278,715.46,REVENUE,Elecheck (EST) Limited
Peterborough City Council,More than one Service Area Category,More than one Service Division,More than one Expenses Type,08-Apr-11,381282,1420.58,REVENUE,Elecheck (EST) Limited
Peterborough City Council,Capital,Capital,Capital Pending Update to BS,08-Apr-11,381286,638.14,CAPITAL,Eaga Plc
Peterborough City Council,Capital,Capital,Capital Pending Update to BS,08-Apr-11,381291,1627.5,CAPITAL,Abbott & Ashby
Peterborough City Council,More than one Service Area Category,More than one Service Division,Premises,08-Apr-11,381293,2068.45,REVENUE,Elecheck (EST) Limited
Peterborough City Council,Capital,Capital,Capital Pending Update to BS,08-Apr-11,381294,5292,CAPITAL,Abbott & Ashby
Peterborough City Council,Capital,Capital,Capital Pending Update to BS,08-Apr-11,381295,3433.5,CAPITAL,Abbott & Ashby
Peterborough City Council,More than one Service Area Category,More than one Service Division,More than one Expenses Type,08-Apr-11,381301,4029.9,"Mixture of Capital, Revenue and/or Balance Sheet",Jones Heating Ltd
Peterborough City Council,More than one Service Area Category,More than one Service Division,More than one Expenses Type,08-Apr-11,381302,4280.85,"Mixture of Capital, Revenue and/or Balance Sheet",Jones Heating Ltd
Peterborough City Council,Capital,Capital,Capital Pending Update to BS,08-Apr-11,381307,5023.41,CAPITAL,FAM Building Contractors LLP
Peterborough City Council,More than one Service Area Category,More than one Service Division,More than one Expenses Type,08-Apr-11,381310,5919.34,"Mixture of Capital, Revenue and/or Balance Sheet",Burmor Construction
Peterborough City Council,More than one Service Area Category,More than one Service Division,More than one Expenses Type,08-Apr-11,381311,3255,"Mixture of Capital, Revenue and/or Balance Sheet",Rawheat Heating & Plumbing Eng.
Peterborough City Council,More than one Service Area Category,More than one Service Division,More than one Expenses Type,08-Apr-11,381312,3795.6,"Mixture of Capital, Revenue and/or Balance Sheet",Rawheat Heating & Plumbing Eng.
Peterborough City Council,More than one Service Area Category,More than one Service Division,More than one Expenses Type,08-Apr-11,381313,710.2,"Mixture of Capital, Revenue and/or Balance Sheet",Thermowall Ltd
Peterborough City Council,More than one Service Area Category,More than one Service Division,More than one Expenses Type,08-Apr-11,381314,10280.1,REVENUE,Peterborough City Council
Peterborough City Council,More than one Service Area Category,More than one Service Division,More than one Expenses Type,08-Apr-11,381317,5173.8,"Mixture of Capital, Revenue and/or Balance Sheet",Priestgate Properties Ltd
Peterborough City Council,More than one Service Area Category,More than one Service Division,More than one Expenses Type,08-Apr-11,381320,3863.28,"Mixture of Capital, Revenue and/or Balance Sheet",Burmor Construction
Peterborough City Council,More than one Service Area Category,More than one Service Division,More than one Expenses Type,08-Apr-11,381323,8233,"Mixture of Capital, Revenue and/or Balance Sheet",Warics Ltd
Peterborough City Council,More than one Service Area Category,More than one Service Division,More than one Expenses Type,08-Apr-11,381325,4435,"Mixture of Capital, Revenue and/or Balance Sheet",EMS Stairlifts
Peterborough City Council,More than one Service Area Category,More than one Service Division,More than one Expenses Type,08-Apr-11,381327,1468.09,"Mixture of Capital, Revenue and/or Balance Sheet",S R K Engineering
Peterborough City Council,More than one Service Area Category,More than one Service Division,More than one Expenses Type,08-Apr-11,381329,4123.35,"Mixture of Capital, Revenue and/or Balance Sheet",Rawheat Heating & Plumbing Eng.
Peterborough City Council,More than one Service Area Category,More than one Service Division,More than one Expenses Type,08-Apr-11,381332,1780.22,"Mixture of Capital, Revenue and/or Balance Sheet",FAM Building Contractors LLP
Peterborough City Council,More than one Service Area Category,More than one Service Division,More than one Expenses Type,08-Apr-11,381337,2589.6,"Mixture of Capital, Revenue and/or Balance Sheet",Warics Ltd
Peterborough City Council,"Cultural, Environmental and Planning Services",Open Spaces,Supplies and Services,08-Apr-11,381342,560.62,REVENUE,Peterborough Grass Machinery Ltd
Peterborough City Council,Children's & Education Services - Education,Non-School Funding,Transport,08-Apr-11,381384,518.4,REVENUE,King Cabz
Peterborough City Council,Children's & Education Services - Children's Social Care,Children Looked After,Employees,08-Apr-11,381416,3745.86,REVENUE,Car-Es (UK) Ltd
Peterborough City Council,Children's & Education Services - Children's Social Care,Children Looked After,Employees,08-Apr-11,381435,1420.42,REVENUE,Car-Es (UK) Ltd
Peterborough City Council,Children's & Education Services - Children's Social Care,Children Looked After,Employees,08-Apr-11,381437,1772.38,REVENUE,Car-Es (UK) Ltd
Peterborough City Council,Children's & Education Services - Children's Social Care,Children Looked After,Employees,08-Apr-11,381441,2212.33,REVENUE,Car-Es (UK) Ltd
Peterborough City Council,Children's & Education Services - Children's Social Care,Children Looked After,Employees,08-Apr-11,381443,3557.32,REVENUE,Car-Es (UK) Ltd
Peterborough City Council,"Cultural, Environmental and Planning Services",Regulatory services,Supplies and Services,11-Apr-11,332910,846,REVENUE,Midland Environmental Contracts Ltd
Peterborough City Council,Support Services,Support Services,Supplies and Services,11-Apr-11,373320,2450,REVENUE,Pinsent Masons
Peterborough City Council,Capital,Capital,Capital Pending Update to BS,11-Apr-11,376169,1800,CAPITAL,GreenSpace Forum (Trading) Ltd
Peterborough City Council,Children's & Education Services - Children's Social Care,Children Looked After,Supplies and Services - Transfer Payments,11-Apr-11,376320,16427.44,REVENUE,Young Options College Ltd
Peterborough City Council,Children's & Education Services - Children's Social Care,Children Looked After,Supplies and Services - Transfer Payments,11-Apr-11,376321,18483.44,REVENUE,Young Options College Ltd
Peterborough City Council,Children's & Education Services - Children's Social Care,Family Support Services,Employees,11-Apr-11,376326,2575.32,REVENUE,J C M Seating Solutions
Peterborough City Council,Capital,Capital,Capital Pending Update to BS,11-Apr-11,376347,51574.8,CAPITAL,Facultatieve Technologies Ltd
Peterborough City Council,Capital,Capital,Capital Pending Update to BS,11-Apr-11,376349,154724.4,CAPITAL,Facultatieve Technologies Ltd
Peterborough City Council,Support Services,Support Services,Supplies and Services,11-Apr-11,376354,8114.1,REVENUE,Product Development Corporation UK
Peterborough City Council,Housing Services,Housing Benefits,Supplies and Services,11-Apr-11,376357,6900,REVENUE,Capita Business Services Ltd
Peterborough City Council,Children's & Education Services - Children's Social Care,Other Children's & Families Services,Supplies and Services,11-Apr-11,376360,3500,REVENUE,Wicksteed Park Ltd
Peterborough City Council,"Cultural, Environmental and Planning Services","Cemetery, Crematorium & Mortuary Services",Supplies and Services,11-Apr-11,376362,1122,REVENUE,Scribes Ltd
Peterborough City Council,Deficit/(Surplus) on Trading Undertakings,Trading Account Surpluses & Deficits,Premises,11-Apr-11,376378,766.78,REVENUE,J Watson Scaffolding Contractors
Peterborough City Council,Central Services to the Public,Local Tax,Employees,11-Apr-11,376522,1320,REVENUE,The Synergy Group
Peterborough City Council,Children's & Education Services - Children's Social Care,Other Children's & Families Services,Employees,11-Apr-11,376893,1389.79,REVENUE,Blue Group International Ltd
Peterborough City Council,Children's & Education Services - Education,Non-School Funding,Supplies and Services,11-Apr-11,376899,500,REVENUE,Vivacity Culture and Leisure
Peterborough City Council,Children's & Education Services - Children's Social Care,Children Looked After,Employees,11-Apr-11,377013,1598.4,REVENUE,Care Recruitment UK Ltd
Peterborough City Council,Housing Services,Homelessness,Employees,11-Apr-11,377071,525.03,REVENUE,Anne Corder Recruitment
Peterborough City Council,Housing Services,Homelessness,Employees,11-Apr-11,377072,591.61,REVENUE,Anne Corder Recruitment
Peterborough City Council,Children's & Education Services - Education,Primary,More than one Expenses Type,11-Apr-11,377091,1119,REVENUE,Kingsgate Trading Ltd
Peterborough City Council,Central Services to the Public,Local Tax,Employees,11-Apr-11,377116,1267.5,REVENUE,The Synergy Group
Peterborough City Council,Capital,Capital,Capital Pending Update to BS,11-Apr-11,377242,2220,CAPITAL,Stirling Maynard and Partners
Peterborough City Council,Children's & Education Services - Children's Social Care,Family Support Services,Third Party Payments,11-Apr-11,377246,20817.29,REVENUE,P'Boro & Stamford Hosp NHS F/dation Trust
Peterborough City Council,Capital,Capital,Capital Pending Update to BS,11-Apr-11,377252,17798.4,CAPITAL,AECOM Ltd
Peterborough City Council,Children's & Education Services - Education,Primary,Supplies and Services,11-Apr-11,377325,1127.52,REVENUE,Bretton Caterers
Peterborough City Council,"Cultural, Environmental and Planning Services",Community Development,Supplies and Services,11-Apr-11,377418,665.98,REVENUE,Triple SSS Limited
Peterborough City Council,Children's & Education Services - Education,Non-School Funding,Supplies and Services,11-Apr-11,377478,698,REVENUE,NACRO
Peterborough City Council,Children's & Education Services - Education,Non-School Funding,Supplies and Services,11-Apr-11,377479,709.5,REVENUE,NACRO
Peterborough City Council,"Cultural, Environmental and Planning Services",Economic Development,Employees,11-Apr-11,377486,3600,REVENUE,NACRO
Peterborough City Council,"Cultural, Environmental and Planning Services",Economic Development,Employees,11-Apr-11,377487,3600,REVENUE,NACRO
Peterborough City Council,Children's & Education Services - Education,Primary,More than one Expenses Type,11-Apr-11,377493,1132.5,REVENUE,Kingsgate Trading Ltd
Peterborough City Council,Children's & Education Services - Children's Social Care,Children Looked After,Supplies and Services - Transfer Payments,11-Apr-11,377515,11400,REVENUE,Lincoln House Childrens Services
Peterborough City Council,Children's & Education Services - Children's Social Care,Family Support Services,Third Party Payments,11-Apr-11,377714,20945.6,REVENUE,P'Boro & Stamford Hosp NHS F/dation Trust
Peterborough City Council,Children's & Education Services - Children's Social Care,Support Services & Management Costs,Employees,11-Apr-11,377728,10000,REVENUE,Young Lives
Peterborough City Council,Children's & Education Services - Children's Social Care,Children Looked After,Supplies and Services - Transfer Payments,11-Apr-11,377733,3900,REVENUE,Chelfham Mill School Ltd
Peterborough City Council,Children's & Education Services - Children's Social Care,Family Support Services,Premises,11-Apr-11,377736,3377.66,REVENUE,Peterborough Provider Services
Peterborough City Council,"Cultural, Environmental and Planning Services",Regulatory services,Supplies and Services,11-Apr-11,377826,2494.2,REVENUE,Canford Audio Plc
Peterborough City Council,Children's & Education Services - Children's Social Care,Other Children's & Families Services,Employees,11-Apr-11,377827,1839.6,REVENUE,Medicare First
Peterborough City Council,"Cultural, Environmental and Planning Services",Planning Policy,Supplies and Services,11-Apr-11,377830,5000,REVENUE,Cambridgeshire County Council
Peterborough City Council,Housing Services,Homelessness,Supplies and Services,11-Apr-11,377831,703.51,REVENUE,Euro RSCG Riley Ltd
Peterborough City Council,Children's & Education Services - Children's Social Care,Family Support Services,Employees,11-Apr-11,377833,1800,REVENUE,Cambs & P'boro NHS Foundation Trust
Peterborough City Council,Children's & Education Services - Children's Social Care,Children Looked After,Supplies and Services - Transfer Payments,11-Apr-11,377842,1020,REVENUE,One Step Accomodation Ltd
Peterborough City Council,Children's & Education Services - Education,Secondary,Employees,11-Apr-11,378031,686.06,REVENUE,Redacted Personal Data
Peterborough City Council,More than one Service Area Category,More than one Service Division,More than one Expenses Type,11-Apr-11,378039,592.06,"Mixture of Capital, Revenue and/or Balance Sheet",G V A Grimley
Peterborough City Council,Capital,Capital,Capital Pending Update to BS,11-Apr-11,378040,2934.12,CAPITAL,Glasdon UK Ltd
Peterborough City Council,Children's & Education Services - Children's Social Care,Youth Justice,Employees,11-Apr-11,378114,750,REVENUE,Cambridgeshire County Council
Peterborough City Council,"Highways, Roads & Transport Services","Environmental, Safety & Routine Maintenance",Supplies and Services,11-Apr-11,378140,25426.06,REVENUE,ADC (East Anglia) Ltd
Peterborough City Council,Deficit/(Surplus) on Trading Undertakings,Trading Account Surpluses & Deficits,Supplies and Services,11-Apr-11,378142,579.36,REVENUE,Safetykleen UK Ltd
Peterborough City Council,"Highways, Roads & Transport Services","Environmental, Safety & Routine Maintenance",Supplies and Services,11-Apr-11,378144,2592,REVENUE,ADC (East Anglia) Ltd
Peterborough City Council,More than one Service Area Category,More than one Service Division,Balance Sheet,11-Apr-11,378150,598.1,Balance Sheet,Equita Ltd
Peterborough City Council,"Cultural, Environmental and Planning Services",Economic Development,Employees,11-Apr-11,378195,1029.6,REVENUE,Macdonald & Company
Peterborough City Council,"Cultural, Environmental and Planning Services",Community Development,Supplies and Services,11-Apr-11,378496,4242,REVENUE,FMG Consulting
Peterborough City Council,"Cultural, Environmental and Planning Services",Economic Development,Supplies and Services,11-Apr-11,378528,2400,REVENUE,Urbed (Urban & Economic Devp Ltd)
Peterborough City Council,"Cultural, Environmental and Planning Services",Economic Development,Employees,11-Apr-11,378532,2693.36,REVENUE,Redacted Personal Data
Peterborough City Council,"Highways, Roads & Transport Services","Environmental, Safety & Routine Maintenance",Supplies and Services,11-Apr-11,378541,22800,REVENUE,ADC (East Anglia) Ltd
Peterborough City Council,Children's & Education Services - Children's Social Care,Children Looked After,Premises,11-Apr-11,379673,4533.56,REVENUE,The K A Wing Group Ltd
Peterborough City Council,"Highways, Roads & Transport Services","Environmental, Safety & Routine Maintenance",Supplies and Services,11-Apr-11,380001,1207.18,REVENUE,Wilson & Scott (Highways) Ltd
Peterborough City Council,Deficit/(Surplus) on Trading Undertakings,Trading Account Surpluses & Deficits,Premises,11-Apr-11,380168,2760,REVENUE,Princebuild Limited
Peterborough City Council,Deficit/(Surplus) on Trading Undertakings,Trading Account Surpluses & Deficits,Premises,11-Apr-11,380202,5816,REVENUE,Princebuild Limited
Peterborough City Council,Deficit/(Surplus) on Trading Undertakings,Trading Account Surpluses & Deficits,Premises,11-Apr-11,380213,3009.6,REVENUE,L Garfield (Builders) Ltd
Peterborough City Council,Children's & Education Services - Education,Non-School Funding,Transport,11-Apr-11,380426,3358,REVENUE,Aardvark Coaches
Peterborough City Council,Children's & Education Services - Education,Non-School Funding,Transport,11-Apr-11,380427,3323.5,REVENUE,Aardvark Coaches
Peterborough City Council,Children's & Education Services - Education,Non-School Funding,Transport,11-Apr-11,380428,3358,REVENUE,Aardvark Coaches
Peterborough City Council,Children's & Education Services - Education,Non-School Funding,Transport,11-Apr-11,380429,3266,REVENUE,Aardvark Coaches
Peterborough City Council,Children's & Education Services - Education,Non-School Funding,Transport,11-Apr-11,380430,3979,REVENUE,Aardvark Coaches
Peterborough City Council,More than one Service Area Category,More than one Service Division,Transport,11-Apr-11,380478,794.4,REVENUE,R T Enterprises Ltd T/A Royal Taxis
Peterborough City Council,"Cultural, Environmental and Planning Services",Community Development,Supplies and Services,11-Apr-11,381235,2000,REVENUE,Werrington Scouts & Guides Council
Peterborough City Council,Children's & Education Services - Education,Secondary,Premises,11-Apr-11,381243,2362.72,REVENUE,Eastern Shires Purchasing Organisation
Peterborough City Council,Children's & Education Services - Education,Secondary,Premises,11-Apr-11,381244,5278.88,REVENUE,Npower Ltd
Peterborough City Council,Children's & Education Services - Education,Secondary,Premises,11-Apr-11,381246,8207.81,REVENUE,Eastern Shires Purchasing Organisation
Peterborough City Council,Children's & Education Services - Education,Secondary,Premises,11-Apr-11,381248,2968.16,REVENUE,Anglian Water
Peterborough City Council,Children's & Education Services - Education,Secondary,Premises,11-Apr-11,381250,8233.49,REVENUE,Eastern Shires Purchasing Organisation
Peterborough City Council,"Highways, Roads & Transport Services",Public Transport,Supplies and Services,11-Apr-11,381259,9100,REVENUE,First Eastern Counties Buses Ltd
Peterborough City Council,Children's & Education Services - Education,Non-School Funding,Premises,11-Apr-11,381367,1387.42,REVENUE,Eastern Shires Purchasing Organisation
Peterborough City Council,Parish Council Precepts,Precepts & Levies,More than one Expenses Type,11-Apr-11,381500,2795.25,REVENUE,Ailsworth Parish Council
Peterborough City Council,Parish Council Precepts,Precepts & Levies,More than one Expenses Type,11-Apr-11,381505,2875,REVENUE,Bainton & Ashton Parish Council
Peterborough City Council,Parish Council Precepts,Precepts & Levies,More than one Expenses Type,11-Apr-11,381512,25000,REVENUE,Bretton Parish Council
Peterborough City Council,Children's & Education Services - Children's Social Care,Children Looked After,Transport,11-Apr-11,381513,2938.8,REVENUE,A2B Euro Cars
Peterborough City Council,Children's & Education Services - Children's Social Care,Children Looked After,Transport,11-Apr-11,381514,3322.8,REVENUE,A2B Euro Cars
Peterborough City Council,Children's & Education Services - Children's Social Care,Children Looked After,Transport,11-Apr-11,381516,803.2,REVENUE,Redacted Personal Data
Peterborough City Council,More than one Service Area Category,More than one Service Division,Transport,11-Apr-11,381517,1308.8,REVENUE,Redacted Personal Data
Peterborough City Council,More than one Service Area Category,More than one Service Division,Transport,11-Apr-11,381518,888,REVENUE,Redacted Personal Data
Peterborough City Council,Children's & Education Services - Children's Social Care,Children Looked After,Transport,11-Apr-11,381519,516,REVENUE,Redacted Personal Data
Peterborough City Council,More than one Service Area Category,More than one Service Division,Transport,11-Apr-11,381520,2101.6,REVENUE,Redacted Personal Data
Peterborough City Council,More than one Service Area Category,More than one Service Division,Transport,11-Apr-11,381521,903.2,REVENUE,Redacted Personal Data
Peterborough City Council,Children's & Education Services - Children's Social Care,Children Looked After,Transport,11-Apr-11,381522,2213.2,REVENUE,Redacted Personal Data
Peterborough City Council,Parish Council Precepts,Precepts & Levies,Supplies and Services,11-Apr-11,381528,16285,REVENUE,Eye Parish Council
Peterborough City Council,Parish Council Precepts,Precepts & Levies,More than one Expenses Type,11-Apr-11,381529,5121.75,REVENUE,Glinton Parish Council
Peterborough City Council,Parish Council Precepts,Precepts & Levies,More than one Expenses Type,11-Apr-11,381530,13973.75,REVENUE,Hampton Parish Council
Peterborough City Council,Parish Council Precepts,Precepts & Levies,More than one Expenses Type,11-Apr-11,381531,3892.75,REVENUE,Helpston Parish Council
Peterborough City Council,Parish Council Precepts,Precepts & Levies,More than one Expenses Type,11-Apr-11,381534,7250,REVENUE,Newborough Parish Council
Peterborough City Council,Parish Council Precepts,Precepts & Levies,More than one Expenses Type,11-Apr-11,381535,5750,REVENUE,Northborough Parish Council
Peterborough City Council,Parish Council Precepts,Precepts & Levies,More than one Expenses Type,11-Apr-11,381537,14751.5,REVENUE,Orton Waterville Parish Council
Peterborough City Council,Parish Council Precepts,Precepts & Levies,More than one Expenses Type,11-Apr-11,381538,4750,REVENUE,Peakirk Parish Council
Peterborough City Council,Parish Council Precepts,Precepts & Levies,More than one Expenses Type,11-Apr-11,381539,572.5,REVENUE,Southorpe Parish Council
Peterborough City Council,Parish Council Precepts,Precepts & Levies,More than one Expenses Type,11-Apr-11,381541,16316.75,REVENUE,Thorney Parish Council
Peterborough City Council,Parish Council Precepts,Precepts & Levies,More than one Expenses Type,11-Apr-11,381542,3275,REVENUE,Thornhaugh Parish Council
Peterborough City Council,Parish Council Precepts,Precepts & Levies,More than one Expenses Type,11-Apr-11,381543,2400,REVENUE,Ufford Parish Council
Peterborough City Council,Parish Council Precepts,Precepts & Levies,More than one Expenses Type,11-Apr-11,381545,13750,REVENUE,Wittering Parish Council
Peterborough City Council,Children's & Education Services - Education,Non-School Funding,Transport,11-Apr-11,381558,708,REVENUE,3 Star Ambassador Taxis
Peterborough City Council,Adult Social Care,Other Adult Services,Supplies and Services,11-Apr-11,381587,1572.15,REVENUE,Freeth Cartwright LLP
Peterborough City Council,Support Services,Support Services,Supplies and Services,11-Apr-11,381592,3600,REVENUE,Practical Law Company
Peterborough City Council,"Highways, Roads & Transport Services",Public Transport,Supplies and Services,11-Apr-11,381595,8767.07,REVENUE,National Express Ltd
Peterborough City Council,Children's & Education Services - Education,Secondary,Premises,11-Apr-11,381602,6325.43,REVENUE,Eastern Shires Purchasing Organisation
Peterborough City Council,Capital,Capital,Capital Pending Update to BS,11-Apr-11,381672,525.6,CAPITAL,UK Power Networks (operations) Ltd
Peterborough City Council,Capital,Capital,Capital Pending Update to BS,11-Apr-11,381673,976.8,CAPITAL,UK Power Networks (operations) Ltd
Peterborough City Council,Capital,Capital,Capital Pending Update to BS,11-Apr-11,381675,525.6,CAPITAL,UK Power Networks (operations) Ltd
Peterborough City Council,"Highways, Roads & Transport Services",Street Lighting,Supplies and Services,11-Apr-11,381676,775.2,REVENUE,UK Power Networks (operations) Ltd
Peterborough City Council,"Highways, Roads & Transport Services",Street Lighting,Supplies and Services,11-Apr-11,381677,543.6,REVENUE,UK Power Networks (operations) Ltd
Peterborough City Council,"Highways, Roads & Transport Services",Street Lighting,Supplies and Services,11-Apr-11,381679,775.2,REVENUE,UK Power Networks (operations) Ltd
Peterborough City Council,Children's & Education Services - Education,Non-School Funding,Transport,11-Apr-11,381698,1623.6,REVENUE,A2B Euro Cars
Peterborough City Council,Children's & Education Services - Education,Non-School Funding,Transport,11-Apr-11,381699,2606.15,REVENUE,A2B Euro Cars
Peterborough City Council,Children's & Education Services - Education,Non-School Funding,Transport,11-Apr-11,381700,2360.4,REVENUE,A2B Euro Cars
Peterborough City Council,Children's & Education Services - Education,Non-School Funding,Transport,11-Apr-11,381701,1907.03,REVENUE,A2B Euro Cars
Peterborough City Council,Children's & Education Services - Education,Non-School Funding,Transport,11-Apr-11,381711,1044,REVENUE,A2B Euro Cars
Peterborough City Council,Children's & Education Services - Education,Secondary,Premises,12-Apr-11,382344,-2900.63,REVENUE,E.ON Energy
Peterborough City Council,Support Services,Support Services,Premises,12-Apr-11,382354,-2690.61,REVENUE,Anglian Water
Peterborough City Council,Support Services,Support Services,Premises,12-Apr-11,CHAPS,99359.69,REVENUE,Capita Symonds Ltd
Peterborough City Council,"Cultural, Environmental and Planning Services",Economic Development,Supplies and Services,13-Apr-11,364545,1165.03,REVENUE,Randstad CPE
Peterborough City Council,"Cultural, Environmental and Planning Services",Economic Development,Supplies and Services,13-Apr-11,367269,2857.15,REVENUE,Centre for Sustainable Engineering
Peterborough City Council,Support Services,Support Services,Premises,13-Apr-11,368553,1677.6,REVENUE,Beebys Ltd
Peterborough City Council,Support Services,Support Services,Premises,13-Apr-11,368554,1161.44,REVENUE,Beebys Ltd
Peterborough City Council,Capital,Capital,Capital Pending Update to BS,13-Apr-11,370048,-909.45,CAPITAL,UK Power Networks (operations) Ltd
Peterborough City Council,"Cultural, Environmental and Planning Services",Economic Development,More than one Expenses Type,13-Apr-11,373166,1739,REVENUE,Hays Specialist Recruitment Ltd
Peterborough City Council,Capital,Capital,Capital Pending Update to BS,13-Apr-11,373543,4298.52,CAPITAL,Stirling Maynard and Partners
Peterborough City Council,Support Services,Support Services,Premises,13-Apr-11,373987,1677.6,REVENUE,Beebys Ltd
Peterborough City Council,Support Services,Support Services,Premises,13-Apr-11,373988,507.13,REVENUE,Beebys Ltd
Peterborough City Council,Housing Services,Homelessness,Employees,13-Apr-11,376221,595.54,REVENUE,Anne Corder Recruitment
Peterborough City Council,"Cultural, Environmental and Planning Services",Economic Development,More than one Expenses Type,13-Apr-11,376311,1243.2,REVENUE,Hays Specialist Recruitment Ltd
Peterborough City Council,Deficit/(Surplus) on Trading Undertakings,Trading Account Surpluses & Deficits,Employees,13-Apr-11,376626,1440,REVENUE,Aebi Schmidt UK Ltd
Peterborough City Council,Children's & Education Services - Children's Social Care,Family Support Services,More than one Expenses Type,13-Apr-11,376780,1470.74,REVENUE,Swim
Peterborough City Council,Children's & Education Services - Children's Social Care,Family Support Services,More than one Expenses Type,13-Apr-11,376993,951.19,REVENUE,Swim
Peterborough City Council,"Cultural, Environmental and Planning Services",Economic Development,More than one Expenses Type,13-Apr-11,376996,1332,REVENUE,Hays Specialist Recruitment Ltd
Peterborough City Council,Children's & Education Services - Children's Social Care,Other Children's & Families Services,Employees,13-Apr-11,377024,1598.4,REVENUE,Frontline Staffing Ltd
Peterborough City Council,Children's & Education Services - Children's Social Care,Other Children's & Families Services,Employees,13-Apr-11,377025,1598.4,REVENUE,Frontline Staffing Ltd
Peterborough City Council,Children's & Education Services - Children's Social Care,Other Children's & Families Services,Employees,13-Apr-11,377030,1416,REVENUE,Frontline Staffing Ltd
Peterborough City Council,More than one Service Area Category,More than one Service Division,More than one Expenses Type,13-Apr-11,377035,28718.4,"Mixture of Capital, Revenue and/or Balance Sheet",R J Warren Ltd
Peterborough City Council,Capital,Capital,Capital Pending Update to BS,13-Apr-11,377039,9992.4,CAPITAL,R J Warren Ltd
Peterborough City Council,"Cultural, Environmental and Planning Services",Economic Development,More than one Expenses Type,13-Apr-11,377043,1376.4,REVENUE,Hays Specialist Recruitment Ltd
Peterborough City Council,Housing Services,Homelessness,Employees,13-Apr-11,377077,599.46,REVENUE,Anne Corder Recruitment
Peterborough City Council,Housing Services,Homelessness,Employees,13-Apr-11,377078,607.28,REVENUE,Anne Corder Recruitment
Peterborough City Council,"Highways, Roads & Transport Services",Public Transport,Supplies and Services,13-Apr-11,377080,12104.85,REVENUE,Queensbury Shelters Ltd
Peterborough City Council,Support Services,Support Services,Supplies and Services,13-Apr-11,377082,2185.73,REVENUE,The Newspaper Licensing Agency Ltd
Peterborough City Council,Children's & Education Services - Children's Social Care,Children Looked After,Supplies and Services - Transfer Payments,13-Apr-11,377089,12027.68,REVENUE,Lovell's Hall
Peterborough City Council,Children's & Education Services - Children's Social Care,Other Children's & Families Services,Employees,13-Apr-11,377129,1010.5,REVENUE,Frontline Staffing Ltd
Peterborough City Council,"Highways, Roads & Transport Services",Street Lighting,More than one Expenses Type,13-Apr-11,377232,2953.85,REVENUE,Atkins Limited
Peterborough City Council,"Cultural, Environmental and Planning Services",Economic Development,More than one Expenses Type,13-Apr-11,377316,1376.4,REVENUE,Hays Specialist Recruitment Ltd
Peterborough City Council,"Cultural, Environmental and Planning Services",Culture & Heritage,Supplies and Services,13-Apr-11,377374,1200,REVENUE,The Morton Patnership
Peterborough City Council,Support Services,Support Services,Employees,13-Apr-11,377453,1342.09,REVENUE,Venn Group Ltd
Peterborough City Council,Children's & Education Services - Children's Social Care,Children Looked After,Employees,13-Apr-11,377458,1430.88,REVENUE,Liquid Personnel
Peterborough City Council,Children's & Education Services - Children's Social Care,Children Looked After,Employees,13-Apr-11,377462,938.16,REVENUE,Liquid Personnel
Peterborough City Council,Children's & Education Services - Children's Social Care,Family Support Services,Supplies and Services,13-Apr-11,377482,51480,REVENUE,Cambs & P'boro NHS Foundation Trust
Peterborough City Council,Housing Services,Housing Benefits,Employees,13-Apr-11,377494,1360.8,REVENUE,The Synergy Group
Peterborough City Council,Housing Services,Housing Benefits,Employees,13-Apr-11,377496,1310.4,REVENUE,The Synergy Group
Peterborough City Council,Central Services to the Public,Local Tax,Employees,13-Apr-11,377501,1420.8,REVENUE,The Synergy Group
Peterborough City Council,Housing Services,Housing Benefits,Employees,13-Apr-11,377505,1440,REVENUE,The Synergy Group
Peterborough City Council,Housing Services,Housing Benefits,Employees,13-Apr-11,377507,1365,REVENUE,The Synergy Group
Peterborough City Council,Central Services to the Public,Local Tax,Employees,13-Apr-11,377508,1252.8,REVENUE,The Synergy Group
Peterborough City Council,Central Services to the Public,Local Tax,Employees,13-Apr-11,377509,1320,REVENUE,The Synergy Group
Peterborough City Council,"Cultural, Environmental and Planning Services",Economic Development,Supplies and Services,13-Apr-11,377705,3093.95,REVENUE,Vivacity Culture and Leisure
Peterborough City Council,Children's & Education Services - Education,Non-School Funding,Supplies and Services,13-Apr-11,377707,2800,REVENUE,Redacted Personal Data
Peterborough City Council,Children's & Education Services - Children's Social Care,Support Services & Management Costs,Employees,13-Apr-11,377711,700,REVENUE,The Open University
Peterborough City Council,Children's & Education Services - Children's Social Care,Support Services & Management Costs,Employees,13-Apr-11,377721,1080,REVENUE,Reconstruct
Peterborough City Council,Support Services,Support Services,Supplies and Services,13-Apr-11,377723,14400,REVENUE,Phoenix Software Ltd
Peterborough City Council,"Cultural, Environmental and Planning Services",Development Control,Supplies and Services,13-Apr-11,377726,676.2,REVENUE,Johnston Press Midlands Division
Peterborough City Council,Children's & Education Services - Children's Social Care,Youth Justice,Employees,13-Apr-11,377771,2948.8,REVENUE,Redacted Personal Data
Peterborough City Council,Children's & Education Services - Education,Non-School Funding,Premises,13-Apr-11,377773,5880,REVENUE,Kingsgate Trading Ltd
Peterborough City Council,"Cultural, Environmental and Planning Services",Flood Defence & Land Drainage,Supplies and Services,13-Apr-11,377774,4800,REVENUE,ADC (East Anglia) Ltd
Peterborough City Council,Capital,Capital,Capital Pending Update to BS,13-Apr-11,377775,3600,CAPITAL,ADC (East Anglia) Ltd
Peterborough City Council,Children's & Education Services - Education,Non-School Funding,Employees,13-Apr-11,377784,1300,REVENUE,R N I B
Peterborough City Council,Children's & Education Services - Children's Social Care,Other Children's & Families Services,Supplies and Services,13-Apr-11,377785,14212.57,REVENUE,Peterborough Diocesan Family Care
Peterborough City Council,Capital,Capital,Capital Pending Update to BS,13-Apr-11,377808,13489.2,CAPITAL,Peterborough Environment City Trust
Peterborough City Council,Deficit/(Surplus) on Trading Undertakings,Trading Account Surpluses & Deficits,Premises,13-Apr-11,377812,6600,REVENUE,Anglia Support Partnership
Peterborough City Council,Children's & Education Services - Education,Non-School Funding,Supplies and Services,13-Apr-11,377825,14870.4,REVENUE,Open Objects Software Ltd
Peterborough City Council,"Highways, Roads & Transport Services","Transport planning, policy and strategy",Employees,13-Apr-11,377835,1620,REVENUE,Randstad CPE
Peterborough City Council,Children's & Education Services - Children's Social Care,Family Support Services,Employees,13-Apr-11,377837,1152,REVENUE,Movement 2
Peterborough City Council,"Cultural, Environmental and Planning Services",Open Spaces,Supplies and Services,13-Apr-11,377840,1554,REVENUE,Custom Fencing
Peterborough City Council,"Highways, Roads & Transport Services","Transport planning, policy and strategy",Employees,13-Apr-11,378042,1623.12,REVENUE,Randstad CPE
Peterborough City Council,Children's & Education Services - Education,Non-School Funding,Supplies and Services,13-Apr-11,378059,6662.5,REVENUE,Peterborough Provider Services
Peterborough City Council,Children's & Education Services - Children's Social Care,Children Looked After,Supplies and Services,13-Apr-11,378070,3543.03,REVENUE,Anglia Support Partnership
Peterborough City Council,Children's & Education Services - Children's Social Care,Children Looked After,Supplies and Services,13-Apr-11,378076,8322,REVENUE,Peterborough Provider Services
Peterborough City Council,"Highways, Roads & Transport Services",Public Transport,Supplies and Services,13-Apr-11,378081,1043.4,REVENUE,Payne Security
Peterborough City Council,Housing Services,Housing Benefits,Employees,13-Apr-11,378097,704.63,REVENUE,Reed Personnel Services Plc
Peterborough City Council,"Cultural, Environmental and Planning Services",Regulatory services,Supplies and Services,13-Apr-11,378138,840,REVENUE,Redacted Personal Data
Peterborough City Council,Children's & Education Services - Children's Social Care,Youth Justice,Transport,13-Apr-11,378145,614.98,REVENUE,Reliance
Peterborough City Council,Central Services to the Public,Local Tax,Supplies and Services,13-Apr-11,378148,2722.8,REVENUE,Virtual Mail Room Ltd
Peterborough City Council,Children's & Education Services - Education,Secondary,Supplies and Services,13-Apr-11,378152,2050,REVENUE,City College Peterborough
Peterborough City Council,Children's & Education Services - Children's Social Care,Family Support Services,Employees,13-Apr-11,378165,2851.2,REVENUE,Cambridgeshire County Council
Peterborough City Council,Deficit/(Surplus) on Trading Undertakings,Trading Account Surpluses & Deficits,Premises,13-Apr-11,378172,6078,REVENUE,James Coles & Sons Ltd
Peterborough City Council,Children's & Education Services - Children's Social Care,Family Support Services,Support Services,13-Apr-11,378177,3906,REVENUE,Fenland Leisure Products Ltd
Peterborough City Council,Children's & Education Services - Children's Social Care,Family Support Services,Support Services,13-Apr-11,378178,1242,REVENUE,Fenland Leisure Products Ltd
Peterborough City Council,Children's & Education Services - Children's Social Care,Children Looked After,Employees,13-Apr-11,378180,1512,REVENUE,Capita Resourcing Ltd
Peterborough City Council,"Cultural, Environmental and Planning Services","Cemetery, Crematorium & Mortuary Services",Premises,13-Apr-11,378188,600,REVENUE,JAT Ingledew
Peterborough City Council,"Highways, Roads & Transport Services","Environmental, Safety & Routine Maintenance",Supplies and Services,13-Apr-11,378189,3420,REVENUE,JAT Ingledew
Peterborough City Council,"Cultural, Environmental and Planning Services",Economic Development,Employees,13-Apr-11,378190,1306.25,REVENUE,Randstad CPE
Peterborough City Council,Support Services,Support Services,Supplies and Services,13-Apr-11,378196,1336.8,REVENUE,Eversheds LLP
Peterborough City Council,Children's & Education Services - Children's Social Care,Other Children's & Families Services,More than one Expenses Type,13-Apr-11,378199,1267.5,REVENUE,Peterborough Diocesan Family Care
Peterborough City Council,"Cultural, Environmental and Planning Services",Flood Defence & Land Drainage,Supplies and Services,13-Apr-11,378202,11412.72,REVENUE,L A Jackson
Peterborough City Council,Children's & Education Services - Education,Secondary,Premises,13-Apr-11,378210,4367.36,REVENUE,Princebuild Limited
Peterborough City Council,Children's & Education Services - Education,Primary,Premises,13-Apr-11,378211,789.6,REVENUE,Cambridgeshire County Council
Peterborough City Council,Children's & Education Services - Education,Non-School Funding,Supplies and Services,13-Apr-11,378218,780,REVENUE,Top Class Tutors
Peterborough City Council,Children's & Education Services - Education,Non-School Funding,Supplies and Services,13-Apr-11,378219,1005,REVENUE,Top Class Tutors
Peterborough City Council,Children's & Education Services - Education,Non-School Funding,Supplies and Services,13-Apr-11,378222,900,REVENUE,Top Class Tutors
Peterborough City Council,Children's & Education Services - Education,Non-School Funding,Supplies and Services,13-Apr-11,378223,4080,REVENUE,Top Class Tutors
Peterborough City Council,Capital,Capital,Capital Pending Update to BS,13-Apr-11,378232,2356.13,CAPITAL,Stirling Maynard and Partners
Peterborough City Council,"Cultural, Environmental and Planning Services",Economic Development,Employees,13-Apr-11,378277,1944,REVENUE,Hays Specialist Recruitment Ltd
Peterborough City Council,"Cultural, Environmental and Planning Services",Economic Development,Employees,13-Apr-11,378278,1544.4,REVENUE,Hays Specialist Recruitment Ltd
Peterborough City Council,"Cultural, Environmental and Planning Services",Economic Development,Employees,13-Apr-11,378279,1374.46,REVENUE,Hays Specialist Recruitment Ltd
Peterborough City Council,"Highways, Roads & Transport Services","Transport planning, policy and strategy",Employees,13-Apr-11,378282,1068,REVENUE,Hays Specialist Recruitment Ltd
Peterborough City Council,"Cultural, Environmental and Planning Services",Economic Development,Employees,13-Apr-11,378284,2014.99,REVENUE,Hays Specialist Recruitment Ltd
Peterborough City Council,Housing Services,Private Sector Housing Renewal,Supplies and Services,13-Apr-11,378288,807.5,REVENUE,Fletton Electrics Ltd
Peterborough City Council,More than one Service Area Category,More than one Service Division,More than one Expenses Type,13-Apr-11,378291,48819.47,REVENUE,Volker Highways MEWS Ltd
Peterborough City Council,More than one Service Area Category,More than one Service Division,More than one Expenses Type,13-Apr-11,378293,66552.76,REVENUE,Volker Highways MEWS Ltd
Peterborough City Council,Support Services,Support Services,Employees,13-Apr-11,378301,1206.68,REVENUE,Sacco Mann Ltd
Peterborough City Council,Children's & Education Services - Education,Non-School Funding,Supplies and Services,13-Apr-11,378316,1570,REVENUE,New College Stamford
Peterborough City Council,Capital,Capital,Capital Pending Update to BS,13-Apr-11,378324,2450.75,CAPITAL,The Wildlife Trust BCNP
Peterborough City Council,Children's & Education Services - Education,All Schools - apportion across sectors,Supplies and Services,13-Apr-11,378353,1013.58,REVENUE,ES4S Ltd
Peterborough City Council,Children's & Education Services - Children's Social Care,Family Support Services,Premises,13-Apr-11,378424,1364.25,REVENUE,PAM Recruitment Ltd
Peterborough City Council,"Cultural, Environmental and Planning Services",Flood Defence & Land Drainage,Supplies and Services,13-Apr-11,378438,2930,REVENUE,N K Building Contractors
Peterborough City Council,"Cultural, Environmental and Planning Services",Economic Development,Third Party Payments,13-Apr-11,378505,11759.98,REVENUE,Cambridgeshire Constabulary
Peterborough City Council,More than one Service Area Category,More than one Service Division,More than one Expenses Type,13-Apr-11,378517,91599.48,"Mixture of Capital, Revenue and/or Balance Sheet",Ringway Infrastructure Services
Peterborough City Council,"Highways, Roads & Transport Services","Environmental, Safety & Routine Maintenance",Supplies and Services,13-Apr-11,378542,12000,REVENUE,ADC (East Anglia) Ltd
Peterborough City Council,Support Services,Support Services,Supplies and Services,13-Apr-11,378561,5653.78,REVENUE,Pitney Bowes Finance Plc
Peterborough City Council,Capital,Capital,Capital Pending Update to BS,13-Apr-11,378692,20431.97,CAPITAL,Princebuild Limited
Peterborough City Council,Children's & Education Services - Children's Social Care,Children Looked After,Supplies and Services,13-Apr-11,378728,615.94,REVENUE,J Newcombe & Co
Peterborough City Council,"Cultural, Environmental and Planning Services",Regulatory services,Supplies and Services,13-Apr-11,378995,576,REVENUE,Chartered Inst of Environmental Health
Peterborough City Council,Children's & Education Services - Education,Secondary,Employees,13-Apr-11,379474,1904.42,REVENUE,Mana Resourcing Ltd
Peterborough City Council,Deficit/(Surplus) on Trading Undertakings,Trading Account Surpluses & Deficits,Supplies and Services,13-Apr-11,379563,9954,REVENUE,Custom Fencing
Peterborough City Council,"Cultural, Environmental and Planning Services",Open Spaces,Supplies and Services,13-Apr-11,379566,4668,REVENUE,Custom Fencing
Peterborough City Council,"Cultural, Environmental and Planning Services",Open Spaces,Premises,13-Apr-11,379568,8172,REVENUE,Custom Fencing
Peterborough City Council,Support Services,Support Services,Supplies and Services,13-Apr-11,379660,754.8,REVENUE,Key People Ltd
Peterborough City Council,Support Services,Support Services,Supplies and Services,13-Apr-11,379663,999,REVENUE,Key People Ltd
Peterborough City Council,Support Services,Support Services,Supplies and Services,13-Apr-11,380120,788.61,REVENUE,Signs Express
Peterborough City Council,Support Services,Support Services,Premises,13-Apr-11,380167,3767.32,REVENUE,British Gas Business
Peterborough City Council,Support Services,Support Services,Premises,13-Apr-11,380200,564,REVENUE,Princebuild Limited
Peterborough City Council,Children's & Education Services - Children's Social Care,Children Looked After,Supplies and Services,13-Apr-11,380251,669.15,REVENUE,Redacted Personal Data
Peterborough City Council,Deficit/(Surplus) on Trading Undertakings,Trading Account Surpluses & Deficits,Transport,13-Apr-11,380269,985,REVENUE,Apex Training Services
Peterborough City Council,Children's & Education Services - Education,Secondary,More than one Expenses Type,13-Apr-11,380312,664.64,REVENUE,Redacted Personal Data
Peterborough City Council,More than one Service Area Category,More than one Service Division,Transport,13-Apr-11,380480,803.4,REVENUE,R T Enterprises Ltd T/A Royal Taxis
Peterborough City Council,Housing Services,Housing Benefits,Employees,13-Apr-11,380559,2928,REVENUE,CIPFA
Peterborough City Council,Capital,Capital,Capital Pending Update to BS,13-Apr-11,380570,9497.16,CAPITAL,Survey Supplies Ltd t/as Korec
Peterborough City Council,"Cultural, Environmental and Planning Services",Waste Disposal,Supplies and Services,13-Apr-11,380591,2700,REVENUE,Now Energy Ltd
Peterborough City Council,Deficit/(Surplus) on Trading Undertakings,Trading Account Surpluses & Deficits,Transport,13-Apr-11,380688,3818.51,REVENUE,Ernest Doe & Sons Ltd
Peterborough City Council,Children's & Education Services - Children's Social Care,Support Services & Management Costs,Supplies and Services,13-Apr-11,380788,5239.8,REVENUE,Sunflower Seed Pre-School
Peterborough City Council,Children's & Education Services - Children's Social Care,Support Services & Management Costs,Supplies and Services,13-Apr-11,380886,3055.3,REVENUE,Sunflower Seed Pre-School
Peterborough City Council,"Cultural, Environmental and Planning Services",Economic Development,Employees,13-Apr-11,381090,1323.9,REVENUE,Randstad CPE
Peterborough City Council,Deficit/(Surplus) on Trading Undertakings,Trading Account Surpluses & Deficits,Premises,13-Apr-11,381158,4352.96,REVENUE,UK Power Networks (operations) Ltd
Peterborough City Council,More than one Service Area Category,More than one Service Division,Balance Sheet,13-Apr-11,381216,2243.12,Balance Sheet,Redacted Personal Data
Peterborough City Council,More than one Service Area Category,More than one Service Division,Balance Sheet,13-Apr-11,381220,523.45,Balance Sheet,Redacted Personal Data
Peterborough City Council,Support Services,Support Services,Premises,13-Apr-11,381236,720.33,REVENUE,Zurich Insurance Company
Peterborough City Council,"Cultural, Environmental and Planning Services",Community Development,Supplies and Services,13-Apr-11,381242,600,REVENUE,Stanground Community Association
Peterborough City Council,More than one Service Area Category,More than one Service Division,More than one Expenses Type,13-Apr-11,381304,4561,"Mixture of Capital, Revenue and/or Balance Sheet",Casbon Building Services
Peterborough City Council,Capital,Capital,Capital Pending Update to BS,13-Apr-11,381305,1072.93,CAPITAL,Casbon Building Services
Peterborough City Council,More than one Service Area Category,More than one Service Division,More than one Expenses Type,13-Apr-11,381306,3498,"Mixture of Capital, Revenue and/or Balance Sheet",Casbon Building Services
Peterborough City Council,Capital,Capital,Capital Pending Update to BS,13-Apr-11,381308,708,CAPITAL,Casbon Building Services
Peterborough City Council,More than one Service Area Category,More than one Service Division,More than one Expenses Type,13-Apr-11,381309,4608,"Mixture of Capital, Revenue and/or Balance Sheet",Redacted Personal Data
Peterborough City Council,More than one Service Area Category,More than one Service Division,More than one Expenses Type,13-Apr-11,381318,3804,"Mixture of Capital, Revenue and/or Balance Sheet",Redacted Personal Data
Peterborough City Council,Children's & Education Services - Education,Secondary,Premises,13-Apr-11,381319,6580.37,REVENUE,Eastern Shires Purchasing Organisation
Peterborough City Council,More than one Service Area Category,More than one Service Division,More than one Expenses Type,13-Apr-11,381322,4200,"Mixture of Capital, Revenue and/or Balance Sheet",Redacted Personal Data
Peterborough City Council,More than one Service Area Category,More than one Service Division,More than one Expenses Type,13-Apr-11,381326,4302,"Mixture of Capital, Revenue and/or Balance Sheet",Premier Mobility
Peterborough City Council,Capital,Capital,Capital Pending Update to BS,13-Apr-11,381354,73671.88,CAPITAL,L Garfield (Builders) Ltd
Peterborough City Council,Children's & Education Services - Education,Non-School Funding,Premises,13-Apr-11,381365,521.95,REVENUE,Southern Electric
Peterborough City Council,Support Services,Support Services,Premises,13-Apr-11,381444,522.65,REVENUE,Siemens Plc
Peterborough City Council,Support Services,Support Services,Premises,13-Apr-11,381445,587.56,REVENUE,EDF Energy Networks Ltd
Peterborough City Council,Support Services,Support Services,Premises,13-Apr-11,381448,1742.45,REVENUE,Anglian Water
Peterborough City Council,Support Services,Support Services,Premises,13-Apr-11,381449,1315.37,REVENUE,Southern Electric
Peterborough City Council,Parish Council Precepts,Precepts & Levies,More than one Expenses Type,13-Apr-11,381508,4389.25,REVENUE,Barnack Parish Council
Peterborough City Council,Parish Council Precepts,Precepts & Levies,More than one Expenses Type,13-Apr-11,381510,515,REVENUE,Borough Fen Parish Council
Peterborough City Council,Parish Council Precepts,Precepts & Levies,More than one Expenses Type,13-Apr-11,381524,3256.06,REVENUE,Castor Parish Council
Peterborough City Council,Parish Council Precepts,Precepts & Levies,Supplies and Services,13-Apr-11,381525,850,REVENUE,Deeping Gate Parish Council
Peterborough City Council,Parish Council Precepts,Precepts & Levies,More than one Expenses Type,13-Apr-11,381527,1172.5,REVENUE,Etton Parish Council
Peterborough City Council,Parish Council Precepts,Precepts & Levies,More than one Expenses Type,13-Apr-11,381533,1823,REVENUE,Maxey Parish Council
Peterborough City Council,Parish Council Precepts,Precepts & Levies,More than one Expenses Type,13-Apr-11,381536,8987.5,REVENUE,Orton Longueville Parish Council
Peterborough City Council,Parish Council Precepts,Precepts & Levies,More than one Expenses Type,13-Apr-11,381540,1995,REVENUE,Sutton Parish Council
Peterborough City Council,Parish Council Precepts,Precepts & Levies,More than one Expenses Type,13-Apr-11,381544,3031.5,REVENUE,Wansford Parish Council
Peterborough City Council,Parish Council Precepts,Precepts & Levies,Supplies and Services,13-Apr-11,381546,528,REVENUE,Wothorpe Parish Council
Peterborough City Council,Deficit/(Surplus) on Trading Undertakings,Trading Account Surpluses & Deficits,Supplies and Services,13-Apr-11,381611,3748.47,REVENUE,Princebuild Limited
Peterborough City Council,Children's & Education Services - Education,Non-School Funding,Employees,13-Apr-11,381633,867.6,REVENUE,Mana Resourcing Ltd
Peterborough City Council,Capital,Capital,Capital Pending Update to BS,13-Apr-11,381638,20816.45,CAPITAL,Savills
Peterborough City Council,Children's & Education Services - Children's Social Care,Support Services & Management Costs,Supplies and Services,13-Apr-11,381655,1410,REVENUE,Redacted Personal Data
Peterborough City Council,"Highways, Roads & Transport Services",Public Transport,Third Party Payments,13-Apr-11,381660,891.23,REVENUE,WRVS
Peterborough City Council,"Highways, Roads & Transport Services",Public Transport,Third Party Payments,13-Apr-11,381669,2370.99,REVENUE,Orton Comm. Transport Assoc. Ltd
Peterborough City Council,Capital,Capital,Capital Pending Update to BS,13-Apr-11,381670,823.2,CAPITAL,UK Power Networks (operations) Ltd
Peterborough City Council,Capital,Capital,Capital Pending Update to BS,13-Apr-11,381671,775.2,CAPITAL,UK Power Networks (operations) Ltd
Peterborough City Council,Capital,Capital,Capital Pending Update to BS,13-Apr-11,381680,1557.6,CAPITAL,UK Power Networks (operations) Ltd
Peterborough City Council,"Highways, Roads & Transport Services",Street Lighting,Supplies and Services,13-Apr-11,381681,778.8,REVENUE,UK Power Networks (operations) Ltd
Peterborough City Council,"Highways, Roads & Transport Services",Street Lighting,Supplies and Services,13-Apr-11,381683,609.6,REVENUE,UK Power Networks (operations) Ltd
Peterborough City Council,Capital,Capital,Capital Pending Update to BS,13-Apr-11,381684,525.6,CAPITAL,UK Power Networks (operations) Ltd
Peterborough City Council,Capital,Capital,Capital Pending Update to BS,13-Apr-11,381685,525.6,CAPITAL,UK Power Networks (operations) Ltd
Peterborough City Council,Capital,Capital,Capital Pending Update to BS,13-Apr-11,381686,7540.8,CAPITAL,UK Power Networks (operations) Ltd
Peterborough City Council,Children's & Education Services - Education,Secondary,Employees,13-Apr-11,381723,1998.22,REVENUE,IIC by Education (P'boro) Ltd
Peterborough City Council,"Cultural, Environmental and Planning Services",Economic Development,Third Party Payments,13-Apr-11,381729,9905,REVENUE,Peterborough Racial Equality Council
Peterborough City Council,"Cultural, Environmental and Planning Services",Economic Development,Third Party Payments,13-Apr-11,381731,5000,REVENUE,Peterborough Racial Equality Council
Peterborough City Council,Capital,Capital,Capital Pending Update to BS,13-Apr-11,381733,13794,CAPITAL,Fitzpatrick Contractors Ltd
Peterborough City Council,Children's & Education Services - Children's Social Care,Family Support Services,Third Party Payments,13-Apr-11,381749,4679.31,REVENUE,Peterborough Diocesan Family Care
Peterborough City Council,Children's & Education Services - Education,Non-School Funding,Supplies and Services,13-Apr-11,381752,22347,REVENUE,The John Townsend Trust
Peterborough City Council,Children's & Education Services - Education,Non-School Funding,Supplies and Services,13-Apr-11,381754,22347,REVENUE,The John Townsend Trust
Peterborough City Council,Children's & Education Services - Children's Social Care,Support Services & Management Costs,Supplies and Services,13-Apr-11,381768,2100,REVENUE,Redacted Personal Data
Peterborough City Council,Support Services,Support Services,Supplies and Services,13-Apr-11,381773,604.8,REVENUE,Browne Jacobson
Peterborough City Council,Children's & Education Services - Children's Social Care,Family Support Services,More than one Expenses Type,13-Apr-11,381786,797.37,REVENUE,Cherry Lodge
Peterborough City Council,"Cultural, Environmental and Planning Services",Economic Development,Third Party Payments,13-Apr-11,381853,29400,REVENUE,Peterborough Citizens Advice Bureau
Peterborough City Council,Children's & Education Services - Children's Social Care,Other Children's & Families Services,Supplies and Services - Transfer Payments,13-Apr-11,381938,600,REVENUE,Redacted Personal Data
Peterborough City Council,Children's & Education Services - Children's Social Care,Other Children's & Families Services,Supplies and Services - Transfer Payments,13-Apr-11,381939,613.6,REVENUE,Redacted Personal Data
Peterborough City Council,Children's & Education Services - Children's Social Care,Children Looked After,Supplies and Services - Transfer Payments,13-Apr-11,382061,616.18,REVENUE,Redacted Personal Data
Peterborough City Council,Children's & Education Services - Children's Social Care,Children Looked After,Supplies and Services - Transfer Payments,13-Apr-11,382062,560.98,REVENUE,Redacted Personal Data
Peterborough City Council,Children's & Education Services - Children's Social Care,Children Looked After,Supplies and Services - Transfer Payments,13-Apr-11,382063,532.12,REVENUE,Redacted Personal Data
Peterborough City Council,Children's & Education Services - Children's Social Care,Children Looked After,Supplies and Services - Transfer Payments,13-Apr-11,382064,529.9,REVENUE,Redacted Personal Data
Peterborough City Council,Children's & Education Services - Children's Social Care,Children Looked After,Supplies and Services - Transfer Payments,13-Apr-11,382065,529.9,REVENUE,Redacted Personal Data
Peterborough City Council,Children's & Education Services - Children's Social Care,Children Looked After,Supplies and Services - Transfer Payments,13-Apr-11,382066,529.9,REVENUE,Redacted Personal Data
Peterborough City Council,Children's & Education Services - Children's Social Care,Children Looked After,Supplies and Services - Transfer Payments,13-Apr-11,382068,529.9,REVENUE,Redacted Personal Data
Peterborough City Council,Children's & Education Services - Children's Social Care,Children Looked After,Supplies and Services - Transfer Payments,13-Apr-11,382069,529.9,REVENUE,Redacted Personal Data
Peterborough City Council,Children's & Education Services - Children's Social Care,Children Looked After,Supplies and Services - Transfer Payments,13-Apr-11,382070,529.9,REVENUE,Redacted Personal Data
Peterborough City Council,Children's & Education Services - Children's Social Care,Children Looked After,Supplies and Services - Transfer Payments,13-Apr-11,382072,529.9,REVENUE,Redacted Personal Data
Peterborough City Council,Children's & Education Services - Children's Social Care,Children Looked After,Supplies and Services - Transfer Payments,13-Apr-11,382073,529.9,REVENUE,Redacted Personal Data
Peterborough City Council,Children's & Education Services - Children's Social Care,Children Looked After,Supplies and Services - Transfer Payments,13-Apr-11,382077,560.98,REVENUE,Redacted Personal Data
Peterborough City Council,Children's & Education Services - Children's Social Care,Children Looked After,Supplies and Services - Transfer Payments,13-Apr-11,382078,560.98,REVENUE,Redacted Personal Data
Peterborough City Council,Children's & Education Services - Children's Social Care,Children Looked After,Supplies and Services - Transfer Payments,13-Apr-11,382082,560.98,REVENUE,Redacted Personal Data
Peterborough City Council,Children's & Education Services - Children's Social Care,Children Looked After,Supplies and Services - Transfer Payments,13-Apr-11,382083,529.9,REVENUE,Redacted Personal Data
Peterborough City Council,Children's & Education Services - Children's Social Care,Children Looked After,Supplies and Services - Transfer Payments,13-Apr-11,382084,529.9,REVENUE,Redacted Personal Data
Peterborough City Council,Children's & Education Services - Children's Social Care,Children Looked After,Supplies and Services - Transfer Payments,13-Apr-11,382085,529.9,REVENUE,Redacted Personal Data
Peterborough City Council,Children's & Education Services - Children's Social Care,Children Looked After,Supplies and Services - Transfer Payments,13-Apr-11,382086,529.9,REVENUE,Redacted Personal Data
Peterborough City Council,Children's & Education Services - Children's Social Care,Children Looked After,Supplies and Services - Transfer Payments,13-Apr-11,382089,529.9,REVENUE,Redacted Personal Data
Peterborough City Council,Children's & Education Services - Children's Social Care,Children Looked After,Supplies and Services - Transfer Payments,13-Apr-11,382090,529.9,REVENUE,Redacted Personal Data
Peterborough City Council,Children's & Education Services - Children's Social Care,Children Looked After,Supplies and Services - Transfer Payments,13-Apr-11,382091,529.9,REVENUE,Redacted Personal Data
Peterborough City Council,Children's & Education Services - Children's Social Care,Children Looked After,Supplies and Services - Transfer Payments,13-Apr-11,382095,626.43,REVENUE,Redacted Personal Data
Peterborough City Council,Children's & Education Services - Children's Social Care,Children Looked After,Supplies and Services - Transfer Payments,13-Apr-11,382101,560.98,REVENUE,Redacted Personal Data
Peterborough City Council,Children's & Education Services - Children's Social Care,Children Looked After,Supplies and Services - Transfer Payments,13-Apr-11,382102,885.08,REVENUE,Redacted Personal Data
Peterborough City Council,Children's & Education Services - Children's Social Care,Children Looked After,Supplies and Services - Transfer Payments,13-Apr-11,382103,885.08,REVENUE,Redacted Personal Data
Peterborough City Council,Children's & Education Services - Children's Social Care,Children Looked After,Supplies and Services - Transfer Payments,13-Apr-11,382104,560.98,REVENUE,Redacted Personal Data
Peterborough City Council,Children's & Education Services - Children's Social Care,Children Looked After,Supplies and Services - Transfer Payments,13-Apr-11,382107,560.98,REVENUE,Redacted Personal Data
Peterborough City Council,Children's & Education Services - Children's Social Care,Children Looked After,Supplies and Services - Transfer Payments,13-Apr-11,382108,529.9,REVENUE,Redacted Personal Data
Peterborough City Council,Children's & Education Services - Children's Social Care,Children Looked After,Supplies and Services - Transfer Payments,13-Apr-11,382110,529.9,REVENUE,Redacted Personal Data
Peterborough City Council,Children's & Education Services - Children's Social Care,Children Looked After,Supplies and Services - Transfer Payments,13-Apr-11,382112,529.9,REVENUE,Redacted Personal Data
Peterborough City Council,Children's & Education Services - Children's Social Care,Children Looked After,Supplies and Services - Transfer Payments,13-Apr-11,382117,560.98,REVENUE,Redacted Personal Data
Peterborough City Council,Children's & Education Services - Children's Social Care,Children Looked After,Supplies and Services - Transfer Payments,13-Apr-11,382123,529.9,REVENUE,Redacted Personal Data
Peterborough City Council,Children's & Education Services - Children's Social Care,Children Looked After,Supplies and Services - Transfer Payments,13-Apr-11,382129,560.98,REVENUE,Redacted Personal Data
Peterborough City Council,Children's & Education Services - Children's Social Care,Children Looked After,Supplies and Services - Transfer Payments,13-Apr-11,382149,529.9,REVENUE,Redacted Personal Data
Peterborough City Council,Children's & Education Services - Children's Social Care,Family Support Services,Supplies and Services,13-Apr-11,382161,1148.22,REVENUE,Redacted Personal Data
Peterborough City Council,Children's & Education Services - Children's Social Care,Children Looked After,Supplies and Services - Transfer Payments,13-Apr-11,382182,529.9,REVENUE,Redacted Personal Data
Peterborough City Council,Children's & Education Services - Children's Social Care,Children Looked After,Supplies and Services - Transfer Payments,13-Apr-11,382188,529.9,REVENUE,Redacted Personal Data
Peterborough City Council,Children's & Education Services - Children's Social Care,Children Looked After,Supplies and Services - Transfer Payments,13-Apr-11,382189,529.9,REVENUE,Redacted Personal Data
Peterborough City Council,Children's & Education Services - Children's Social Care,Children Looked After,Supplies and Services - Transfer Payments,13-Apr-11,382199,885.08,REVENUE,Redacted Personal Data
Peterborough City Council,Children's & Education Services - Children's Social Care,Children Looked After,Supplies and Services - Transfer Payments,13-Apr-11,382203,885.08,REVENUE,Redacted Personal Data
Peterborough City Council,Children's & Education Services - Children's Social Care,Children Looked After,Supplies and Services - Transfer Payments,13-Apr-11,382204,885.08,REVENUE,Redacted Personal Data
Peterborough City Council,Children's & Education Services - Children's Social Care,Children Looked After,Supplies and Services - Transfer Payments,13-Apr-11,382205,885.08,REVENUE,Redacted Personal Data
Peterborough City Council,Children's & Education Services - Children's Social Care,Children Looked After,Supplies and Services - Transfer Payments,13-Apr-11,382206,885.08,REVENUE,Redacted Personal Data
Peterborough City Council,Children's & Education Services - Children's Social Care,Children Looked After,Supplies and Services - Transfer Payments,13-Apr-11,382212,529.9,REVENUE,Redacted Personal Data
Peterborough City Council,Children's & Education Services - Children's Social Care,Children Looked After,Supplies and Services - Transfer Payments,13-Apr-11,382216,560.98,REVENUE,Redacted Personal Data
Peterborough City Council,Children's & Education Services - Children's Social Care,Children Looked After,Supplies and Services - Transfer Payments,13-Apr-11,382222,529.9,REVENUE,Redacted Personal Data
Peterborough City Council,Children's & Education Services - Children's Social Care,Children Looked After,Supplies and Services - Transfer Payments,13-Apr-11,382235,560.98,REVENUE,Redacted Personal Data
Peterborough City Council,Children's & Education Services - Children's Social Care,Children Looked After,Supplies and Services - Transfer Payments,13-Apr-11,382238,529.9,REVENUE,Redacted Personal Data
Peterborough City Council,Children's & Education Services - Children's Social Care,Children Looked After,Supplies and Services - Transfer Payments,13-Apr-11,382239,560.98,REVENUE,Redacted Personal Data
Peterborough City Council,Children's & Education Services - Children's Social Care,Children Looked After,Supplies and Services - Transfer Payments,13-Apr-11,382240,529.9,REVENUE,Redacted Personal Data
Peterborough City Council,Children's & Education Services - Children's Social Care,Children Looked After,Supplies and Services - Transfer Payments,13-Apr-11,382247,706.48,REVENUE,Redacted Personal Data
Peterborough City Council,Children's & Education Services - Children's Social Care,Other Children's & Families Services,Supplies and Services - Transfer Payments,13-Apr-11,382266,892.58,REVENUE,Redacted Personal Data
Peterborough City Council,Capital,Capital,Capital Pending Update to BS,13-Apr-11,382288,79825.2,CAPITAL,MARS (Construction) Ltd
Peterborough City Council,Capital,Capital,Capital Pending Update to BS,13-Apr-11,382289,117088.8,CAPITAL,MARS (Construction) Ltd
Peterborough City Council,Capital,Capital,Capital Pending Update to BS,13-Apr-11,382290,123448.15,CAPITAL,E N Suiter & Sons Ltd
Peterborough City Council,Deficit/(Surplus) on Trading Undertakings,Trading Account Surpluses & Deficits,Premises,13-Apr-11,382292,1964.4,REVENUE,Stanair
Peterborough City Council,"Cultural, Environmental and Planning Services",Economic Development,Third Party Payments,13-Apr-11,382315,8162.5,REVENUE,Dial Peterborough
Peterborough City Council,Adult Social Care,Adult Social Care,Third Party Payments,13-Apr-11,382325,674833,REVENUE,Peterborough PCT
Peterborough City Council,Capital,Capital,Capital Pending Update to BS,13-Apr-11,382343,1576.8,CAPITAL,UK Power Networks (operations) Ltd
Peterborough City Council,Children's & Education Services - Children's Social Care,Children Looked After,Supplies and Services - Transfer Payments,13-Apr-11,382374,1956,REVENUE,London Borough of Harrow
Peterborough City Council,Parish Council Precepts,Precepts & Levies,More than one Expenses Type,13-Apr-11,382380,2795.25,REVENUE,Ailsworth Parish Council
Peterborough City Council,Parish Council Precepts,Precepts & Levies,More than one Expenses Type,13-Apr-11,382385,4389.25,REVENUE,Barnack Parish Council
Peterborough City Council,Parish Council Precepts,Precepts & Levies,More than one Expenses Type,13-Apr-11,382386,515,REVENUE,Borough Fen Parish Council
Peterborough City Council,Parish Council Precepts,Precepts & Levies,More than one Expenses Type,13-Apr-11,382390,25000,REVENUE,Bretton Parish Council
Peterborough City Council,Parish Council Precepts,Precepts & Levies,More than one Expenses Type,13-Apr-11,382393,3256.06,REVENUE,Castor Parish Council
Peterborough City Council,Parish Council Precepts,Precepts & Levies,Supplies and Services,13-Apr-11,382396,850,REVENUE,Deeping Gate Parish Council
Peterborough City Council,Parish Council Precepts,Precepts & Levies,More than one Expenses Type,13-Apr-11,382397,1172.5,REVENUE,Etton Parish Council
Peterborough City Council,Parish Council Precepts,Precepts & Levies,More than one Expenses Type,13-Apr-11,382398,16285,REVENUE,Eye Parish Council
Peterborough City Council,Parish Council Precepts,Precepts & Levies,More than one Expenses Type,13-Apr-11,382399,5121.75,REVENUE,Glinton Parish Council
Peterborough City Council,Parish Council Precepts,Precepts & Levies,Supplies and Services,13-Apr-11,382400,13973.75,REVENUE,Hampton Parish Council
Peterborough City Council,Parish Council Precepts,Precepts & Levies,More than one Expenses Type,13-Apr-11,382401,3892.75,REVENUE,Helpston Parish Council
Peterborough City Council,Parish Council Precepts,Precepts & Levies,More than one Expenses Type,13-Apr-11,382403,1823,REVENUE,Maxey Parish Council
Peterborough City Council,Support Services,Support Services,Premises,13-Apr-11,382404,684.94,REVENUE,Southern Electric
Peterborough City Council,Support Services,Support Services,Premises,13-Apr-11,382406,12807.1,REVENUE,Southern Electric
Peterborough City Council,"Cultural, Environmental and Planning Services",Economic Development,Third Party Payments,13-Apr-11,382410,3702.5,REVENUE,P'Boro Council For Voluntary Srvs
Peterborough City Council,"Cultural, Environmental and Planning Services",Economic Development,Third Party Payments,13-Apr-11,382411,3525,REVENUE,P'Boro Council For Voluntary Srvs
Peterborough City Council,"Cultural, Environmental and Planning Services",Economic Development,Third Party Payments,13-Apr-11,382412,8982.5,REVENUE,P'Boro Council For Voluntary Srvs
Peterborough City Council,"Cultural, Environmental and Planning Services",Waste Collection,Transport,13-Apr-11,382422,46572,REVENUE,Specialist Fleet Services
Peterborough City Council,"Cultural, Environmental and Planning Services",Waste Collection,Transport,13-Apr-11,382423,46572,REVENUE,Specialist Fleet Services
Peterborough City Council,"Cultural, Environmental and Planning Services",Waste Collection,Transport,13-Apr-11,382424,46572,REVENUE,Specialist Fleet Services
Peterborough City Council,"Cultural, Environmental and Planning Services",Waste Collection,Transport,13-Apr-11,382425,46572,REVENUE,Specialist Fleet Services
Peterborough City Council,"Cultural, Environmental and Planning Services",Waste Collection,Transport,13-Apr-11,382426,46572,REVENUE,Specialist Fleet Services
Peterborough City Council,Parish Council Precepts,Precepts & Levies,More than one Expenses Type,13-Apr-11,382428,7250,REVENUE,Newborough Parish Council
Peterborough City Council,"Cultural, Environmental and Planning Services",Open Spaces,Supplies and Services,13-Apr-11,382429,574.09,REVENUE,Peterborough Tree Services Ltd
Peterborough City Council,"Cultural, Environmental and Planning Services",Waste Collection,Transport,13-Apr-11,382430,46572,REVENUE,Specialist Fleet Services
Peterborough City Council,"Cultural, Environmental and Planning Services",Waste Collection,Transport,13-Apr-11,382431,46572,REVENUE,Specialist Fleet Services
Peterborough City Council,Parish Council Precepts,Precepts & Levies,More than one Expenses Type,13-Apr-11,382432,5750,REVENUE,Northborough Parish Council
Peterborough City Council,"Cultural, Environmental and Planning Services",Waste Collection,Transport,13-Apr-11,382433,46572,REVENUE,Specialist Fleet Services
Peterborough City Council,"Cultural, Environmental and Planning Services",Open Spaces,Supplies and Services,13-Apr-11,382434,1238.57,REVENUE,Peterborough Tree Services Ltd
Peterborough City Council,"Cultural, Environmental and Planning Services",Waste Collection,Transport,13-Apr-11,382435,46572,REVENUE,Specialist Fleet Services
Peterborough City Council,"Cultural, Environmental and Planning Services",Open Spaces,Supplies and Services,13-Apr-11,382436,1440,REVENUE,Peterborough Tree Services Ltd
Peterborough City Council,Parish Council Precepts,Precepts & Levies,More than one Expenses Type,13-Apr-11,382437,8987.5,REVENUE,Orton Longueville Parish Council
Peterborough City Council,"Cultural, Environmental and Planning Services",Waste Collection,Supplies and Services,13-Apr-11,382438,46572,REVENUE,Specialist Fleet Services
Peterborough City Council,"Cultural, Environmental and Planning Services",Waste Collection,Transport,13-Apr-11,382439,46572,REVENUE,Specialist Fleet Services
Peterborough City Council,"Cultural, Environmental and Planning Services",Waste Collection,Transport,13-Apr-11,382440,46572,REVENUE,Specialist Fleet Services
Peterborough City Council,"Cultural, Environmental and Planning Services",Waste Collection,Transport,13-Apr-11,382441,46572,REVENUE,Specialist Fleet Services
Peterborough City Council,Parish Council Precepts,Precepts & Levies,More than one Expenses Type,13-Apr-11,382442,14751.5,REVENUE,Orton Waterville Parish Council
Peterborough City Council,"Cultural, Environmental and Planning Services",Waste Collection,Transport,13-Apr-11,382443,46572,REVENUE,Specialist Fleet Services
Peterborough City Council,Parish Council Precepts,Precepts & Levies,More than one Expenses Type,13-Apr-11,382444,572.5,REVENUE,Southorpe Parish Council
Peterborough City Council,"Cultural, Environmental and Planning Services",Waste Collection,Transport,13-Apr-11,382445,46572,REVENUE,Specialist Fleet Services
Peterborough City Council,"Cultural, Environmental and Planning Services",Waste Collection,Capital Financing Costs,13-Apr-11,382446,46572,REVENUE,Specialist Fleet Services
Peterborough City Council,"Cultural, Environmental and Planning Services",Waste Collection,Capital Financing Costs,13-Apr-11,382447,46572,REVENUE,Specialist Fleet Services
Peterborough City Council,Deficit/(Surplus) on Trading Undertakings,Trading Account Surpluses & Deficits,Capital Financing Costs,13-Apr-11,382448,46572,REVENUE,Specialist Fleet Services
Peterborough City Council,More than one Service Area Category,More than one Service Division,Balance Sheet,13-Apr-11,382450,19058.69,Balance Sheet,Emo Oil Ltd
Peterborough City Council,Deficit/(Surplus) on Trading Undertakings,Trading Account Surpluses & Deficits,Supplies and Services,13-Apr-11,382452,1525.6,REVENUE,P J Services Ltd
Peterborough City Council,More than one Service Area Category,More than one Service Division,Premises,13-Apr-11,382454,4304.72,REVENUE,Cable Test
Peterborough City Council,Deficit/(Surplus) on Trading Undertakings,Trading Account Surpluses & Deficits,Supplies and Services,13-Apr-11,382455,775.5,REVENUE,Robert J Davis Associates
Peterborough City Council,Deficit/(Surplus) on Trading Undertakings,Trading Account Surpluses & Deficits,Premises,13-Apr-11,382459,519.97,REVENUE,T Clarke East Limited
Peterborough City Council,Children's & Education Services - Children's Social Care,Family Support Services,Premises,13-Apr-11,382463,648.23,REVENUE,Princebuild Limited
Peterborough City Council,Deficit/(Surplus) on Trading Undertakings,Trading Account Surpluses & Deficits,Premises,13-Apr-11,382464,807.85,REVENUE,Princebuild Limited
Peterborough City Council,Deficit/(Surplus) on Trading Undertakings,Trading Account Surpluses & Deficits,Supplies and Services,13-Apr-11,382468,4228.83,REVENUE,Peterborough Grass Machinery Ltd
Peterborough City Council,Parish Council Precepts,Precepts & Levies,More than one Expenses Type,13-Apr-11,382469,1995,REVENUE,Sutton Parish Council
Peterborough City Council,Parish Council Precepts,Precepts & Levies,More than one Expenses Type,13-Apr-11,382471,16316.75,REVENUE,Thorney Parish Council
Peterborough City Council,Parish Council Precepts,Precepts & Levies,More than one Expenses Type,13-Apr-11,382472,2400,REVENUE,Ufford Parish Council
Peterborough City Council,Parish Council Precepts,Precepts & Levies,More than one Expenses Type,13-Apr-11,382473,3031.5,REVENUE,Wansford Parish Council
Peterborough City Council,Parish Council Precepts,Precepts & Levies,More than one Expenses Type,13-Apr-11,382474,13750,REVENUE,Wittering Parish Council
Peterborough City Council,Capital,Capital,Capital Pending Update to BS,13-Apr-11,382475,14975.14,CAPITAL,Burmor Construction
Peterborough City Council,Parish Council Precepts,Precepts & Levies,Supplies and Services,13-Apr-11,382476,528,REVENUE,Wothorpe Parish Council
Peterborough City Council,Capital,Capital,Capital Pending Update to BS,13-Apr-11,382477,1635.45,CAPITAL,Portakabin Ltd
Peterborough City Council,Capital,Capital,Capital Pending Update to BS,13-Apr-11,382478,12614.4,CAPITAL,Portakabin Ltd
Peterborough City Council,Deficit/(Surplus) on Trading Undertakings,Trading Account Surpluses & Deficits,Premises,13-Apr-11,382480,515.84,REVENUE,Britannia Fire & Security Ltd
Peterborough City Council,Deficit/(Surplus) on Trading Undertakings,Trading Account Surpluses & Deficits,Transport,13-Apr-11,382482,845.49,REVENUE,Dennis Eagle
Peterborough City Council,Children's & Education Services - Education,Non-School Funding,Transport,13-Apr-11,382503,1900.8,REVENUE,Goldstar Cabs Ltd
Peterborough City Council,Children's & Education Services - Education,Non-School Funding,Transport,13-Apr-11,382504,1876.8,REVENUE,Goldstar Cabs Ltd
Peterborough City Council,Children's & Education Services - Education,Non-School Funding,Transport,13-Apr-11,382505,1542,REVENUE,Goldstar Cabs Ltd
Peterborough City Council,Children's & Education Services - Education,Non-School Funding,Transport,13-Apr-11,382506,2725.8,REVENUE,Goldstar Cabs Ltd
Peterborough City Council,Children's & Education Services - Education,Non-School Funding,Transport,13-Apr-11,382507,1449,REVENUE,Goldstar Cabs Ltd
Peterborough City Council,Children's & Education Services - Education,Non-School Funding,Transport,13-Apr-11,382508,1462.8,REVENUE,Goldstar Cabs Ltd
Peterborough City Council,Children's & Education Services - Education,Non-School Funding,Transport,13-Apr-11,382509,1565.4,REVENUE,Goldstar Cabs Ltd
Peterborough City Council,Children's & Education Services - Education,Non-School Funding,Transport,13-Apr-11,382510,2047.92,REVENUE,Goldstar Cabs Ltd
Peterborough City Council,Children's & Education Services - Education,Non-School Funding,Transport,13-Apr-11,382511,772.8,REVENUE,Goldstar Cabs Ltd
Peterborough City Council,Children's & Education Services - Education,Non-School Funding,Transport,13-Apr-11,382512,1711.2,REVENUE,Goldstar Cabs Ltd
Peterborough City Council,Children's & Education Services - Education,Non-School Funding,Transport,13-Apr-11,382513,579.6,REVENUE,Goldstar Cabs Ltd
Peterborough City Council,Children's & Education Services - Education,Non-School Funding,Transport,13-Apr-11,382514,3472.8,REVENUE,Goldstar Cabs Ltd
Peterborough City Council,Children's & Education Services - Education,Non-School Funding,Transport,13-Apr-11,382515,2644.8,REVENUE,Goldstar Cabs Ltd
Peterborough City Council,Deficit/(Surplus) on Trading Undertakings,Trading Account Surpluses & Deficits,Transport,15-Apr-11,371684,1544.75,REVENUE,Applied Sweepers Group Leasing Ltd
Peterborough City Council,Support Services,Support Services,Supplies and Services,15-Apr-11,371897,3183.48,REVENUE,Savills L&P Ltd
Peterborough City Council,Children's & Education Services - Children's Social Care,Service Strategy,Supplies and Services,15-Apr-11,376356,1881,REVENUE,ADCS
Peterborough City Council,Children's & Education Services - Children's Social Care,Support Services & Management Costs,Supplies and Services,15-Apr-11,377087,1800,REVENUE,Redacted Personal Data
Peterborough City Council,Children's & Education Services - Children's Social Care,Family Support Services,Third Party Payments,15-Apr-11,377372,20817.29,REVENUE,P'Boro & Stamford Hosp NHS F/dation Trust
Peterborough City Council,Housing Services,Homelessness,Supplies and Services,15-Apr-11,377832,703.51,REVENUE,Euro RSCG Riley Ltd
Peterborough City Council,Support Services,Support Services,Supplies and Services,15-Apr-11,378574,4653.54,REVENUE,DX Network Services Ltd
Peterborough City Council,"Highways, Roads & Transport Services",Street Lighting,Supplies and Services,15-Apr-11,379502,793.99,REVENUE,E.ON Energy
Peterborough City Council,Children's & Education Services - Children's Social Care,Family Support Services,Third Party Payments,15-Apr-11,380270,25542.76,REVENUE,P'Boro & Stamford Hosp NHS F/dation Trust
Peterborough City Council,Children's & Education Services - Education,Non-School Funding,Supplies and Services,15-Apr-11,380456,800,REVENUE,Prestige Nightclubs Ltd
Peterborough City Council,Children's & Education Services - Education,Non-School Funding,Supplies and Services,15-Apr-11,380459,600,REVENUE,Prestige Nightclubs Ltd
Peterborough City Council,"Cultural, Environmental and Planning Services",More than one Service Division,Grants and Other Income,15-Apr-11,381182,10567.2,REVENUE,Vivacity Culture and Leisure
Peterborough City Council,"Cultural, Environmental and Planning Services",More than one Service Division,Grants and Other Income,15-Apr-11,381183,8476,REVENUE,Vivacity Culture and Leisure
Peterborough City Council,Housing Services,Private Sector Housing Renewal,Supplies and Services,15-Apr-11,381855,858.5,REVENUE,Fletton Electrics Ltd
Peterborough City Council,Children's & Education Services - Children's Social Care,Family Support Services,Third Party Payments,15-Apr-11,382611,-41762.89,REVENUE,P'Boro & Stamford Hosp NHS F/dation Trust
Peterborough City Council,"Cultural, Environmental and Planning Services",Economic Development,Third Party Payments,15-Apr-11,382614,21000,REVENUE,Peterborough Workspace Ltd
Peterborough City Council,Children's & Education Services - Children's Social Care,Family Support Services,Supplies and Services,15-Apr-11,382637,601.2,REVENUE,Eastern Shires Purchasing Organisation
Peterborough City Council,Children's & Education Services - Education,Secondary,Premises,15-Apr-11,382641,980.6,REVENUE,Eastern Shires Purchasing Organisation
Peterborough City Council,Deficit/(Surplus) on Trading Undertakings,Trading Account Surpluses & Deficits,Employees,15-Apr-11,382688,711.95,REVENUE,Taskmaster Resources Ltd
Peterborough City Council,"Cultural, Environmental and Planning Services",Economic Development,Third Party Payments,15-Apr-11,382696,4880,REVENUE,Peterborough Mediation
Peterborough City Council,Deficit/(Surplus) on Trading Undertakings,Trading Account Surpluses & Deficits,Supplies and Services,15-Apr-11,382708,4058.53,REVENUE,Barron Clark Castings Ltd
Peterborough City Council,Deficit/(Surplus) on Trading Undertakings,Trading Account Surpluses & Deficits,Supplies and Services,15-Apr-11,382709,948.6,REVENUE,Barron Clark Castings Ltd
Peterborough City Council,Deficit/(Surplus) on Trading Undertakings,Trading Account Surpluses & Deficits,Supplies and Services,15-Apr-11,382710,1486.72,REVENUE,Barron Clark Castings Ltd
Peterborough City Council,Deficit/(Surplus) on Trading Undertakings,Trading Account Surpluses & Deficits,Supplies and Services,15-Apr-11,382711,3414.96,REVENUE,Barron Clark Castings Ltd
Peterborough City Council,Deficit/(Surplus) on Trading Undertakings,Trading Account Surpluses & Deficits,Supplies and Services,15-Apr-11,382712,3385.42,REVENUE,Barron Clark Castings Ltd
Peterborough City Council,Deficit/(Surplus) on Trading Undertakings,Trading Account Surpluses & Deficits,Supplies and Services,15-Apr-11,382713,2078.11,REVENUE,Barron Clark Castings Ltd
